Workbook

Sheet MetaData
B2: Indirect RR Adjustment (IRRAD) | J2: Legend: | K2: User info | L2: Results
B3: Procedure | C3: Select Analysis | D3: Input information | H3: Sheet | J3: Definitions:
B4: For X and C binary: | J4: X | K4: Exposure
B5: • Find adjusted RR_X | D5: Provide RR_Obs, RR_C, P(C=1|X=0) and P(C=1|X=1) or OR_X,C | H5: Axelson_Gail | J5: C | K5: Confounder
J6: P(C|X) | K6: Conditional probability of C given X
B7: • Solve for P(C=1|X=1) & OR_X,C | D7: Provide RR_Obs, RR_X, RR_C & P(C=1|X=0) | J7: P(X) | K7: Probability of X, used to compute P(X,C)
J8: P(X,C) | K8: Joint probability of X and C
B9: For X and C categorical: | D9: Model for RR(X,C) | J9: OR_X,C | K9: Odds ratio of X and C
B10: • Find adjusted RR_X or ERR_X | D10: Multiplicative: Provide RR_Obs, RR_C and P(C|X) | H10: IndrctAdj | J10: RR_Obs | K10: Observed relative risk of X
J11: RR_X | K11: Adjusted ("true") relative risk of X at the referent category of C
D12: Additive: Provide ERR_Obs, ERR_C and P(C|X) | J12: RR_C | K12: Relative risk of C at the referent category of X
J13: ERR_Obs | K13: Observed excess relative risk of X (= RR_Obs - 1)
D14: (Optional) | J14: ERR_X | K14: Adjusted ("true") excess relative risk of X (= RR_X - 1)
D15: Smooth & LS regression: Include C & X scores and weights | J15: ERR_C | K15: Excess relative risk of C (= RR_C - 1)
D16: Pearson correlation: C & X scores and marginal P(X) | J16: Wgt | K16: Weights for LS regression (default = 1.0; non-positive weights set to zero)
B17: For X categorical and C binary: | D17: Model for RR(X,C) | H17: Solve_P(C|X)_BinC | J17: Prior weights | K17: Weights for smooth (default is equal weights; non-positive weights set to zero)
B18: • Solve for P(C=1|X) & OR_X,C | D18: Multiplicative: Provide RR_Obs, RR_X, RR_C and P(C=1|X=0) | J18: Note: referent category for RR and ERR must be level 0
D20: Additive: Provide ERR_Obs, ERR_X, ERR_C and P(C=1|X=0) | J20: Joint association of X and C:
J21: Multiplicative: | K21: RR_X,C(i,j) = RR_X(i)*RR_C(j)
B22: For X and C categorical: | D22: Model for RR(X,C) | H22: Solve_RRC | J22: Additive: | K22: RR_X,C(I,j) = 1+ERR_X(i)+ERR_C(j) = RR_X(i)+RR_C(j)-1
B23: • Solve for RR_C or ERR_C | D23: Multiplicative: Provide RR_Obs, RR_X and P(C|X)
J24: References: | K24: Lubin, Hauptmann and Blair Ann Epidemiol 2018:28(11);801-807
D25: Additive: Provide ERR_Obs, ERR_X and P(C|X) | K25: Axelson Scand J Work Environ Health 1978;4:98-102
K26: Schlesselman Am J Epidemiol 1978
H27: ExampleData | K27: Gail et al Am J Ind Med 1988;13:119-130
J29: Version
J30: 1.1 | K30: 25 Oct 2018: | L30: Initial coding
J31: 1.2 | K31: 13 Nov 2018: | L31: Enhance error trapping
J32: 1.3 | K32: 20 Dec 2018: | L32: Reformat & error trapping

Sheet Axelson_Gail
B2: Find adjusted RR_X (mult model) or ERR_X (add model)
R3: display= | S3: =COUNTBLANK(R5:R9)+SUM(R10:R14) -> 0
G4: Mult: RR_X,C = RR_X * RR_C | K4: Joint distn P(X,C) & corr
B5: RR_Obs = | C5: 5 | D5: =IF(C5="","",IF(C5>0,"","**Invalid entry**")) ->  | R5: =IF(C5>0,C5,"") -> 5
B6: RR_C = | C6: 1.5 | D6: =IF(C6="","",IF(C6>0,"","**Invalid entry**")) ->  | G6: RR_X = | H6: =IF(S3>0,"",IF(R5="","",$R$5 / H7)) -> 5.454545455 | I6: =IF(H6="","",IF(H6>=0,"","** Invalid value **")) ->  | K6: Corr(X,C)= | L6: =IF(S3>0,"",IF(C13="","",IF((C13>0)*(C13<1),(K8-M8*K10)/SQRT(M8*M9*K10*L10),"NA"))) -> -0.2182178902 | M6: =IF(L6="","",IF(L6>=-1,IF(L6<=1,"","** Invalid value **"),"** Invalid value **")) ->  | R6: =IF(C6>0,C6,"") -> 1.5
B7: P(C=1 | X=0) = | C7: 0.4 | D7: =IF(C7="","",IF(C7>0,IF(C7<1,"","**Invalid entry**"),"**Invalid entry**")) ->  | G7: BIAS_RR = | H7: =IF(S3>0,"",IF(R8="","",($R$8 * $R$6 + (1-$R$8) ) / ($R$7 * $R$6 + (1 - $R$7)))) -> 0.9166666667 | K7: X=1 | L7: X=0 | R7: =IF(C7>0,C7,"") -> 0.4
J8: C=1 | K8: =IF(S3>0,"",IF(C13="","",IF((C13>=0)*(C13<=1),R8*K10,""))) -> 0.12 | L8: =IF(S3>0,"",IF(C13="","",IF((C13>=0)*(C13<=1),R7*L10,""))) -> 0.16 | M8: =IF(S3>0,"",IF(C13="","",IF((C13>=0)*(C13<=1),K8+L8,""))) -> 0.28 | R8: =IF(C10="",D11,C10) -> 0.2
B9: Enter one: | C9: =IF(COUNTBLANK(C10:C11)=0,"Error: enter only one: P(C=1 | X=1) or OR_X,C","") ->  | G9: Add: RR_X,C = RR_X + RR_C - 1 | J9: C=0 | K9: =IF(S3>0,"",IF(C13="","",IF((C13>=0)*(C13<=1),K10-K8,""))) -> 0.48 | L9: =IF(S3>0,"",IF(C13="","",IF((C13>=0)*(C13<=1),L10-L8,""))) -> 0.24 | M9: =IF(S3>0,"",IF(C13="","",IF((C13>=0)*(C13<=1),K9+L9,""))) -> 0.72 | R9: =IF(C11="",D10,C11) -> 0.375
B10: P(C=1 | X=1) = | C10: 0.2 | D10: =IF(COUNTBLANK(C5:C7)+COUNTBLANK(C10)=0,IF(SUM(R10:R12)>0,"**Invalid**",C10*(1-C7)/(C7*(1-C10))),"") -> 0.375 | E10: =IF(C10="","",IF(D10="","",IF(D10="**Invalid**","","= OR_X,C"))) -> = OR_X,C | K10: =IF(S3>0,"",IF(C13="","",IF((C13>=0)*(C13<=1),C13,""))) -> 0.6 | L10: =IF(S3>0,"",IF(C13="","",IF((C13>=0)*(C13<=1),1-K10,""))) -> 0.4 | M10: =IF(S3>0,"",IF(C13="","",SUM(K8:L9))) -> 1 | Q10: Invalid prob | R10: =IF(C7>0,IF(C7<1,0,1),1) -> 0 | S10: P(C=1 | X=0)
B11: OR_X,C = | D11: =IF(COUNTBLANK(C5:C7)+COUNTBLANK(C11)=0,IF(((C11<=0)+(R12>0))>0,"**Invalid**",C11*C7/(C11*C7+1-C7)),"") ->  | E11: =IF(C11="","",IF(D11="","",IF(D11="**Invalid**","","= P(C=1 | X=1)"))) ->  | G11: ERR_X = | H11: =IF(S3>0,"",IF(R5="","",(R5-1) * ((R6-1)*R7 + 1) - (R8-R7)*(R6-1))) -> 4.9 | I11: =IF(H11="","",IF(H11>=-1,"","** Invalid value **")) ->  | R11: =IF(C10="",0,IF(C10>0,IF(C10<1,0,1),1)) -> 0 | S11: P(C=1 | X=1)
G12: BIAS_ERR = | H12: =IF(S3>0,"",IF(R5="","",(R5-1)/H11)) -> 0.8163265306 | R12: =IF(T12="",0,IF(T12>0,IF(T12<1,0,1),1)) -> 0 | S12: P(C=1 | X=1) | T12: =IF(COUNTBLANK(C5:C7)+COUNTBLANK(C11)=0,IF(C11<=0,-999,C11*C7/(C11*C7+1-C7)),"") -> 
B13: P(X=1) = | C13: 0.6 | D13: (optional) | R13: =IF(C9="",0,1) -> 0 | S13: P(C=1 | X=1) & OR_X,C
C14: =IF(C13="","",IF(R14=0,"","**Invalid entry**")) ->  | R14: =IF((C13>=0)*(C13<=1)=1,0,1) -> 0 | S14: P(X=1)
B15: Solve for P(C=1|X=1) & OR_X,C
E17: Multiplicative: RR_X,C = RR_X * RR_C
B18: RR_Obs = | C18: 2 | I18: Joint distn P(X,C) & correlation | R18: Display= | S18: =( (COUNTBLANK(C18:C20)+COUNTBLANK(C22))>0) + ((COUNTBLANK(C21)+COUNTBLANK(C23))<>2) -> 0
B19: RR_X (fix) = | C19: 1.5 | F19: P(C=1 | X=1) = | G19: =IF(S18>0,"",IF(C18="","",((C18/C19)*((1-$C$22)+$C$22*$C$20) -1)/($C$20-1) )) -> 0.35 | J19: X=1 | K19: X=0 | S19: =(C18>0)+(C19>0)+(C20>0) -> 3
B20: RR_C = | C20: 5 | F20: OR_X,C = | G20: =IF(S18>0,"",IF(G19="","",(G19/(1-G19))/($C$22/(1-$C$22)))) -> 2.153846154 | I20: C=1 | J20: =IF(S25>0,"",IF((C26>=0)*(C26<=1),G19*J22,"")) -> 0.14 | K20: =IF(S25>0,"",IF((C26>=0)*(C26<=1),C22*K22,"")) -> 0.12 | L20: =IF(S25>0,"",IF((C26>=0)*(C26<=1),J20+K20,"")) -> 0.26 | S20: =COUNTBLANK(C18:C20) -> 0
C21: =IF(S20>0,"",IF(S19=3,"","**Invalid entry**")) ->  | G21: =IF(G19="","",IF( (G19>=tol_Pr)*(G19<=(1-tol_Pr)),"","** Invalid value **")) ->  | I21: C=0 | J21: =IF(S25+S25>0,"",IF((C26>=0)*(C26<=1),J22-J20,"")) -> 0.26 | K21: =IF(S25+S25>0,"",IF((C26>=0)*(C26<=1),K22-K20,"")) -> 0.48 | L21: =IF(S25>0,"",IF((C26>=0)*(C26<=1),J21+K21,"")) -> 0.74
B22: P(C=1 | X=0) = | C22: 0.2 | J22: =IF(C26="","",IF((C26>=0)*(C26<=1),C26,"")) -> 0.4 | K22: =IF(C26="","",IF((C26>=0)*(C26<=1),1-J22,"")) -> 0.6 | L22: =IF(S25>0,"",IF(C26="","",SUM(L20:L21))) -> 1
C23: =IF(C22="","",IF(R26=0,"","**Invalid entry**")) -> 
K24: =IF(S18>0,"",IF(C26="","",IF(R27>0,"","Corr(X,C)="))) -> Corr(X,C)= | L24: =IF(S18>0,"",IF(C26="","",IF(R27>0,"",IF((J20*J21*K20*K21>0),(J20-L20*J22)/SQRT(L20*L21*J22*K22),"NA")))) -> 0.167530678
L25: =IF(L24="","",IF( (L24>=-1)*(L24<=1),"","** Invalid value **")) ->  | R25: Display= | S25: =IF(C26="",1,S18) -> 0
B26: P(X=1) = | C26: 0.4 | D26: (optional) | E26: Additive: RR_X,C = RR_X + RR_C - 1 | R26: =IF((C22>0)*(C22<1)=1,0,1) -> 0 | S26: P(C=1 | X=0)
C27: =IF(C26="","",IF(R27=0,"","**Invalid entry**")) ->  | I27: Joint distn P(X,C) & correlation | R27: =IF((C26>=0)*(C26<=1)=1,0,1) -> 0 | S27: P(X=1)
F28: P(C=1 | X=1) = | G28: =IF(S18>0,"",IF(C18="","",(C22*C18*(C20-1) + C18-C19)/(C20-1))) -> 0.525 | J28: X=1 | K28: X=0
F29: OR_X,C = | G29: =IF(S18>0,"",IF(C22="","",(G28/(1-G28))/($C$22/(1-$C$22)))) -> 4.421052632 | I29: C=1 | J29: =IF(S25>0,"",IF((C26>=0)*(C26<=1),G28*C26,"")) -> 0.21 | K29: =IF(S25>0,"",IF((C26>=0)*(C26<=1),C22*K31,"")) -> 0.12 | L29: =IF(S25>0,"",IF((C26>=0)*(C26<=1),J29+K29,"")) -> 0.33
G30: =IF(G28="","",IF( (G28>=tol_Pr)*(G28<=(1-tol_Pr)),"","** Invalid value **")) ->  | I30: C=0 | J30: =IF(S25>0,"",IF((C26>=0)*(C26<=1),J31-J29,"")) -> 0.19 | K30: =IF(S25>0,"",IF((C26>=0)*(C26<=1),K31-K29,"")) -> 0.48 | L30: =IF(S25>0,"",IF((C26>=0)*(C26<=1),J30+K30,"")) -> 0.67
J31: =IF(C26="","",IF((C26>=0)*(C26<=1),C26,"")) -> 0.4 | K31: =IF(C26="","",IF((C26>=0)*(C26<=1),1-J31,"")) -> 0.6 | L31: =IF(S25>0,"",IF(C26="","",SUM(J29:K30))) -> 1
K33: =IF(S18>0,"",IF(C26="","",IF(R27>0,"","Corr(X,C)="))) -> Corr(X,C)= | L33: =IF(S18>0,"",IF(C26="","",IF(R27>0,"",IF((J29*J30*K29*K30>0),(J29-L29*J31)/SQRT(L29*L30*J31*K31),"NA")))) -> 0.3386059697
L34: =IF(L33="","",IF( (L33>=-1)*(L33<=1)=1,"","** Invalid value **")) -> 

Sheet IndrctAdj
B2: Find adjusted RR_X (mult model) or ERR_X (add model)
E3: =IF(AD6>=AD7,"","**Warning: Too few RR_C values**") ->  | AD3: =10-COUNTIF(E5:N5,"") -> 4
D4: Level (C) | E4: 0 | F4: 1 | G4: 2 | H4: 3 | I4: 4 | J4: 5 | K4: 6 | L4: 7 | M4: 8 | N4: 9 | AD4: =COUNTIF(E6:N6,"<0") -> 0
D5: Confounder score (C) | E5: 0.86 | F5: 1.15 | G5: 1.44 | H5: 1.95 | S5: =IF( (Corr!B26*Corr!B27<>0)*(ABS(AA24-1)<tol_Pr)=1,IF((Corr!D31=1)*(AD7=AD3)*(E3=""),"","**Error: Correlation requires all X & C scores**"),"") -> 
C6: (optional) | D6: RR_C | E6: 1 | F6: 0.84 | G6: 0.66 | H6: 0.5 | Q6: Correlation | R6: =IF((Corr!B26*Corr!B27<>0)*(ABS(AA24-1)<tol_Pr)*(Corr!D31=1)*(AD7=AD3)*(E3="")=1,Corr!B29,"NA") -> -0.09378563669 | S6: =IF(Corr!B26*Corr!B27<>0,IF(ABS(AA24-1)<tol_Pr,"","**Error: P(X,C)≠1**"),"") ->  | U6: Joint probability P(X,C) | AD6: =10-COUNTBLANK(E6:N6) -> 4 | AF6: =IF(E6="",0,E6) -> 1 | AG6: 0.84 | AH6: 0.66 | AI6: 0.5 | AJ6: 0 | AK6: 0 | AL6: 0 | AM6: 0 | AN6: 0 | AO6: 0 | AS6: =IF(E6="",0,E6-1) -> 0 | AT6: -0.16 | AU6: -0.34 | AV6: -0.5 | AW6: 0 | AX6: 0 | AY6: 0 | AZ6: 0 | BA6: 0 | BB6: 0
B7: Level (X) | C7: P(X) | D7: Exp Score (X) | H7: Conditional probabilites P(C|X=i) | O7: Sum | P7: =IF(COUNTBLANK(P8:P23)=16,"","Warning:") ->  | Q7: 0 | R7: 1 | S7: 2 | T7: 3 | U7: 4 | V7: 5 | W7: 6 | X7: 7 | Y7: 8 | Z7: 9 | AA7: P(X) = | AD7: =MAX(AD8:AD23) -> 4 | AS7: P(C=j | E=i)
B8: 0 | C8: 0.621 | D8: 0 | E8: 0.143136 | F8: 0.320522 | G8: 0.245149 | H8: 0.291193 | O8: =IF(AD8=0,"",SUM(AF8:AO8)) -> 1 | P8: =IF(O8="","",IF(ABS(O8-1)<tol_Pr,"","**P(C|X) ≠ 1**")) ->  | Q8: =IF($C8="","",IF(E8="","",$C8*E8)) -> 0.088887456 | R8: =IF($C8="","",IF(F8="","",$C8*F8)) -> 0.199044162 | S8: 0.152237529 | T8: 0.180830853 | AA8: =IF(C8="","",$C8*O8) -> 0.621 | AD8: =10-COUNTBLANK(E8:N8) -> 4 | AF8: =IF(E8="",0,E8) -> 0.143136 | AG8: =IF(F8="",0,F8) -> 0.320522 | AH8: =IF(G8="",0,G8) -> 0.245149 | AI8: =IF(H8="",0,H8) -> 0.291193 | AJ8: =IF(I8="",0,I8) -> 0 | AK8: =IF(J8="",0,J8) -> 0 | AL8: =IF(K8="",0,K8) -> 0 | AM8: =IF(L8="",0,L8) -> 0 | AN8: =IF(M8="",0,M8) -> 0 | AO8: =IF(N8="",0,N8) -> 0 | AQ8: =MMULT($AF$6:$AO$6,TRANSPOSE(AF8:AO8)) -> 0.71976932 | AS8: =IF(E8="",0,E$8*($C79+1)-E8) -> 0 | AT8: =IF(F8="",0,F$8*($C79+1)-F8) -> 0 | AU8: =IF(G8="",0,G$8*($C79+1)-G8) -> 0 | AV8: =IF(H8="",0,H$8*($C79+1)-H8) -> 0 | AW8: =IF(I8="",0,I$8*($C79+1)-I8) -> 0 | AX8: =IF(J8="",0,J$8*($C79+1)-J8) -> 0 | AY8: =IF(K8="",0,K$8*($C79+1)-K8) -> 0 | AZ8: =IF(L8="",0,L$8*($C79+1)-L8) -> 0 | BA8: =IF(M8="",0,M$8*($C79+1)-M8) -> 0 | BB8: =IF(N8="",0,N$8*($C79+1)-N8) -> 0 | BD8: =MMULT($AS$6:$BB$6,TRANSPOSE(AS8:BB8)) -> 0
B9: 1 | C9: 0.218 | D9: 6.65243 | E9: 0.162325 | F9: 0.316925 | G9: 0.233215 | H9: 0.287535 | O9: 1 | Q9: =IF($C9="","",IF(E9="","",$C9*E9)) -> 0.03538685 | R9: =IF($C9="","",IF(F9="","",$C9*F9)) -> 0.06908965 | S9: =IF($C9="","",IF(G9="","",$C9*G9)) -> 0.05084087 | T9: =IF($C9="","",IF(H9="","",$C9*H9)) -> 0.06268263 | U9: =IF($C9="","",IF(I9="","",$C9*I9)) ->  | V9: =IF($C9="","",IF(J9="","",$C9*J9)) ->  | W9: =IF($C9="","",IF(K9="","",$C9*K9)) ->  | X9: =IF($C9="","",IF(L9="","",$C9*L9)) ->  | Y9: =IF($C9="","",IF(M9="","",$C9*M9)) ->  | Z9: =IF($C9="","",IF(N9="","",$C9*N9)) ->  | AA9: 0.218 | AD9: =10-COUNTBLANK(E9:N9) -> 4 | AF9: 0.162325 | AG9: 0.316925 | AH9: 0.233215 | AI9: 0.287535 | AJ9: 0 | AK9: 0 | AL9: 0 | AM9: 0 | AN9: 0 | AO9: 0 | AQ9: =MMULT($AF$6:$AO$6,TRANSPOSE(AF9:AO9)) -> 0.7262314 | AS9: 0.01802636 | AT9: 0.08693272 | AU9: 0.07567274 | AV9: 0.07936818 | AW9: 0 | AX9: 0 | AY9: 0 | AZ9: 0 | BA9: 0 | BB9: 0 | BD9: =MMULT($AS$6:$BB$6,TRANSPOSE(AS9:BB9)) -> -0.0793220568
B10: 2 | C10: 0.053 | D10: 23.5316 | E10: 0.226816 | F10: 0.354887 | G10: 0.238135 | H10: 0.180162 | O10: 1 | Q10: 0.012021248 | R10: 0.018809011 | S10: 0.012621155 | T10: 0.009548586 | AA10: 0.053 | AD10: =10-COUNTBLANK(E10:N10) -> 4 | AF10: 0.226816 | AG10: 0.354887 | AH10: 0.238135 | AI10: 0.180162 | AJ10: 0 | AK10: 0 | AL10: 0 | AM10: 0 | AN10: 0 | AO10: 0 | AQ10: =MMULT($AF$6:$AO$6,TRANSPOSE(AF10:AO10)) -> 0.77217118 | AS10: 0.00077024 | AT10: 0.15474298 | AU10: 0.15165191 | AV10: 0.28283487 | AW10: 0 | AX10: 0 | AY10: 0 | AZ10: 0 | BA10: 0 | BB10: 0 | BD10: =MMULT($AS$6:$BB$6,TRANSPOSE(AS10:BB10)) -> -0.2177379612
B11: 3 | C11: 0.039 | D11: 33.5394 | E11: 0.215222 | F11: 0.366784 | G11: 0.197623 | H11: 0.220371 | O11: 1 | Q11: 0.008393658 | R11: 0.014304576 | S11: 0.007707297 | T11: 0.008594469 | AA11: 0.039 | AD11: =10-COUNTBLANK(E11:N11) -> 4 | AF11: 0.215222 | AG11: 0.366784 | AH11: 0.197623 | AI11: 0.220371 | AJ11: 0 | AK11: 0 | AL11: 0 | AM11: 0 | AN11: 0 | AO11: 0 | AQ11: =MMULT($AF$6:$AO$6,TRANSPOSE(AF11:AO11)) -> 0.76393724 | AS11: 0.02381512 | AT11: 0.16848774 | AU11: 0.21177583 | AV11: 0.26592131 | AW11: 0 | AX11: 0 | AY11: 0 | AZ11: 0 | BA11: 0 | BB11: 0 | BD11: =MMULT($AS$6:$BB$6,TRANSPOSE(AS11:BB11)) -> -0.2319224756
B12: 4 | C12: 0.025 | D12: 43.6746 | E12: 0.255994 | F12: 0.35099 | G12: 0.198911 | H12: 0.194105 | O12: 1 | Q12: 0.00639985 | R12: 0.00877475 | S12: 0.004972775 | T12: 0.004852625 | AA12: 0.025 | AD12: =10-COUNTBLANK(E12:N12) -> 4 | AF12: 0.255994 | AG12: 0.35099 | AH12: 0.198911 | AI12: 0.194105 | AJ12: 0 | AK12: 0 | AL12: 0 | AM12: 0 | AN12: 0 | AO12: 0 | AQ12: =MMULT($AF$6:$AO$6,TRANSPOSE(AF12:AO12)) -> 0.77915936 | AS12: 0.02741528 | AT12: 0.28364356 | AU12: 0.28648402 | AV12: 0.38245714 | AW12: 0 | AX12: 0 | AY12: 0 | AZ12: 0 | BA12: 0 | BB12: 0 | BD12: =MMULT($AS$6:$BB$6,TRANSPOSE(AS12:BB12)) -> -0.3340161064
B13: 5 | C13: 0.015 | D13: 53.618 | E13: 0.260412 | F13: 0.337192 | G13: 0.186121 | H13: 0.216275 | O13: 1 | Q13: 0.00390618 | R13: 0.00505788 | S13: 0.002791815 | T13: 0.003244125 | AA13: =IF(C13="","",$C13*O13) -> 0.015 | AD13: =10-COUNTBLANK(E13:N13) -> 4 | AF13: 0.260412 | AG13: 0.337192 | AH13: 0.186121 | AI13: 0.216275 | AJ13: 0 | AK13: 0 | AL13: 0 | AM13: 0 | AN13: 0 | AO13: 0 | AQ13: =MMULT($AF$6:$AO$6,TRANSPOSE(AF13:AO13)) -> 0.77463064 | AS13: 0.05162448 | AT13: 0.36154596 | AU13: 0.34830382 | AV13: 0.41852574 | AW13: 0 | AX13: 0 | AY13: 0 | AZ13: 0 | BA13: 0 | BB13: 0 | BD13: =MMULT($AS$6:$BB$6,TRANSPOSE(AS13:BB13)) -> -0.3855335224
B14: 6 | C14: 0.029 | D14: 80.8767 | E14: 0.266887 | F14: 0.333104 | G14: 0.205422 | H14: 0.194587 | O14: 1 | Q14: 0.007739723 | R14: 0.009660016 | S14: 0.005957238 | T14: 0.005643023 | AA14: =IF(C14="","",$C14*O14) -> 0.029 | AD14: =10-COUNTBLANK(E14:N14) -> 4 | AF14: 0.266887 | AG14: 0.333104 | AH14: 0.205422 | AI14: 0.194587 | AJ14: 0 | AK14: 0 | AL14: 0 | AM14: 0 | AN14: 0 | AO14: 0 | AQ14: =MMULT($AF$6:$AO$6,TRANSPOSE(AF14:AO14)) -> 0.77956638 | AS14: 0.05660036 | AT14: 0.39127572 | AU14: 0.34861474 | AV14: 0.46350918 | AW14: 0 | AX14: 0 | AY14: 0 | AZ14: 0 | BA14: 0 | BB14: 0 | BD14: =MMULT($AS$6:$BB$6,TRANSPOSE(AS14:BB14)) -> -0.4128877168
B15: 7 | AD15: 0 | AF15: 0 | AG15: 0 | AH15: 0 | AI15: 0 | AJ15: 0 | AK15: 0 | AL15: 0 | AM15: 0 | AN15: 0 | AO15: 0 | AQ15: =MMULT($AF$6:$AO$6,TRANSPOSE(AF15:AO15)) -> 0 | AS15: 0 | AT15: 0 | AU15: 0 | AV15: 0 | AW15: 0 | AX15: 0 | AY15: 0 | AZ15: 0 | BA15: 0 | BB15: 0 | BD15: =MMULT($AS$6:$BB$6,TRANSPOSE(AS15:BB15)) -> 0
B16: 8 | AD16: 0 | AF16: 0 | AG16: 0 | AH16: 0 | AI16: 0 | AJ16: 0 | AK16: 0 | AL16: 0 | AM16: 0 | AN16: 0 | AO16: 0 | AQ16: =MMULT($AF$6:$AO$6,TRANSPOSE(AF16:AO16)) -> 0 | AS16: 0 | AT16: 0 | AU16: 0 | AV16: 0 | AW16: 0 | AX16: 0 | AY16: 0 | AZ16: 0 | BA16: 0 | BB16: 0 | BD16: =MMULT($AS$6:$BB$6,TRANSPOSE(AS16:BB16)) -> 0
B17: 9 | AD17: 0 | AF17: 0 | AG17: 0 | AH17: 0 | AI17: 0 | AJ17: 0 | AK17: 0 | AL17: 0 | AM17: 0 | AN17: 0 | AO17: 0 | AQ17: =MMULT($AF$6:$AO$6,TRANSPOSE(AF17:AO17)) -> 0 | AS17: 0 | AT17: 0 | AU17: 0 | AV17: 0 | AW17: 0 | AX17: 0 | AY17: 0 | AZ17: 0 | BA17: 0 | BB17: 0 | BD17: =MMULT($AS$6:$BB$6,TRANSPOSE(AS17:BB17)) -> 0
B18: 10 | Q18: =IF($C18="","",IF(E18="","",$C18*E18)) ->  | AD18: 0 | AF18: 0 | AG18: 0 | AH18: 0 | AI18: 0 | AJ18: 0 | AK18: 0 | AL18: 0 | AM18: 0 | AN18: 0 | AO18: 0 | AQ18: =MMULT($AF$6:$AO$6,TRANSPOSE(AF18:AO18)) -> 0 | AS18: 0 | AT18: 0 | AU18: 0 | AV18: 0 | AW18: 0 | AX18: 0 | AY18: 0 | AZ18: 0 | BA18: 0 | BB18: 0 | BD18: =MMULT($AS$6:$BB$6,TRANSPOSE(AS18:BB18)) -> 0
B19: 11 | AD19: 0 | AF19: 0 | AG19: 0 | AH19: 0 | AI19: 0 | AJ19: 0 | AK19: 0 | AL19: 0 | AM19: 0 | AN19: 0 | AO19: 0 | AQ19: =MMULT($AF$6:$AO$6,TRANSPOSE(AF19:AO19)) -> 0 | AS19: 0 | AT19: 0 | AU19: 0 | AV19: 0 | AW19: 0 | AX19: 0 | AY19: 0 | AZ19: 0 | BA19: 0 | BB19: 0 | BD19: =MMULT($AS$6:$BB$6,TRANSPOSE(AS19:BB19)) -> 0
B20: 12 | AD20: 0 | AF20: 0 | AG20: 0 | AH20: 0 | AI20: 0 | AJ20: 0 | AK20: 0 | AL20: 0 | AM20: 0 | AN20: 0 | AO20: 0 | AQ20: =MMULT($AF$6:$AO$6,TRANSPOSE(AF20:AO20)) -> 0 | AS20: 0 | AT20: 0 | AU20: 0 | AV20: 0 | AW20: 0 | AX20: 0 | AY20: 0 | AZ20: 0 | BA20: 0 | BB20: 0 | BD20: =MMULT($AS$6:$BB$6,TRANSPOSE(AS20:BB20)) -> 0
B21: 13 | AD21: 0 | AF21: 0 | AG21: 0 | AH21: 0 | AI21: 0 | AJ21: 0 | AK21: 0 | AL21: 0 | AM21: 0 | AN21: 0 | AO21: 0 | AQ21: =MMULT($AF$6:$AO$6,TRANSPOSE(AF21:AO21)) -> 0 | AS21: 0 | AT21: 0 | AU21: 0 | AV21: 0 | AW21: 0 | AX21: 0 | AY21: 0 | AZ21: 0 | BA21: 0 | BB21: 0 | BD21: =MMULT($AS$6:$BB$6,TRANSPOSE(AS21:BB21)) -> 0
B22: 14 | AD22: 0 | AF22: 0 | AG22: 0 | AH22: 0 | AI22: 0 | AJ22: 0 | AK22: 0 | AL22: 0 | AM22: 0 | AN22: 0 | AO22: 0 | AQ22: =MMULT($AF$6:$AO$6,TRANSPOSE(AF22:AO22)) -> 0 | AS22: 0 | AT22: 0 | AU22: 0 | AV22: 0 | AW22: 0 | AX22: 0 | AY22: 0 | AZ22: 0 | BA22: 0 | BB22: 0 | BD22: =MMULT($AS$6:$BB$6,TRANSPOSE(AS22:BB22)) -> 0
B23: 15 | AD23: 0 | AF23: 0 | AG23: 0 | AH23: 0 | AI23: 0 | AJ23: 0 | AK23: 0 | AL23: 0 | AM23: 0 | AN23: 0 | AO23: 0 | AQ23: =MMULT($AF$6:$AO$6,TRANSPOSE(AF23:AO23)) -> 0 | AS23: 0 | AT23: 0 | AU23: 0 | AV23: 0 | AW23: 0 | AX23: 0 | AY23: 0 | AZ23: 0 | BA23: 0 | BB23: 0 | BD23: =MMULT($AS$6:$BB$6,TRANSPOSE(AS23:BB23)) -> 0
C24: =IF(COUNT(C8:C23)=0,"",SUM(C8:C23)) -> 1 | D24: =IF(COUNT(C8:C23)=0,"",IF(ABS(C24-1)<tol_Pr,"","**Warning: P(X) must sum to one**")) ->  | P24: =IF(Q24="",""," P(C) = ") -> P(C) = | Q24: =IF(Q8="","",SUM(Q8:Q23)) -> 0.162734965 | R24: =IF(R8="","",SUM(R8:R23)) -> 0.324740045 | S24: 0.237128679 | T24: 0.275396311 | Z24: =IF(Z8="","",SUM(Z8:Z23)) ->  | AA24: =SUM(Q8:Z23) -> 1
C29: =IF(COUNTIF(C33:C47,">0")=COUNTIF(O9:O23,">0"),"","**Warning: mismatch in levels of RR_Obs & P(C|X)**") ->  | J29: Smooth with prior weights | O29: Total
B30: Multiplicative model: RR_X,C = RR_X * RR_C | J30: 0.1 | K30: 0.2 | L30: 0.4 | M30: 0.2 | N30: 0.1 | O30: =SUMIF(J30:N30,">0") -> 1
B31: Level (X) | C31: RR_Obs | D31: Wgt | E31: RR_X(i) | F31: Bias | J31: Level (X) | K31: Exp score | L31: RR_X | M31: RR_Obs | N31: =IF(RegSm!$D$2<2,"",IF(COUNTBLANK(J30:N30)<5,IF(SUMIF(J30:N30,"<0")," Neg wgts set to 0","")," Use default wgts (=0.2)")) -> 
B32: 0 | C32: 1 | D32: 250 | E32: =IF(C32="","",IF(AD8=0,"",C32/(AQ8/$AQ$8))) -> 1 | F32: =IF(C32="","",IF(E32="","",C32/E32)) -> 1 | J32: 0 | K32: =IF(RegSm!$D$2<2,"",IF(C32="","",IF(D8="","",D8))) -> 0 | L32: =IF(RegSm!$D$2<2,"",IF(E32="","",RegSm!D148)) -> 1.09796746 | M32: =IF(RegSm!$D$2<2,"",IF(E32="","",RegSm!E148)) -> 1.111
B33: 1 | C33: 1.26 | D33: 678.5925385 | E33: 1.248788393 | F33: =IF(C33="","",IF(E33="","",C33/E33)) -> 1.008977988 | J33: 1 | K33: =IF(RegSm!$D$2<2,"",IF(C33="","",IF(D9="","",D9))) -> 6.65243 | L33: =IF(RegSm!$D$2<2,"",IF(E33="","",RegSm!D149)) -> 1.253279621 | M33: =IF(RegSm!$D$2<2,"",IF(E33="","",RegSm!E149)) -> 1.289
B34: 2 | C34: 1.59 | D34: 269.8590076 | E34: 1.482097815 | F34: =IF(C34="","",IF(E34="","",C34/E34)) -> 1.072803687 | J34: 2 | K34: =IF(RegSm!$D$2<2,"",IF(C34="","",IF(D10="","",D10))) -> 23.5316 | L34: =IF(RegSm!$D$2<2,"",IF(E34="","",RegSm!D150)) -> 1.440194008 | M34: =IF(RegSm!$D$2<2,"",IF(E34="","",RegSm!E150)) -> 1.52
B35: 3 | C35: 1.67 | D35: 204.8442346 | E35: 1.573447008 | F35: 1.061363994 | J35: 3 | K35: =IF(RegSm!$D$2<2,"",IF(C35="","",IF(D11="","",D11))) -> 33.5394 | L35: =IF(RegSm!$D$2<2,"",IF(E35="","",RegSm!D151)) -> 1.619053491 | M35: =IF(RegSm!$D$2<2,"",IF(E35="","",RegSm!E151)) -> 1.726
B36: 4 | C36: 1.98 | D36: 174.8918512 | E36: 1.829078012 | F36: 1.082512603 | J36: 4 | K36: =IF(RegSm!$D$2<2,"",IF(C36="","",IF(D12="","",D12))) -> 43.6746 | L36: =IF(RegSm!$D$2<2,"",IF(E36="","",RegSm!D152)) -> 1.808316303 | M36: =IF(RegSm!$D$2<2,"",IF(E36="","",RegSm!E152)) -> 1.947
B37: 5 | C37: 2.18 | D37: 80.34298061 | E37: 2.025606833 | F37: 1.076220698 | J37: 5 | K37: =IF(RegSm!$D$2<2,"",IF(C37="","",IF(D13="","",D13))) -> 53.618 | L37: =IF(RegSm!$D$2<2,"",IF(E37="","",RegSm!D153)) -> 1.959396681 | M37: =IF(RegSm!$D$2<2,"",IF(E37="","",RegSm!E153)) -> 2.113
B38: 6 | C38: 2.26 | D38: 192.4550623 | E38: 2.08664548 | F38: 1.08307809 | J38: 6 | K38: =IF(RegSm!$D$2<2,"",IF(C38="","",IF(D14="","",D14))) -> 80.8767 | L38: =IF(RegSm!$D$2<2,"",IF(E38="","",RegSm!D154)) -> 2.048681004 | M38: =IF(RegSm!$D$2<2,"",IF(E38="","",RegSm!E154)) -> 2.216
B39: 7 | J39: 7 | K39: =IF(RegSm!$D$2<2,"",IF(C39="","",IF(D15="","",D15))) ->  | L39: =IF(RegSm!$D$2<2,"",IF(E39="","",RegSm!D155)) ->  | M39: =IF(RegSm!$D$2<2,"",IF(E39="","",RegSm!E155)) -> 
B40: 8 | J40: 8 | K40: =IF(RegSm!$D$2<2,"",IF(C40="","",IF(D16="","",D16))) ->  | L40: =IF(RegSm!$D$2<2,"",IF(E40="","",RegSm!D156)) ->  | M40: =IF(RegSm!$D$2<2,"",IF(E40="","",RegSm!E156)) -> 
B41: 9 | J41: 9 | K41: =IF(RegSm!$D$2<2,"",IF(C41="","",IF(D17="","",D17))) ->  | L41: =IF(RegSm!$D$2<2,"",IF(E41="","",RegSm!D157)) ->  | M41: =IF(RegSm!$D$2<2,"",IF(E41="","",RegSm!E157)) -> 
B42: 10 | J42: 10 | K42: =IF(RegSm!$D$2<2,"",IF(C42="","",IF(D18="","",D18))) ->  | L42: =IF(RegSm!$D$2<2,"",IF(E42="","",RegSm!D158)) ->  | M42: =IF(RegSm!$D$2<2,"",IF(E42="","",RegSm!E158)) -> 
B43: 11 | J43: 11 | K43: =IF(RegSm!$D$2<2,"",IF(C43="","",IF(D19="","",D19))) ->  | L43: =IF(RegSm!$D$2<2,"",IF(E43="","",RegSm!D159)) ->  | M43: =IF(RegSm!$D$2<2,"",IF(E43="","",RegSm!E159)) -> 
B44: 12 | J44: 12 | K44: =IF(RegSm!$D$2<2,"",IF(C44="","",IF(D20="","",D20))) ->  | L44: =IF(RegSm!$D$2<2,"",IF(E44="","",RegSm!D160)) ->  | M44: =IF(RegSm!$D$2<2,"",IF(E44="","",RegSm!E160)) -> 
B45: 13 | J45: 13 | K45: =IF(RegSm!$D$2<2,"",IF(C45="","",IF(D21="","",D21))) ->  | L45: =IF(RegSm!$D$2<2,"",IF(E45="","",RegSm!D161)) ->  | M45: =IF(RegSm!$D$2<2,"",IF(E45="","",RegSm!E161)) -> 
B46: 14 | J46: 14 | K46: =IF(RegSm!$D$2<2,"",IF(C46="","",IF(D22="","",D22))) ->  | L46: =IF(RegSm!$D$2<2,"",IF(E46="","",RegSm!D162)) ->  | M46: =IF(RegSm!$D$2<2,"",IF(E46="","",RegSm!E162)) -> 
B47: 15 | J47: 15 | K47: =IF(RegSm!$D$2<2,"",IF(C47="","",IF(D23="","",D23))) ->  | L47: =IF(RegSm!$D$2<2,"",IF(E47="","",RegSm!D163)) ->  | M47: =IF(RegSm!$D$2<2,"",IF(E47="","",RegSm!E163)) -> 
L48: =IF(RegSm!$D$2>1,"Note: plots use the Excel 'smooth line' style","") -> Note: plots use the Excel 'smooth line' style
J49: =IF(RegSm!$D$2<2,"",IF(RegSm!B2<=1,"",IF( ((RegSm!D2 = RegSm!B2)*(RegSm!B3 = RegSm!B2))=1,"","** Error: Mismatch in RR_Obs, RR_X & X scores **"))) -> 
J51: Weighted LS Regression (fitted RRs)
J52: With intrcpt | K52: 0 | L52: 1=intrcpt; 0=no intrcpt | N52: =IF(K52 <>1,IF(K52<>0,"**Error: Value must = 1 or 0**",""),"") -> 
I53: Estimates | J53: RR = exp(α + β*x) | L53: RR = 1 + α + β*x | N53: =IF(RegSm!$D$2<2,"",IF(RegSm!A73=16," Use default weights (=1.0)",IF(COUNTIF(C32:C47,">0")<=COUNTIF(D32:D47,">=0"),"","Neg/blank wgts set to zero"))) -> 
I54: α | J54: =IF(RegSm!$D$2<2,"",IF(J49="",RegSm!C91,"")) -> 0 | K54: =IF(RegSm!$D$2<2,"",IF(J49="",RegSm!E91,"")) -> 0 | L54: =IF(RegSm!$D$2<2,"",IF(J49="",RegSm!G91,"")) -> 0 | M54: =IF(RegSm!$D$2<2,"",IF(J49="",RegSm!I91,"")) -> 0
I55: β | J55: =IF(RegSm!$D$2<2,"",IF(J49="",RegSm!D91,"")) -> 0.01151537079 | K55: =IF(RegSm!$D$2<2,"",IF(J49="",RegSm!F91,"")) -> 0.01288553523 | L55: =IF(RegSm!$D$2<2,"",IF(J49="",RegSm!H91,"")) -> 0.01602499388 | M55: =IF(RegSm!$D$2<2,"",IF(J49="",RegSm!J91,"")) -> 0.01867366699
I56: exp(β) | J56: =IF(RegSm!$D$2<2,"",IF(J49="",EXP(J55),"")) -> 1.011581928 | K56: =IF(RegSm!$D$2<2,"",IF(J49="",EXP(K55),"")) -> 1.012968911
C76: =IF(COUNTIF(C80:C94,">=-1")=COUNTIF(O9:O23,">0"),"","**Warning: mismatch in levels of ERR_Obs & P(C|X)**") ->  | J76: Smooth with prior weights | O76: Total
B77: Additive model: RR_X,C = 1 + ERR_X + ERR_C | J77: 0.1 | K77: 0.2 | L77: 0.4 | M77: 0.2 | N77: 0.1 | O77: =SUM(J77:N77) -> 1
B78: Level (X) | C78: ERR_Obs | D78: Wgt | E78: ERR_X(i) | J78: Level (X) | K78: Exp score | L78: ERR_X | M78: ERR_Obs | N78: =IF(RegSm!$D$24<2,"",IF(COUNTBLANK(J77:N77)<5,""," Use default wgts (=0.2)")) -> 
B79: 0 | C79: 0 | D79: 250 | E79: =IF(C79="","",IF(AD8=0,"",BD8 + C79)) -> 0 | J79: 0 | K79: =IF(RegSm!$D$24<2,"",IF(C79="","",IF(D8="","",D8))) -> 0 | L79: =IF(RegSm!$D$24<2,"",IF(E79="","",RegSm!D177)) -> 0.07336179252 | M79: =IF(RegSm!$D$24<2,"",IF(E79="","",RegSm!E177)) -> 0.111
B80: 1 | C80: 0.26 | D80: 678.5925385 | E80: 0.1806779432 | J80: 1 | K80: =IF(RegSm!$D$24<2,"",IF(C80="","",IF(D9="","",D9))) -> 6.65243 | L80: =IF(RegSm!$D$24<2,"",IF(E80="","",RegSm!D178)) -> 0.1905313375 | M80: =IF(RegSm!$D$24<2,"",IF(E80="","",RegSm!E178)) -> 0.289
B81: 2 | C81: 0.59 | D81: 269.8590076 | E81: 0.3722620388 | J81: 2 | K81: =IF(RegSm!$D$24<2,"",IF(C81="","",IF(D10="","",D10))) -> 23.5316 | L81: =IF(RegSm!$D$24<2,"",IF(E81="","",RegSm!D179)) -> 0.3372542984 | M81: =IF(RegSm!$D$24<2,"",IF(E81="","",RegSm!E179)) -> 0.52
B82: 3 | C82: 0.67 | D82: 204.8442346 | E82: 0.4380775244 | J82: 3 | K82: =IF(RegSm!$D$24<2,"",IF(C82="","",IF(D11="","",D11))) -> 33.5394 | L82: =IF(RegSm!$D$24<2,"",IF(E82="","",RegSm!D180)) -> 0.4763946383 | M82: =IF(RegSm!$D$24<2,"",IF(E82="","",RegSm!E180)) -> 0.726
B83: 4 | C83: 0.98 | D83: 174.8918512 | E83: 0.6459838936 | J83: 4 | K83: =IF(RegSm!$D$24<2,"",IF(C83="","",IF(D12="","",D12))) -> 43.6746 | L83: =IF(RegSm!$D$24<2,"",IF(E83="","",RegSm!D181)) -> 0.62683979 | M83: =IF(RegSm!$D$24<2,"",IF(E83="","",RegSm!E181)) -> 0.947
B84: 5 | C84: 1.18 | D84: 80.34298061 | E84: 0.7944664776 | J84: 5 | K84: =IF(RegSm!$D$24<2,"",IF(C84="","",IF(D13="","",D13))) -> 53.618 | L84: =IF(RegSm!$D$24<2,"",IF(E84="","",RegSm!D182)) -> 0.7449248072 | M84: =IF(RegSm!$D$24<2,"",IF(E84="","",RegSm!E182)) -> 1.113
B85: 6 | C85: 1.26 | D85: 192.4550623 | E85: 0.8471122832 | J85: 6 | K85: =IF(RegSm!$D$24<2,"",IF(C85="","",IF(D14="","",D14))) -> 80.8767 | L85: =IF(RegSm!$D$24<2,"",IF(E85="","",RegSm!D183)) -> 0.8164702831 | M85: =IF(RegSm!$D$24<2,"",IF(E85="","",RegSm!E183)) -> 1.216
B86: 7 | J86: 7 | K86: =IF(RegSm!$D$24<2,"",IF(C86="","",IF(D15="","",D15))) ->  | L86: =IF(RegSm!$D$24<2,"",IF(E86="","",RegSm!D184)) ->  | M86: =IF(RegSm!$D$24<2,"",IF(E86="","",RegSm!E184)) -> 
B87: 8 | J87: 8 | K87: =IF(RegSm!$D$24<2,"",IF(C87="","",IF(D16="","",D16))) ->  | L87: =IF(RegSm!$D$24<2,"",IF(E87="","",RegSm!D185)) ->  | M87: =IF(RegSm!$D$24<2,"",IF(E87="","",RegSm!E185)) -> 
B88: 9 | J88: 9 | K88: =IF(RegSm!$D$24<2,"",IF(C88="","",IF(D17="","",D17))) ->  | L88: =IF(RegSm!$D$24<2,"",IF(E88="","",RegSm!D186)) ->  | M88: =IF(RegSm!$D$24<2,"",IF(E88="","",RegSm!E186)) -> 
B89: 10 | J89: 10 | K89: =IF(RegSm!$D$24<2,"",IF(C89="","",IF(D18="","",D18))) ->  | L89: =IF(RegSm!$D$24<2,"",IF(E89="","",RegSm!D187)) ->  | M89: =IF(RegSm!$D$24<2,"",IF(E89="","",RegSm!E187)) -> 
B90: 11 | J90: 11 | K90: =IF(RegSm!$D$24<2,"",IF(C90="","",IF(D19="","",D19))) ->  | L90: =IF(RegSm!$D$24<2,"",IF(E90="","",RegSm!D188)) ->  | M90: =IF(RegSm!$D$24<2,"",IF(E90="","",RegSm!E188)) -> 
B91: 12 | J91: 12 | K91: =IF(RegSm!$D$24<2,"",IF(C91="","",IF(D20="","",D20))) ->  | L91: =IF(RegSm!$D$24<2,"",IF(E91="","",RegSm!D189)) ->  | M91: =IF(RegSm!$D$24<2,"",IF(E91="","",RegSm!E189)) -> 
B92: 13 | J92: 13 | K92: =IF(RegSm!$D$24<2,"",IF(C92="","",IF(D21="","",D21))) ->  | L92: =IF(RegSm!$D$24<2,"",IF(E92="","",RegSm!D190)) ->  | M92: =IF(RegSm!$D$24<2,"",IF(E92="","",RegSm!E190)) -> 
B93: 14 | J93: 14 | K93: =IF(RegSm!$D$24<2,"",IF(C93="","",IF(D22="","",D22))) ->  | L93: =IF(RegSm!$D$24<2,"",IF(E93="","",RegSm!D191)) ->  | M93: =IF(RegSm!$D$24<2,"",IF(E93="","",RegSm!E191)) -> 
B94: 15 | J94: 15 | K94: =IF(RegSm!$D$24<2,"",IF(C94="","",IF(D23="","",D23))) ->  | L94: =IF(RegSm!$D$24<2,"",IF(E94="","",RegSm!D192)) ->  | M94: =IF(RegSm!$D$24<2,"",IF(E94="","",RegSm!E192)) -> 
L95: =IF(RegSm!$D$24>1,"Note: plots use the Excel 'smooth line' style","") -> Note: plots use the Excel 'smooth line' style
J96: =IF(RegSm!$D$24<2,"",IF(RegSm!B24<=1,"",IF( ((RegSm!D24 = RegSm!B24)*(RegSm!B25 = RegSm!B24) )=1,"","** Error: Mismatch in ERR_Obs, ERR_X & X scores **"))) -> 
J98: Weighted LS Regression (fitted RRs)
I99: Estimates | J99: With intrcpt | K99: 0 | L99: 1=intrcpt; 0=no intrcpt | N99: =IF(K99 <>1,IF(K99<>0," **Error: Value must = 1 or 0**",""),"") -> 
I100: α | J100: ERR = α + β*x | N100: =IF(RegSm!$D$24<2,"",IF(RegSm!A119=16," Use default weights (=1.0)",IF(COUNTIF(C79:C94,">-1")<=COUNTIF(D79:D94,">-1"),"","Neg/blank wgts set to zero"))) -> 
I101: β | J101: =IF(RegSm!$D$24<2,"",IF(J96="",RegSm!C137,"")) -> 0 | K101: =IF(RegSm!$D$24<2,"",IF(J96="",RegSm!E137,"")) -> 0
J102: =IF(RegSm!$D$24<2,"",IF(J96="",RegSm!D137,"")) -> 0.01241709826 | K102: =IF(RegSm!$D$24<2,"",IF(J96="",RegSm!F137,"")) -> 0.01867366699

Sheet Solve_P(C|X)_BinC
B2: Solve for P(C=1|X=i) given RR_Obs, RR_X & RR_C (mult) | K2: Solve for P(C=1|X=i) given ERR_Obs, ERR_X & ERR_C (add)
F4: RR_C | G4: 2 | H4: =IF(G4="","",IF(((G4<=0)+(G4=1))>0,"**Invalid value**","")) ->  | O4: ERR_C | P4: 2 | Q4: =IF(P4="","",IF(((P4=0)+(P4<=-1))>0,"**Invalid value**","")) -> 
B5: (optional) | C5: =IF(C7=1,IF(D7=1," ","** Lowest category RR must be 1.0 **"),"** Lowest category RR must be 1.0 **") ->  | K5: (optional) | L5: =IF(L7=0,IF(M7=0," ","** Lowest category ERR must be 0.0 **"),"** Lowest category ERR must be 0.0 **") -> 
B6: P(X) | C6: RR_Obs | D6: RR_X | F6: C=0 | G6: C=1 | H6: OR_X,C | I6: =IF(COUNTBLANK(I7:I22)=16,"","Warning:") ->  | K6: P(X) | L6: ERR_Obs | M6: ERR_X | O6: C=0 | P6: C=1 | Q6: OR_X,C | R6: =IF(COUNTBLANK(R7:R22)=16,"","Warning:") -> 
B7: 0.5473 | C7: 1 | D7: 1 | E7: P(C | X=0) | F7: =IF(($G$31+$G$33)>0,"",IF( ((G7="")+(F31=0))>0,"",1-G7)) -> 0.5 | G7: 0.5 | H7: =IF(($G$31+$G$33)>0,"",IF( F7="","",(G7/F7)/($G$7/$F$7))) -> 1 | I7: =IF(G7="","",IF((G7<1)*(G7>0)=1,"","** Invalid value **")) ->  | K7: 0.5473 | L7: 0 | M7: 0 | N7: P(C | X=0) | O7: =IF(($P$31+$P$33)>0,"",IF(((P7="")+(O31=0)>0),"",1-P7)) -> 0.5 | P7: 0.5 | Q7: =IF(($P$31+$P$33)>0,"",IF(O7="","",(P7/O7)/($P$7/$O$7))) -> 1 | R7: =IF(P7="","",IF((P7<1)*(P7>0)=1,"","** Invalid value **")) -> 
B8: 0.2146 | C8: 1.004738192 | D8: 1 | E8: P(C | X=1) | F8: =IF($F$31<>$F$32,"",IF(($F$33>0)+($F$34>0)>0,"",IF(G8="","",1-G8))) -> 0.4928927121 | G8: =IF(($G$31+$G$33)>0,"",IF(C8="","",((C8/D8)*($F$7+$G$7*$G$4) -1)/($G$4-1) )) -> 0.5071072879 | H8: =IF(($G$31+$G$33)>0,"",IF( F8="","",(G8/F8)/($G$7/$F$7))) -> 1.028839087 | I8: =IF(G8="","",IF((G8<1)*(G8>0)=1,"","** Invalid value **")) ->  | K8: 0.2146 | L8: 0.004738191903 | M8: 0 | N8: P(C | X=1) | O8: =IF(($P$31+$P$33)>0,"",IF(P8="","",1-P8)) -> 0.4952618081 | P8: =IF(($P$31+$P$33)>0,"",IF(L8="","",($P$7*(L8+1)*$P$4+L8-M8)/$P$4)) -> 0.5047381919 | Q8: =IF(($P$31+$P$33)>0,"",IF(O8="","",(P8/O8)/($P$7/$O$7))) -> 1.01913409 | R8: =IF(P8="","",IF((P8<1)*(P8>0)=1,"","** Invalid value **")) -> 
B9: 0.1115 | C9: 1.014853189 | D9: 1 | E9: P(C | X=2) | F9: 0.4777202166 | G9: =IF(($G$31+$G$33)>0,"",IF(C9="","",((C9/D9)*($F$7+$G$7*$G$4) -1)/($G$4-1) )) -> 0.5222797834 | H9: 1.093275447 | K9: 0.1115 | L9: 0.01485318895 | M9: 0 | N9: P(C | X=2) | O9: =IF(($P$31+$P$33)>0,"",IF(P9="","",1-P9)) -> 0.4851468111 | P9: =IF(($P$31+$P$33)>0,"",IF(L9="","",($P$7*(L9+1)*$P$4+L9-M9)/$P$4)) -> 0.5148531889 | Q9: 1.061231729
B10: 0.0612 | C10: 1.033031595 | D10: 1 | E10: P(C | X=3) | F10: 0.450452607 | G10: 0.549547393 | H10: 1.219989372 | K10: 0.0612 | L10: 0.03303159535 | M10: 0 | N10: P(C | X=3) | O10: 0.4669684046 | P10: 0.5330315954 | Q10: 1.141472507
B11: 0.0417 | C11: 1.062710335 | D11: 1 | E11: P(C | X=4) | F11: 0.4059344981 | G11: 0.5940655019 | H11: 1.463451628 | K11: 0.0417 | L11: 0.06271033463 | M11: 0 | N11: P(C | X=4) | O11: 0.4372896654 | P11: 0.5627103346 | Q11: 1.286813705
B12: 0.0126 | C12: 1.137276965 | D12: 1 | E12: P(C | X=5) | F12: 0.2940845525 | G12: 0.7059154475 | H12: 2.400382616 | K12: 0.0126 | L12: 0.137276965 | M12: 0 | N12: P(C | X=5) | O12: 0.362723035 | P12: 0.637276965 | Q12: 1.75692444
B13: 0.0064 | C13: 1.160198423 | D13: 1 | E13: P(C | X=6) | F13: 0.2597023661 | G13: 0.7402976339 | H13: 2.85056176 | K13: 0.0064 | L13: 0.1601984226 | M13: 0 | N13: P(C | X=6) | O13: 0.3398015774 | P13: 0.6601984226 | Q13: 1.942893931
B14: 0.0026 | C14: 1.227434541 | D14: 1 | E14: P(C | X=7) | F14: 0.1588481892 | G14: 0.8411518108 | H14: 5.295318852 | K14: 0.0026 | L14: 0.2274345405 | M14: 0 | N14: P(C | X=7) | O14: 0.2725654595 | P14: 0.7274345405 | Q14: 2.668843448
B15: 0.0021 | C15: 1.323817764 | D15: 1 | E15: P(C | X=8) | F15: 0.01427335448 | G15: 0.9857266455 | H15: 69.06061549 | K15: 0.0021 | L15: 0.3238177637 | M15: 0 | N15: P(C | X=8) | O15: 0.1761822363 | P15: 0.8238177637 | Q15: 4.675941121
E16: P(C | X=9) | N16: P(C | X=9)
E17: P(C | X=10) | N17: P(C | X=10)
E18: P(C | X=11) | N18: P(C | X=11)
E19: P(C | X=12) | N19: P(C | X=12)
E20: P(C | X=13) | N20: P(C | X=13) | P20: =IF(($P$31+$P$33)>0,"",IF(L20="","",($P$7*(L20+1)*$P$4+L20-M20)/$P$4)) ->  | Q20: `
E21: P(C | X=14) | N21: P(C | X=14)
E22: P(C | X=15) | N22: P(C | X=15) | P22: =IF(($P$31+$P$33)>0,"",IF(L22="","",($P$7*(L22+1)*$P$4+L22-M22)/$P$4)) -> 
B23: =IF(B45=16,"",SUM(B7:B22)) -> 1 | E23: =IF(B23=1,IF(B45=C45,"P(C)=",""),"") -> P(C)= | F23: =IF(B23=1,IF(G23="","",1-G23),"") -> 0.4829962881 | G23: =IF(B23=1,IF(B45=C45,D28,""),"") -> 0.5170037119 | K23: =IF(K45=16,"",SUM(K7:K22)) -> 1 | N23: =IF(K23=1,IF(K45=L45,"P(C)=",""),"") -> P(C)= | O23: =IF(P23="","",IF(K45=L45,1-P23,"")) -> 0.4886641921 | P23: =IF(K23=1,IF(K45=L45,M28,""),"") -> 0.5113358079
B24: =IF(B45=16,"",IF(ABS(B23-1)<tol_Pr,"","**Warning: P(X) must sum to one**")) ->  | F24: =IF(($G$31+$G$33)>0,"",IF(B23=1,IF(B45=C45,"","**P(C) omitted, mismatch of levels P(X) & P(C|X)**"),"")) ->  | K24: =IF(K45=16,"",IF(ABS(K23-1)<tol_Pr,"","**Warning: P(X) must sum to one**")) ->  | O24: =IF(($P$31+$P$33)>0,"",IF(K23=1,IF(K45=L45,"","**P(C) omitted, mismatch of levels P(X) & P(C|X)**"),"")) -> 
C27: P(C|X)*P(X) | D27: P(C) | L27: P(C|X)P(X) | M27: P(C)
B28: =IF(B7="",0,B7) -> 0.5473 | C28: =IF(G7="",0,G7) -> 0.5 | D28: =MMULT(TRANSPOSE(B28:B43),C28:C43) -> 0.5170037119 | K28: =IF(K7="",0,K7) -> 0.5473 | L28: =IF(P7="",0,P7) -> 0.5 | M28: =MMULT(TRANSPOSE(K28:K43),L28:L43) -> 0.5113358079
B29: 0.2146 | C29: 0.5071072879 | K29: =IF(K8="",0,K8) -> 0.2146 | L29: =IF(P8="",0,P8) -> 0.5047381919
B30: 0.1115 | C30: 0.5222797834 | K30: 0.1115 | L30: 0.5148531889
B31: 0.0612 | C31: 0.549547393 | E31: Display= | F31: =15-COUNTBLANK(C8:C22) -> 8 | G31: =IF(F31<>F32,1,0) -> 0 | K31: 0.0612 | L31: 0.5330315954 | N31: Display= | O31: =15-COUNTBLANK(L8:L22) -> 8 | P31: =IF(O31<>O32,1,0) -> 0
B32: 0.0417 | C32: 0.5940655019 | F32: =15-COUNTBLANK(D8:D22) -> 8 | K32: 0.0417 | L32: 0.5627103346 | O32: =15-COUNTBLANK(M8:M22) -> 8
B33: 0.0126 | C33: 0.7059154475 | F33: =COUNTBLANK(G4)+COUNTBLANK(G7) -> 0 | G33: =IF((F33>0)+(F34>0)>0,1,0) -> 0 | K33: 0.0126 | L33: 0.637276965 | O33: =COUNTBLANK(P4)+COUNTBLANK(P7) -> 0 | P33: =IF((O33>0)+(O34>0)>0,1,0) -> 0
B34: 0.0064 | C34: 0.7402976339 | F34: =IF(G4="",0,IF((G7<=0)+(G7>=1)+(G4=1)+(G4<=0)>0,1,0)) -> 0 | K34: 0.0064 | L34: 0.6601984226 | O34: =IF(P4="",0,IF((P7<=0)+(P7>=1)+(P4=0)+(P4<=-1)>0,1,0)) -> 0
B35: 0.0026 | C35: 0.8411518108 | K35: 0.0026 | L35: 0.7274345405
B36: 0.0021 | C36: 0.9857266455 | K36: 0.0021 | L36: 0.8238177637
B37: 0 | C37: 0 | K37: 0 | L37: 0
B38: 0 | C38: 0 | K38: 0 | L38: =IF(P17="",0,P17) -> 0
B39: 0 | C39: 0 | K39: =IF(K18="",0,K18) -> 0 | L39: 0
B40: 0 | C40: 0 | K40: 0 | L40: 0
B41: 0 | C41: 0 | K41: 0 | L41: 0
B42: 0 | C42: 0 | K42: 0 | L42: 0
B43: 0 | C43: 0 | K43: =IF(K22="",0,K22) -> 0 | L43: 0
B45: =COUNTIF(B28:B43,"=0") -> 7 | C45: =COUNTIF(C28:C43,"=0") -> 7 | K45: =COUNTIF(K28:K43,"=0") -> 7 | L45: =COUNTIF(L28:L43,"=0") -> 7

Sheet Corr (hidden)
A1: IndrctAdJ
A2: Correlation - Mult Find RR_X Jnt
B3: C-score
A4: X-score | B4: =IndrctAdj!E5 -> 0.86 | C4: =IndrctAdj!F5 -> 1.15 | D4: =IndrctAdj!G5 -> 1.44 | E4: =IndrctAdj!H5 -> 1.95 | F4: =IndrctAdj!I5 -> 0 | G4: =IndrctAdj!J5 -> 0 | H4: =IndrctAdj!K5 -> 0 | I4: =IndrctAdj!L5 -> 0 | J4: =IndrctAdj!M5 -> 0 | K4: =IndrctAdj!N5 -> 0
A5: =IndrctAdj!D8 -> 0 | B5: =IF(IndrctAdj!Q8="",0,IndrctAdj!Q8) -> 0.088887456 | C5: =IF(IndrctAdj!R8="",0,IndrctAdj!R8) -> 0.199044162 | D5: =IF(IndrctAdj!S8="",0,IndrctAdj!S8) -> 0.152237529 | E5: =IF(IndrctAdj!T8="",0,IndrctAdj!T8) -> 0.180830853 | F5: =IF(IndrctAdj!U8="",0,IndrctAdj!U8) -> 0 | G5: =IF(IndrctAdj!V8="",0,IndrctAdj!V8) -> 0 | H5: =IF(IndrctAdj!W8="",0,IndrctAdj!W8) -> 0 | I5: =IF(IndrctAdj!X8="",0,IndrctAdj!X8) -> 0 | J5: =IF(IndrctAdj!Y8="",0,IndrctAdj!Y8) -> 0 | K5: =IF(IndrctAdj!Z8="",0,IndrctAdj!Z8) -> 0 | L5: =SUM(B5:K5) -> 0.621
A6: =IndrctAdj!D9 -> 6.65243 | B6: =IF(IndrctAdj!Q9="",0,IndrctAdj!Q9) -> 0.03538685 | C6: =IF(IndrctAdj!R9="",0,IndrctAdj!R9) -> 0.06908965 | D6: =IF(IndrctAdj!S9="",0,IndrctAdj!S9) -> 0.05084087 | E6: =IF(IndrctAdj!T9="",0,IndrctAdj!T9) -> 0.06268263 | F6: =IF(IndrctAdj!U9="",0,IndrctAdj!U9) -> 0 | G6: =IF(IndrctAdj!V9="",0,IndrctAdj!V9) -> 0 | H6: =IF(IndrctAdj!W9="",0,IndrctAdj!W9) -> 0 | I6: =IF(IndrctAdj!X9="",0,IndrctAdj!X9) -> 0 | J6: =IF(IndrctAdj!Y9="",0,IndrctAdj!Y9) -> 0 | K6: =IF(IndrctAdj!Z9="",0,IndrctAdj!Z9) -> 0 | L6: =SUM(B6:K6) -> 0.218
A7: =IndrctAdj!D10 -> 23.5316 | B7: =IF(IndrctAdj!Q10="",0,IndrctAdj!Q10) -> 0.012021248 | C7: =IF(IndrctAdj!R10="",0,IndrctAdj!R10) -> 0.018809011 | D7: =IF(IndrctAdj!S10="",0,IndrctAdj!S10) -> 0.012621155 | E7: =IF(IndrctAdj!T10="",0,IndrctAdj!T10) -> 0.009548586 | F7: =IF(IndrctAdj!U10="",0,IndrctAdj!U10) -> 0 | G7: =IF(IndrctAdj!V10="",0,IndrctAdj!V10) -> 0 | H7: =IF(IndrctAdj!W10="",0,IndrctAdj!W10) -> 0 | I7: =IF(IndrctAdj!X10="",0,IndrctAdj!X10) -> 0 | J7: =IF(IndrctAdj!Y10="",0,IndrctAdj!Y10) -> 0 | K7: =IF(IndrctAdj!Z10="",0,IndrctAdj!Z10) -> 0 | L7: 0.053
A8: =IndrctAdj!D11 -> 33.5394 | B8: =IF(IndrctAdj!Q11="",0,IndrctAdj!Q11) -> 0.008393658 | C8: =IF(IndrctAdj!R11="",0,IndrctAdj!R11) -> 0.014304576 | D8: =IF(IndrctAdj!S11="",0,IndrctAdj!S11) -> 0.007707297 | E8: =IF(IndrctAdj!T11="",0,IndrctAdj!T11) -> 0.008594469 | F8: =IF(IndrctAdj!U11="",0,IndrctAdj!U11) -> 0 | G8: =IF(IndrctAdj!V11="",0,IndrctAdj!V11) -> 0 | H8: =IF(IndrctAdj!W11="",0,IndrctAdj!W11) -> 0 | I8: =IF(IndrctAdj!X11="",0,IndrctAdj!X11) -> 0 | J8: =IF(IndrctAdj!Y11="",0,IndrctAdj!Y11) -> 0 | K8: =IF(IndrctAdj!Z11="",0,IndrctAdj!Z11) -> 0 | L8: 0.039
A9: =IndrctAdj!D12 -> 43.6746 | B9: =IF(IndrctAdj!Q12="",0,IndrctAdj!Q12) -> 0.00639985 | C9: =IF(IndrctAdj!R12="",0,IndrctAdj!R12) -> 0.00877475 | D9: =IF(IndrctAdj!S12="",0,IndrctAdj!S12) -> 0.004972775 | E9: =IF(IndrctAdj!T12="",0,IndrctAdj!T12) -> 0.004852625 | F9: =IF(IndrctAdj!U12="",0,IndrctAdj!U12) -> 0 | G9: =IF(IndrctAdj!V12="",0,IndrctAdj!V12) -> 0 | H9: =IF(IndrctAdj!W12="",0,IndrctAdj!W12) -> 0 | I9: =IF(IndrctAdj!X12="",0,IndrctAdj!X12) -> 0 | J9: =IF(IndrctAdj!Y12="",0,IndrctAdj!Y12) -> 0 | K9: =IF(IndrctAdj!Z12="",0,IndrctAdj!Z12) -> 0 | L9: 0.025
A10: =IndrctAdj!D13 -> 53.618 | B10: =IF(IndrctAdj!Q13="",0,IndrctAdj!Q13) -> 0.00390618 | C10: =IF(IndrctAdj!R13="",0,IndrctAdj!R13) -> 0.00505788 | D10: =IF(IndrctAdj!S13="",0,IndrctAdj!S13) -> 0.002791815 | E10: =IF(IndrctAdj!T13="",0,IndrctAdj!T13) -> 0.003244125 | F10: =IF(IndrctAdj!U13="",0,IndrctAdj!U13) -> 0 | G10: =IF(IndrctAdj!V13="",0,IndrctAdj!V13) -> 0 | H10: =IF(IndrctAdj!W13="",0,IndrctAdj!W13) -> 0 | I10: =IF(IndrctAdj!X13="",0,IndrctAdj!X13) -> 0 | J10: =IF(IndrctAdj!Y13="",0,IndrctAdj!Y13) -> 0 | K10: =IF(IndrctAdj!Z13="",0,IndrctAdj!Z13) -> 0 | L10: 0.015
A11: =IndrctAdj!D14 -> 80.8767 | B11: =IF(IndrctAdj!Q14="",0,IndrctAdj!Q14) -> 0.007739723 | C11: =IF(IndrctAdj!R14="",0,IndrctAdj!R14) -> 0.009660016 | D11: =IF(IndrctAdj!S14="",0,IndrctAdj!S14) -> 0.005957238 | E11: =IF(IndrctAdj!T14="",0,IndrctAdj!T14) -> 0.005643023 | F11: =IF(IndrctAdj!U14="",0,IndrctAdj!U14) -> 0 | G11: =IF(IndrctAdj!V14="",0,IndrctAdj!V14) -> 0 | H11: =IF(IndrctAdj!W14="",0,IndrctAdj!W14) -> 0 | I11: =IF(IndrctAdj!X14="",0,IndrctAdj!X14) -> 0 | J11: =IF(IndrctAdj!Y14="",0,IndrctAdj!Y14) -> 0 | K11: =IF(IndrctAdj!Z14="",0,IndrctAdj!Z14) -> 0 | L11: 0.029
A12: =IndrctAdj!D15 -> 0 | B12: =IF(IndrctAdj!Q15="",0,IndrctAdj!Q15) -> 0 | C12: =IF(IndrctAdj!R15="",0,IndrctAdj!R15) -> 0 | D12: =IF(IndrctAdj!S15="",0,IndrctAdj!S15) -> 0 | E12: =IF(IndrctAdj!T15="",0,IndrctAdj!T15) -> 0 | F12: =IF(IndrctAdj!U15="",0,IndrctAdj!U15) -> 0 | G12: =IF(IndrctAdj!V15="",0,IndrctAdj!V15) -> 0 | H12: =IF(IndrctAdj!W15="",0,IndrctAdj!W15) -> 0 | I12: =IF(IndrctAdj!X15="",0,IndrctAdj!X15) -> 0 | J12: =IF(IndrctAdj!Y15="",0,IndrctAdj!Y15) -> 0 | K12: =IF(IndrctAdj!Z15="",0,IndrctAdj!Z15) -> 0 | L12: 0
A13: =IndrctAdj!D16 -> 0 | B13: =IF(IndrctAdj!Q16="",0,IndrctAdj!Q16) -> 0 | C13: =IF(IndrctAdj!R16="",0,IndrctAdj!R16) -> 0 | D13: =IF(IndrctAdj!S16="",0,IndrctAdj!S16) -> 0 | E13: =IF(IndrctAdj!T16="",0,IndrctAdj!T16) -> 0 | F13: =IF(IndrctAdj!U16="",0,IndrctAdj!U16) -> 0 | G13: =IF(IndrctAdj!V16="",0,IndrctAdj!V16) -> 0 | H13: =IF(IndrctAdj!W16="",0,IndrctAdj!W16) -> 0 | I13: =IF(IndrctAdj!X16="",0,IndrctAdj!X16) -> 0 | J13: =IF(IndrctAdj!Y16="",0,IndrctAdj!Y16) -> 0 | K13: =IF(IndrctAdj!Z16="",0,IndrctAdj!Z16) -> 0 | L13: 0
A14: =IndrctAdj!D17 -> 0 | B14: =IF(IndrctAdj!Q17="",0,IndrctAdj!Q17) -> 0 | C14: =IF(IndrctAdj!R17="",0,IndrctAdj!R17) -> 0 | D14: =IF(IndrctAdj!S17="",0,IndrctAdj!S17) -> 0 | E14: =IF(IndrctAdj!T17="",0,IndrctAdj!T17) -> 0 | F14: =IF(IndrctAdj!U17="",0,IndrctAdj!U17) -> 0 | G14: =IF(IndrctAdj!V17="",0,IndrctAdj!V17) -> 0 | H14: =IF(IndrctAdj!W17="",0,IndrctAdj!W17) -> 0 | I14: =IF(IndrctAdj!X17="",0,IndrctAdj!X17) -> 0 | J14: =IF(IndrctAdj!Y17="",0,IndrctAdj!Y17) -> 0 | K14: =IF(IndrctAdj!Z17="",0,IndrctAdj!Z17) -> 0 | L14: 0
A15: =IndrctAdj!D18 -> 0 | B15: =IF(IndrctAdj!Q18="",0,IndrctAdj!Q18) -> 0 | C15: =IF(IndrctAdj!R18="",0,IndrctAdj!R18) -> 0 | D15: =IF(IndrctAdj!S18="",0,IndrctAdj!S18) -> 0 | E15: =IF(IndrctAdj!T18="",0,IndrctAdj!T18) -> 0 | F15: =IF(IndrctAdj!U18="",0,IndrctAdj!U18) -> 0 | G15: =IF(IndrctAdj!V18="",0,IndrctAdj!V18) -> 0 | H15: =IF(IndrctAdj!W18="",0,IndrctAdj!W18) -> 0 | I15: =IF(IndrctAdj!X18="",0,IndrctAdj!X18) -> 0 | J15: =IF(IndrctAdj!Y18="",0,IndrctAdj!Y18) -> 0 | K15: =IF(IndrctAdj!Z18="",0,IndrctAdj!Z18) -> 0 | L15: =SUM(B15:K15) -> 0
A16: =IndrctAdj!D19 -> 0 | B16: =IF(IndrctAdj!Q19="",0,IndrctAdj!Q19) -> 0 | C16: =IF(IndrctAdj!R19="",0,IndrctAdj!R19) -> 0 | D16: =IF(IndrctAdj!S19="",0,IndrctAdj!S19) -> 0 | E16: =IF(IndrctAdj!T19="",0,IndrctAdj!T19) -> 0 | F16: =IF(IndrctAdj!U19="",0,IndrctAdj!U19) -> 0 | G16: =IF(IndrctAdj!V19="",0,IndrctAdj!V19) -> 0 | H16: =IF(IndrctAdj!W19="",0,IndrctAdj!W19) -> 0 | I16: =IF(IndrctAdj!X19="",0,IndrctAdj!X19) -> 0 | J16: =IF(IndrctAdj!Y19="",0,IndrctAdj!Y19) -> 0 | K16: =IF(IndrctAdj!Z19="",0,IndrctAdj!Z19) -> 0 | L16: =SUM(B16:K16) -> 0
A17: =IndrctAdj!D20 -> 0 | B17: =IF(IndrctAdj!Q20="",0,IndrctAdj!Q20) -> 0 | C17: =IF(IndrctAdj!R20="",0,IndrctAdj!R20) -> 0 | D17: =IF(IndrctAdj!S20="",0,IndrctAdj!S20) -> 0 | E17: =IF(IndrctAdj!T20="",0,IndrctAdj!T20) -> 0 | F17: =IF(IndrctAdj!U20="",0,IndrctAdj!U20) -> 0 | G17: =IF(IndrctAdj!V20="",0,IndrctAdj!V20) -> 0 | H17: =IF(IndrctAdj!W20="",0,IndrctAdj!W20) -> 0 | I17: =IF(IndrctAdj!X20="",0,IndrctAdj!X20) -> 0 | J17: =IF(IndrctAdj!Y20="",0,IndrctAdj!Y20) -> 0 | K17: =IF(IndrctAdj!Z20="",0,IndrctAdj!Z20) -> 0 | L17: 0
A18: =IndrctAdj!D21 -> 0 | B18: =IF(IndrctAdj!Q21="",0,IndrctAdj!Q21) -> 0 | C18: =IF(IndrctAdj!R21="",0,IndrctAdj!R21) -> 0 | D18: =IF(IndrctAdj!S21="",0,IndrctAdj!S21) -> 0 | E18: =IF(IndrctAdj!T21="",0,IndrctAdj!T21) -> 0 | F18: =IF(IndrctAdj!U21="",0,IndrctAdj!U21) -> 0 | G18: =IF(IndrctAdj!V21="",0,IndrctAdj!V21) -> 0 | H18: =IF(IndrctAdj!W21="",0,IndrctAdj!W21) -> 0 | I18: =IF(IndrctAdj!X21="",0,IndrctAdj!X21) -> 0 | J18: =IF(IndrctAdj!Y21="",0,IndrctAdj!Y21) -> 0 | K18: =IF(IndrctAdj!Z21="",0,IndrctAdj!Z21) -> 0 | L18: 0
A19: =IndrctAdj!D22 -> 0 | B19: =IF(IndrctAdj!Q22="",0,IndrctAdj!Q22) -> 0 | C19: =IF(IndrctAdj!R22="",0,IndrctAdj!R22) -> 0 | D19: =IF(IndrctAdj!S22="",0,IndrctAdj!S22) -> 0 | E19: =IF(IndrctAdj!T22="",0,IndrctAdj!T22) -> 0 | F19: =IF(IndrctAdj!U22="",0,IndrctAdj!U22) -> 0 | G19: =IF(IndrctAdj!V22="",0,IndrctAdj!V22) -> 0 | H19: =IF(IndrctAdj!W22="",0,IndrctAdj!W22) -> 0 | I19: =IF(IndrctAdj!X22="",0,IndrctAdj!X22) -> 0 | J19: =IF(IndrctAdj!Y22="",0,IndrctAdj!Y22) -> 0 | K19: =IF(IndrctAdj!Z22="",0,IndrctAdj!Z22) -> 0 | L19: 0
A20: =IndrctAdj!D23 -> 0 | B20: =IF(IndrctAdj!Q23="",0,IndrctAdj!Q23) -> 0 | C20: =IF(IndrctAdj!R23="",0,IndrctAdj!R23) -> 0 | D20: =IF(IndrctAdj!S23="",0,IndrctAdj!S23) -> 0 | E20: =IF(IndrctAdj!T23="",0,IndrctAdj!T23) -> 0 | F20: =IF(IndrctAdj!U23="",0,IndrctAdj!U23) -> 0 | G20: =IF(IndrctAdj!V23="",0,IndrctAdj!V23) -> 0 | H20: =IF(IndrctAdj!W23="",0,IndrctAdj!W23) -> 0 | I20: =IF(IndrctAdj!X23="",0,IndrctAdj!X23) -> 0 | J20: =IF(IndrctAdj!Y23="",0,IndrctAdj!Y23) -> 0 | K20: =IF(IndrctAdj!Z23="",0,IndrctAdj!Z23) -> 0 | L20: 0
B21: =SUM(B5:B20) -> 0.162734965 | C21: =SUM(C5:C20) -> 0.324740045 | D21: 0.237128679 | E21: 0.275396311 | F21: 0 | G21: 0 | H21: 0 | I21: 0 | J21: 0 | K21: 0 | L21: 1
A23: E(X)= | B23: =MMULT(TRANSPOSE(A5:A20),L5:L20) -> 8.24700044
A24: E(C)= | B24: =MMULT((B4:K4),TRANSPOSE(B21:K21)) -> 1.391891226
A26: Var(X) | B26: =SUM((A5:A20)^2 * (L5:L20))- B23^2 -> 295.3536103
A27: Var(C) | B27: =SUM((B4:K4)^2 * (B21:K21))-B24^2 -> 0.1513708064
A28: Cov(X,C) | B28: =SUM(MMULT(A5:A20,B4:K4)*(B5:K20)) - B23*B24 -> -0.6270880651
A29: corr= | B29: =B28/SQRT(B27*B26) -> -0.09378563669
B30: Scores | C30: Cats
A31: X | B31: =16-COUNTBLANK(IndrctAdj!D8:'IndrctAdj'!D23) -> 7 | C31: =COUNTIF(L5:L20,">0") -> 7 | D31: =(B31=C31)*(B32=C32) -> 1
A32: C | B32: =10-COUNTBLANK(IndrctAdj!E5:'IndrctAdj'!N5) -> 4 | C32: =COUNTIF(B21:K21,">0") -> 4

Sheet Solve_RRC
B2: Solve for RR_C (ERR_C), given P(C=j|X=i), RR_Obs & RR_X or ERR_Obs & ERR_X
C4: Conditional probabilites P(C|X)
C5: 0 | D5: 1 | E5: 2 | F5: 3 | G5: 4 | H5: 5 | I5: 6 | J5: 7 | K5: 8 | L5: 9 | M5: Sum | N5: =IF(COUNTBLANK(N6:N15)=10,"","Warning:") -> 
B6: P(C=j | X=0) | C6: 0.156 | D6: 0.333 | E6: 0.259 | F6: 0.115 | G6: 0.098 | H6: 0.039 | M6: =IF(MultMdl!R6=0,"",SUM(C6:L6)) -> 1 | N6: =IF(M6="","",IF(ABS(M6-1)<tol_Pr,"","**P(C|X) ≠ 1**")) -> 
B7: P(C=j | X=1) | C7: 0.203 | D7: 0.34 | E7: 0.235 | F7: 0.103 | G7: 0.083 | H7: 0.036 | M7: =IF(MultMdl!R7=0,"",SUM(C7:L7)) -> 1 | N7: =IF(M7="","",IF(ABS(M7-1)<tol_Pr,"","**P(C|X) ≠ 1**")) -> 
B8: P(C=j | X=2) | C8: 0.256 | D8: 0.367 | E8: 0.202 | F8: 0.079 | G8: 0.067 | H8: 0.029 | M8: =IF(MultMdl!R8=0,"",SUM(C8:L8)) -> 1
B9: P(C=j | X=3) | C9: 0.24 | D9: 0.354 | E9: 0.201 | F9: 0.088 | G9: 0.086 | H9: 0.031 | M9: =IF(MultMdl!R9=0,"",SUM(C9:L9)) -> 1
B10: P(C=j | X=4) | C10: 0.254 | D10: 0.35 | E10: 0.21 | F10: 0.087 | G10: 0.063 | H10: 0.036 | M10: =IF(MultMdl!R10=0,"",SUM(C10:L10)) -> 1
B11: P(C=j | X=5) | C11: 0.238 | D11: 0.357 | E11: 0.191 | F11: 0.077 | G11: 0.088 | H11: 0.049 | M11: =IF(MultMdl!R11=0,"",SUM(C11:L11)) -> 1
B12: P(C=j | X=6) | M12: =IF(MultMdl!R12=0,"",SUM(C12:L12)) -> 
B13: P(C=j | X=7) | M13: =IF(MultMdl!R13=0,"",SUM(C13:L13)) -> 
B14: P(C=j | X=8) | M14: =IF(MultMdl!R14=0,"",SUM(C14:L14)) -> 
B15: P(C=j | X=9) | M15: =IF(MultMdl!R15=0,"",SUM(C15:L15)) -> 
C18: Multiplicative model: RR_X,C = RR_X * RR_C
B19: Level (X) | C19: RR_Obs | D19: RR_X | G19: =IF(($C$57*$D$57)<>1,"",MultMdl!G19) -> Result: Exact Solution
B20: 0 | C20: 1 | D20: 1 | E20: A×RR_C | F20: b | G20: RR_C | H20: Category (C) | I20: =IF(COUNTBLANK(I21:I29)=9,"","Warning:") -> 
B21: 1 | C21: 1.26 | D21: 1.218852273 | E21: =IF(($C$57*$D$57)<>1,"",IF(MultMdl!E21="","",MultMdl!E21)) -> -0.04173353285 | F21: =IF(($C$57*$D$57)<>1,"",IF(MultMdl!F21="","",MultMdl!F21)) -> -0.04173353285 | G21: =IF(($C$57*$D$57)<>1,"",IF(MultMdl!G21="","",MultMdl!G21)) -> 0.84 | H21: 1 | I21: =IF(G21>=0,"","** Invalid value **") -> 
B22: 2 | C22: 1.59 | D22: 1.471583484 | E22: =IF(($C$57*$D$57)<>1,"",IF(MultMdl!E22="","",MultMdl!E22)) -> -0.08744687159 | F22: =IF(($C$57*$D$57)<>1,"",IF(MultMdl!F22="","",MultMdl!F22)) -> -0.08744687159 | G22: =IF(($C$57*$D$57)<>1,"",IF(MultMdl!G22="","",MultMdl!G22)) -> 0.66 | H22: 2 | I22: =IF(G22>=0,"","** Invalid value **") -> 
B23: 3 | C23: 1.67 | D23: 1.575978198 | E23: =IF(($C$57*$D$57)<>1,"",IF(MultMdl!E23="","",MultMdl!E23)) -> -0.07469314463 | F23: =IF(($C$57*$D$57)<>1,"",IF(MultMdl!F23="","",MultMdl!F23)) -> -0.07469314463 | G23: =IF(($C$57*$D$57)<>1,"",IF(MultMdl!G23="","",MultMdl!G23)) -> 0.5 | H23: 3
B24: 4 | C24: 1.98 | D24: 1.848086151 | E24: =IF(($C$57*$D$57)<>1,"",IF(MultMdl!E24="","",MultMdl!E24)) -> -0.08686493441 | F24: =IF(($C$57*$D$57)<>1,"",IF(MultMdl!F24="","",MultMdl!F24)) -> -0.08686493441 | G24: =IF(($C$57*$D$57)<>1,"",IF(MultMdl!G24="","",MultMdl!G24)) -> 0.4 | H24: 4
B25: 5 | C25: 2.18 | D25: 2.0719765 | E25: =IF(($C$57*$D$57)<>1,"",IF(MultMdl!E25="","",MultMdl!E25)) -> -0.07386686432 | F25: =IF(($C$57*$D$57)<>1,"",IF(MultMdl!F25="","",MultMdl!F25)) -> -0.07386686432 | G25: =IF(($C$57*$D$57)<>1,"",IF(MultMdl!G25="","",MultMdl!G25)) -> 0.3 | H25: 5
B26: 6 | E26: =IF(($C$57*$D$57)<>1,"",IF(MultMdl!E26="","",MultMdl!E26)) ->  | F26: =IF(($C$57*$D$57)<>1,"",IF(MultMdl!F26="","",MultMdl!F26)) ->  | G26: =IF(($C$57*$D$57)<>1,"",IF(MultMdl!G26="","",MultMdl!G26)) ->  | H26: 6
B27: 7 | E27: =IF(($C$57*$D$57)<>1,"",IF(MultMdl!E27="","",MultMdl!E27)) ->  | F27: =IF(($C$57*$D$57)<>1,"",IF(MultMdl!F27="","",MultMdl!F27)) ->  | G27: =IF(($C$57*$D$57)<>1,"",IF(MultMdl!G27="","",MultMdl!G27)) ->  | H27: 7
B28: 8 | E28: =IF(($C$57*$D$57)<>1,"",IF(MultMdl!E28="","",MultMdl!E28)) ->  | F28: =IF(($C$57*$D$57)<>1,"",IF(MultMdl!F28="","",MultMdl!F28)) ->  | G28: =IF(($C$57*$D$57)<>1,"",IF(MultMdl!G28="","",MultMdl!G28)) ->  | H28: 8
B29: 9 | E29: =IF(($C$57*$D$57)<>1,"", IF(MultMdl!E29="","",MultMdl!E29)) ->  | F29: =IF(($C$57*$D$57)<>1,"",IF(MultMdl!F29="","",MultMdl!F29)) ->  | G29: =IF(($C$57*$D$57)<>1,"",IF(MultMdl!G29="","",MultMdl!G29)) ->  | H29: 9
C30: =IF(D57=0,"**Error: Mismatch in P(C|X) and number RR_Obs or RR_X**","") -> 
C33: Additive model: RR_X,C = 1 + ERR_X + ERR_C
B34: Level (X) | C34: ERR_Obs | D34: ERR_X | G34: =IF(($C$58*$D$58)<>1,"",AddMdl!B16) -> Result: Exact Solution
B35: 0 | C35: 0 | D35: 0 | E35: A×ERR_C | F35: -b | G35: ERR_C | H35: Category (C) | I35: =IF(COUNTBLANK(I36:I44)=9,"","Warning:") -> 
B36: 1 | C36: 0.26 | D36: 0.1617756 | E36: =IF(($C$58*$D$58)<>1,"",IF(C36="","",AddMdl!B18)) -> -0.0982244 | F36: =IF(($C$58*$D$58)<>1,"",IF(C36="","",AddMdl!C18)) -> -0.0982244 | G36: =IF(($C$58*$D$58)<>1,"",IF(AddMdl!B31=1,AddMdl!D18,"")) -> -0.16 | H36: 1 | I36: =IF(G36>=-1,"","** Invalid value **") -> 
B37: 2 | C37: 0.59 | D37: 0.3643454 | E37: =IF(($C$58*$D$58)<>1,"",IF(C37="","",AddMdl!B19)) -> -0.2256546 | F37: =IF(($C$58*$D$58)<>1,"",IF(C37="","",AddMdl!C19)) -> -0.2256546 | G37: =IF(($C$58*$D$58)<>1,"",IF(AddMdl!C31=1,AddMdl!D19,"")) -> -0.34 | H37: 2
B38: 3 | C38: 0.67 | D38: 0.4364302 | E38: =IF(($C$58*$D$58)<>1,"",IF(C38="","",AddMdl!B20)) -> -0.2335698 | F38: =IF(($C$58*$D$58)<>1,"",IF(C38="","",AddMdl!C20)) -> -0.2335698 | G38: =IF(($C$58*$D$58)<>1,"",IF(AddMdl!D31=1,AddMdl!D20,"")) -> -0.5 | H38: 3
B39: 4 | C39: 0.98 | D39: 0.6497188 | E39: =IF(($C$58*$D$58)<>1,"",IF(C39="","",AddMdl!B21)) -> -0.3302812 | F39: =IF(($C$58*$D$58)<>1,"",IF(C39="","",AddMdl!C21)) -> -0.3302812 | G39: =IF(($C$58*$D$58)<>1,"",IF(AddMdl!E31=1,AddMdl!D21,"")) -> -0.6 | H39: 4
B40: 5 | C40: 1.18 | D40: 0.8064908 | E40: =IF(($C$58*$D$58)<>1,"",IF(C40="","",AddMdl!B22)) -> -0.3735092 | F40: =IF(($C$58*$D$58)<>1,"",IF(C40="","",AddMdl!C22)) -> -0.3735092 | G40: =IF(($C$58*$D$58)<>1,"",IF(AddMdl!F31=1,AddMdl!D22,"")) -> -0.7 | H40: 5
B41: 6 | E41: =IF(($C$58*$D$58)<>1,"",IF(C41="","",AddMdl!B23)) ->  | F41: =IF(($C$58*$D$58)<>1,"",IF(C41="","",AddMdl!C23)) ->  | G41: =IF(($C$58*$D$58)<>1,"",IF(AddMdl!G31=1,AddMdl!D23,"")) ->  | H41: 6
B42: 7 | E42: =IF(($C$58*$D$58)<>1,"",IF(C42="","",AddMdl!B24)) ->  | F42: =IF(($C$58*$D$58)<>1,"",IF(C42="","",AddMdl!C24)) ->  | G42: =IF(($C$58*$D$58)<>1,"",IF(AddMdl!H31=1,AddMdl!D24,"")) ->  | H42: 7
B43: 8 | E43: =IF(($C$58*$D$58)<>1,"",IF(C43="","",AddMdl!B25)) ->  | F43: =IF(($C$58*$D$58)<>1,"",IF(C43="","",AddMdl!C25)) ->  | G43: =IF(($C$58*$D$58)<>1,"",IF(AddMdl!I31=1,AddMdl!D25,"")) ->  | H43: 8
B44: 9 | E44: =IF(($C$58*$D$58)<>1,"",IF(C44="","",AddMdl!B26)) ->  | F44: =IF(($C$58*$D$58)<>1,"",IF(C44="","",AddMdl!C26)) ->  | G44: =IF(($C$58*$D$58)<>1,"",IF(AddMdl!J31=1,AddMdl!D26,"")) ->  | H44: 9
C45: =IF(D58=0,"**Error: Mismatch in P(C|X) and number ERR_Obs or ERR_X**","") -> 
C46: =IF(C59=0,"","**Error: One or more invalid values for P(C|X)**") -> 
B57: Display(mult)= | C57: =IF((SUM(M6:M15)>0)*(COUNTBLANK(C21:C29)=COUNTBLANK(D21:D29))*(COUNTBLANK(C21:C29)<9)=1,1,0) -> 1 | D57: =IF((SUM(M6:M15)=(10-COUNTBLANK(C21:C29)))*(SUM(M6:M15)=(10-COUNTBLANK(D21:D29)))=1,1,0) -> 1
B58: Display(add)= | C58: =IF((SUM(M6:M15)>0)*(COUNTBLANK(C36:C44)=COUNTBLANK(D36:D44))*(COUNTBLANK(C36:C44)<9)=1,1,0) -> 1 | D58: =IF((SUM(M6:M15)=(10-COUNTBLANK(C36:C44)))*(SUM(M6:M15)=(10-COUNTBLANK(D36:D44))),1,0) -> 1
B59: P(C|X) valid | C59: =IF((COUNTIF(C6:L15,"<0") + COUNTIF(C6:L15,">1"))>0,1,0) -> 0

Sheet MultMdl (hidden)
B2: Solve for RR_C (ERR_C): Given P(C=j|X=i), RR_Obs (ERR_Obs) and RR_X (ERR_X)
C4: Conditional probabilites P(C|X)
C5: 0 | D5: 1 | E5: 2 | F5: 3 | G5: 4 | H5: 5 | I5: 6 | J5: 7 | K5: 8 | L5: 9 | M5: Sum | N5: =IF(COUNTBLANK(N6:N15)=10,"","Warning:") -> 
B6: P(C=j | X=0) | C6: =IF(Solve_RRC!C6="",0,Solve_RRC!C6) -> 0.156 | D6: =IF(Solve_RRC!D6="",0,Solve_RRC!D6) -> 0.333 | E6: =IF(Solve_RRC!E6="",0,Solve_RRC!E6) -> 0.259 | F6: =IF(Solve_RRC!F6="",0,Solve_RRC!F6) -> 0.115 | G6: =IF(Solve_RRC!G6="",0,Solve_RRC!G6) -> 0.098 | H6: =IF(Solve_RRC!H6="",0,Solve_RRC!H6) -> 0.039 | I6: =IF(Solve_RRC!I6="",0,Solve_RRC!I6) -> 0 | J6: =IF(Solve_RRC!J6="",0,Solve_RRC!J6) -> 0 | K6: =IF(Solve_RRC!K6="",0,Solve_RRC!K6) -> 0 | L6: =IF(Solve_RRC!L6="",0,Solve_RRC!L6) -> 0 | M6: =SUM(C6:L6) -> 1 | N6: =IF(M6=0,"",IF(ABS(M6-1)<tol_Pr,"","**P(C|X) ≠ 1**")) ->  | R6: =COUNTIF(C6:L6,">0") -> 6
B7: P(C=j | X=1) | C7: =IF(Solve_RRC!C7="",0,Solve_RRC!C7) -> 0.203 | D7: =IF(Solve_RRC!D7="",0,Solve_RRC!D7) -> 0.34 | E7: =IF(Solve_RRC!E7="",0,Solve_RRC!E7) -> 0.235 | F7: =IF(Solve_RRC!F7="",0,Solve_RRC!F7) -> 0.103 | G7: =IF(Solve_RRC!G7="",0,Solve_RRC!G7) -> 0.083 | H7: =IF(Solve_RRC!H7="",0,Solve_RRC!H7) -> 0.036 | I7: =IF(Solve_RRC!I7="",0,Solve_RRC!I7) -> 0 | J7: =IF(Solve_RRC!J7="",0,Solve_RRC!J7) -> 0 | K7: =IF(Solve_RRC!K7="",0,Solve_RRC!K7) -> 0 | L7: =IF(Solve_RRC!L7="",0,Solve_RRC!L7) -> 0 | M7: =SUM(C7:L7) -> 1 | R7: =COUNTIF(C7:L7,">0") -> 6
B8: P(C=j | X=2) | C8: =IF(Solve_RRC!C8="",0,Solve_RRC!C8) -> 0.256 | D8: =IF(Solve_RRC!D8="",0,Solve_RRC!D8) -> 0.367 | E8: =IF(Solve_RRC!E8="",0,Solve_RRC!E8) -> 0.202 | F8: =IF(Solve_RRC!F8="",0,Solve_RRC!F8) -> 0.079 | G8: =IF(Solve_RRC!G8="",0,Solve_RRC!G8) -> 0.067 | H8: =IF(Solve_RRC!H8="",0,Solve_RRC!H8) -> 0.029 | I8: =IF(Solve_RRC!I8="",0,Solve_RRC!I8) -> 0 | J8: =IF(Solve_RRC!J8="",0,Solve_RRC!J8) -> 0 | K8: =IF(Solve_RRC!K8="",0,Solve_RRC!K8) -> 0 | L8: =IF(Solve_RRC!L8="",0,Solve_RRC!L8) -> 0 | M8: 1 | R8: 6
B9: P(C=j | X=3) | C9: =IF(Solve_RRC!C9="",0,Solve_RRC!C9) -> 0.24 | D9: =IF(Solve_RRC!D9="",0,Solve_RRC!D9) -> 0.354 | E9: =IF(Solve_RRC!E9="",0,Solve_RRC!E9) -> 0.201 | F9: =IF(Solve_RRC!F9="",0,Solve_RRC!F9) -> 0.088 | G9: =IF(Solve_RRC!G9="",0,Solve_RRC!G9) -> 0.086 | H9: =IF(Solve_RRC!H9="",0,Solve_RRC!H9) -> 0.031 | I9: =IF(Solve_RRC!I9="",0,Solve_RRC!I9) -> 0 | J9: =IF(Solve_RRC!J9="",0,Solve_RRC!J9) -> 0 | K9: =IF(Solve_RRC!K9="",0,Solve_RRC!K9) -> 0 | L9: =IF(Solve_RRC!L9="",0,Solve_RRC!L9) -> 0 | M9: 1 | R9: 6
B10: P(C=j | X=4) | C10: =IF(Solve_RRC!C10="",0,Solve_RRC!C10) -> 0.254 | D10: =IF(Solve_RRC!D10="",0,Solve_RRC!D10) -> 0.35 | E10: =IF(Solve_RRC!E10="",0,Solve_RRC!E10) -> 0.21 | F10: =IF(Solve_RRC!F10="",0,Solve_RRC!F10) -> 0.087 | G10: =IF(Solve_RRC!G10="",0,Solve_RRC!G10) -> 0.063 | H10: =IF(Solve_RRC!H10="",0,Solve_RRC!H10) -> 0.036 | I10: =IF(Solve_RRC!I10="",0,Solve_RRC!I10) -> 0 | J10: =IF(Solve_RRC!J10="",0,Solve_RRC!J10) -> 0 | K10: =IF(Solve_RRC!K10="",0,Solve_RRC!K10) -> 0 | L10: =IF(Solve_RRC!L10="",0,Solve_RRC!L10) -> 0 | M10: 1 | R10: 6
B11: P(C=j | X=5) | C11: =IF(Solve_RRC!C11="",0,Solve_RRC!C11) -> 0.238 | D11: =IF(Solve_RRC!D11="",0,Solve_RRC!D11) -> 0.357 | E11: =IF(Solve_RRC!E11="",0,Solve_RRC!E11) -> 0.191 | F11: =IF(Solve_RRC!F11="",0,Solve_RRC!F11) -> 0.077 | G11: =IF(Solve_RRC!G11="",0,Solve_RRC!G11) -> 0.088 | H11: =IF(Solve_RRC!H11="",0,Solve_RRC!H11) -> 0.049 | I11: =IF(Solve_RRC!I11="",0,Solve_RRC!I11) -> 0 | J11: =IF(Solve_RRC!J11="",0,Solve_RRC!J11) -> 0 | K11: =IF(Solve_RRC!K11="",0,Solve_RRC!K11) -> 0 | L11: =IF(Solve_RRC!L11="",0,Solve_RRC!L11) -> 0 | M11: 1 | R11: 6
B12: P(C=j | X=6) | C12: =IF(Solve_RRC!C12="",0,Solve_RRC!C12) -> 0 | D12: =IF(Solve_RRC!D12="",0,Solve_RRC!D12) -> 0 | E12: =IF(Solve_RRC!E12="",0,Solve_RRC!E12) -> 0 | F12: =IF(Solve_RRC!F12="",0,Solve_RRC!F12) -> 0 | G12: =IF(Solve_RRC!G12="",0,Solve_RRC!G12) -> 0 | H12: =IF(Solve_RRC!H12="",0,Solve_RRC!H12) -> 0 | I12: =IF(Solve_RRC!I12="",0,Solve_RRC!I12) -> 0 | J12: =IF(Solve_RRC!J12="",0,Solve_RRC!J12) -> 0 | K12: =IF(Solve_RRC!K12="",0,Solve_RRC!K12) -> 0 | L12: =IF(Solve_RRC!L12="",0,Solve_RRC!L12) -> 0 | M12: 0 | R12: 0
B13: P(C=j | X=7) | C13: =IF(Solve_RRC!C13="",0,Solve_RRC!C13) -> 0 | D13: =IF(Solve_RRC!D13="",0,Solve_RRC!D13) -> 0 | E13: =IF(Solve_RRC!E13="",0,Solve_RRC!E13) -> 0 | F13: =IF(Solve_RRC!F13="",0,Solve_RRC!F13) -> 0 | G13: =IF(Solve_RRC!G13="",0,Solve_RRC!G13) -> 0 | H13: =IF(Solve_RRC!H13="",0,Solve_RRC!H13) -> 0 | I13: =IF(Solve_RRC!I13="",0,Solve_RRC!I13) -> 0 | J13: =IF(Solve_RRC!J13="",0,Solve_RRC!J13) -> 0 | K13: =IF(Solve_RRC!K13="",0,Solve_RRC!K13) -> 0 | L13: =IF(Solve_RRC!L13="",0,Solve_RRC!L13) -> 0 | M13: 0 | R13: 0
B14: P(C=j | X=8) | C14: =IF(Solve_RRC!C14="",0,Solve_RRC!C14) -> 0 | D14: =IF(Solve_RRC!D14="",0,Solve_RRC!D14) -> 0 | E14: =IF(Solve_RRC!E14="",0,Solve_RRC!E14) -> 0 | F14: =IF(Solve_RRC!F14="",0,Solve_RRC!F14) -> 0 | G14: =IF(Solve_RRC!G14="",0,Solve_RRC!G14) -> 0 | H14: =IF(Solve_RRC!H14="",0,Solve_RRC!H14) -> 0 | I14: =IF(Solve_RRC!I14="",0,Solve_RRC!I14) -> 0 | J14: =IF(Solve_RRC!J14="",0,Solve_RRC!J14) -> 0 | K14: =IF(Solve_RRC!K14="",0,Solve_RRC!K14) -> 0 | L14: =IF(Solve_RRC!L14="",0,Solve_RRC!L14) -> 0 | M14: 0 | R14: 0
B15: P(C=j | X=9) | C15: =IF(Solve_RRC!C15="",0,Solve_RRC!C15) -> 0 | D15: =IF(Solve_RRC!D15="",0,Solve_RRC!D15) -> 0 | E15: =IF(Solve_RRC!E15="",0,Solve_RRC!E15) -> 0 | F15: =IF(Solve_RRC!F15="",0,Solve_RRC!F15) -> 0 | G15: =IF(Solve_RRC!G15="",0,Solve_RRC!G15) -> 0 | H15: =IF(Solve_RRC!H15="",0,Solve_RRC!H15) -> 0 | I15: =IF(Solve_RRC!I15="",0,Solve_RRC!I15) -> 0 | J15: =IF(Solve_RRC!J15="",0,Solve_RRC!J15) -> 0 | K15: =IF(Solve_RRC!K15="",0,Solve_RRC!K15) -> 0 | L15: =IF(Solve_RRC!L15="",0,Solve_RRC!L15) -> 0 | M15: 0 | R15: 0
C18: Multiplicative model: RR_X,C = RR_X * RR_C
B19: Level (X) | C19: RR_Obs | D19: RR_X | G19: =IF(SUM(R6:R15)=0,"",IF(S60=10,IF(L48=T64,"Result: Exact Solution","Result: No unique soln"),"Result: No unique soln")) -> Result: Exact Solution
B20: 0 | C20: =IF(Solve_RRC!C20="","",Solve_RRC!C20) -> 1 | D20: =IF(Solve_RRC!D20="","",Solve_RRC!D20) -> 1 | E20: A×RR_C | F20: b | G20: RR_C | H20: Category (C) | I20: =IF(COUNTBLANK(I21:I29)=9,"","Warning:") -> 
B21: 1 | C21: =IF(Solve_RRC!C21="","",Solve_RRC!C21) -> 1.26 | D21: =IF(Solve_RRC!D21="","",Solve_RRC!D21) -> 1.218852273 | E21: =IF(C21="","",D36) -> -0.04173353285 | F21: =IF(C21="","",E36) -> -0.04173353285 | G21: =IF(C48=1,F36,"") -> 0.84 | H21: 1 | I21: =IF(G21>=0,"","** Invalid value **") -> 
B22: 2 | C22: =IF(Solve_RRC!C22="","",Solve_RRC!C22) -> 1.59 | D22: =IF(Solve_RRC!D22="","",Solve_RRC!D22) -> 1.471583484 | E22: -0.08744687159 | F22: -0.08744687159 | G22: =IF(D48=1,F37,"") -> 0.66 | H22: 2 | I22: =IF(G22>=0,"","** Invalid value **") -> 
B23: 3 | C23: =IF(Solve_RRC!C23="","",Solve_RRC!C23) -> 1.67 | D23: =IF(Solve_RRC!D23="","",Solve_RRC!D23) -> 1.575978198 | E23: -0.07469314463 | F23: -0.07469314463 | G23: =IF(E48=1,F38,"") -> 0.5 | H23: 3
B24: 4 | C24: =IF(Solve_RRC!C24="","",Solve_RRC!C24) -> 1.98 | D24: =IF(Solve_RRC!D24="","",Solve_RRC!D24) -> 1.848086151 | E24: -0.08686493441 | F24: -0.08686493441 | G24: =IF(F48=1,F39,"") -> 0.4 | H24: 4
B25: 5 | C25: =IF(Solve_RRC!C25="","",Solve_RRC!C25) -> 2.18 | D25: =IF(Solve_RRC!D25="","",Solve_RRC!D25) -> 2.0719765 | E25: -0.07386686432 | F25: -0.07386686432 | G25: =IF(G48=1,F40,"") -> 0.3 | H25: 5
B26: 6 | C26: =IF(Solve_RRC!C26="","",Solve_RRC!C26) ->  | D26: =IF(Solve_RRC!D26="","",Solve_RRC!D26) ->  | G26: =IF(H48=1,F41,"") ->  | H26: 6
B27: 7 | C27: =IF(Solve_RRC!C27="","",Solve_RRC!C27) ->  | D27: =IF(Solve_RRC!D27="","",Solve_RRC!D27) ->  | E27: =IF(C27="","",D42) ->  | F27: =IF(C27="","",E42) ->  | G27: =IF(I48=1,F42,"") ->  | H27: 7
B28: 8 | C28: =IF(Solve_RRC!C28="","",Solve_RRC!C28) ->  | D28: =IF(Solve_RRC!D28="","",Solve_RRC!D28) ->  | G28: =IF(J48=1,F43,"") ->  | H28: 8
B29: 9 | C29: =IF(Solve_RRC!C29="","",Solve_RRC!C29) ->  | D29: =IF(Solve_RRC!D29="","",Solve_RRC!D29) ->  | G29: =IF(K48=1,F44,"") ->  | H29: 9
C30: =IF(C34<C33,"Error: # RRs < # P(C|X=i)",IF(C34>C33,"Note: # RR_Obs > # P(C | X=i)","")) ->  | G30: =IF(C34<C33,"",IF(G19="Result: No Unique soln",CONCATENATE(G36,G39,G37),IF(G19="Result: Inf # of Solns",G38,""))) -> 
B33: #P(C|X) | C33: =COUNTIF(M6:M15,"=1") -> 6
B34: #RR_Obs | C34: =MIN(10-COUNTBLANK(C20:C29),10-COUNTBLANK(D20:D29)) -> 6
C35: Diff | D35: A×RR_C | E35: b | F35: RR_C
C36: =ROUND(D36-E36,Rnd_solve) -> 0 | D36: =MMULT(C51:K59,F36:F44) -> -0.04173353285 | E36: =B51 -> -0.04173353285 | F36: =MMULT(C63:K71,B51:B59) -> 0.84 | G36: ** Check: # rows/cols: RR_C solves first
C37: 0 | D37: -0.08744687159 | E37: =B52 -> -0.08744687159 | F37: 0.66 | G37: eqns ** | I37: `
C38: 0 | D38: -0.07469314463 | E38: =B53 -> -0.07469314463 | F38: 0.5 | G38: =IF(G40<L48,"** Check: I < J **","") -> 
C39: 0 | D39: -0.08686493441 | E39: -0.08686493441 | F39: 0.4 | G39: =COUNTIF(C36:C44,"=0") -> 9
C40: 0 | D40: -0.07386686432 | E40: -0.07386686432 | F40: 0.3 | G40: =COUNTIF(R6:R15,">0") - 1 -> 5
C41: 0 | D41: 0 | E41: 0 | F41: 0
C42: 0 | D42: 0 | E42: 0 | F42: 0
C43: 0 | D43: 0 | E43: 0 | F43: 0
C44: 0 | D44: 0 | E44: 0 | F44: 0
B46: RR_C
B47: 1 | C47: =IF(F36=0,0,F36) -> 0.84 | D47: =IF(F37=0,0,F37) -> 0.66 | E47: =IF(F38=0,0,F38) -> 0.5 | F47: =IF(F39=0,0,F39) -> 0.4 | G47: =IF(F40=0,0,F40) -> 0.3 | H47: =IF(F41=0,0,F41) -> 0 | I47: =IF(F42=0,0,F42) -> 0 | J47: =IF(F43=0,0,F43) -> 0 | K47: =IF(F44=0,0,F44) -> 0
B48: =ROUND(SUM(C6:C15)>0,1) -> 1 | C48: 1 | D48: 1 | E48: 1 | F48: 1 | G48: 1 | H48: 0 | I48: 0 | J48: 0 | K48: 0 | L48: =SUM(C48:K48) -> 5 | R48: Check results | T48: Conditional distributions
O49: RR_Obs | P49: RR_X | R49: ∑_j π_j RR_C(j) | S49: RR_X | T49: 0 | U49: 1 | V49: 2 | W49: 3 | X49: 4 | Y49: 5 | Z49: 6 | AA49: 7 | AB49: 8 | AC49: 9
B50: b | C50: A | L50: Det | O50: =IF(C20="",0,C20) -> 1 | P50: =IF(D20="",0,D20) -> 1 | Q50: 0 | R50: =MMULT($B$47:$K$47,TRANSPOSE(T50:AC50)) -> 0.71506 | S50: =IF(R50=0,1,ROUND((O50/P50)/(R50/$R$50),Rnd_solve)) -> 1 | T50: =IF(C6="",0,C6) -> 0.156 | U50: =IF(D6="",0,D6) -> 0.333 | V50: =IF(E6="",0,E6) -> 0.259 | W50: =IF(F6="",0,F6) -> 0.115 | X50: =IF(G6="",0,G6) -> 0.098 | Y50: =IF(H6="",0,H6) -> 0.039 | Z50: =IF(I6="",0,I6) -> 0 | AA50: =IF(J6="",0,J6) -> 0 | AB50: =IF(K6="",0,K6) -> 0 | AC50: =IF(L6="",0,L6) -> 0
B51: =IF($P51=0,0,$O51/$P51*C$6-C7) -> -0.04173353285 | C51: =IF($P51=0,0,D7-$O51/$P51*D$6) -> -0.0042418818 | D51: =IF($P51=0,0,E7-$O51/$P51*E$6) -> -0.03274368584 | E51: =IF($P51=0,0,F7-$O51/$P51*F$6) -> -0.01588233155 | F51: -0.01830842167 | G51: -0.004316616787 | H51: 0 | I51: 0 | J51: 0 | K51: 0 | L51: =MDETERM(C51:C51) -> -0.0042418818 | O51: 1.26 | P51: 1.218852273 | Q51: 1 | R51: =MMULT($B$47:$K$47,TRANSPOSE(T51:AC51 )) -> 0.7392 | S51: =IF(R51=0,1,ROUND((O51/P51)/(R51/$R$50),Rnd_solve)) -> 1 | T51: 0.203 | U51: 0.34 | V51: 0.235 | W51: 0.103 | X51: 0.083 | Y51: 0.036 | Z51: 0 | AA51: 0 | AB51: 0 | AC51: 0
B52: =IF($P52=0,0,$O52/$P52*C$6-C8) -> -0.08744687159 | C52: =IF($P52=0,0,D8-$O52/$P52*D$6) -> 0.007203898974 | D52: -0.07784141191 | E52: -0.04525390876 | F52: -0.03888593964 | G52: -0.0131382821 | H52: 0 | I52: 0 | J52: 0 | K52: 0 | L52: =MDETERM(C51:D52) -> 0.0005660762733 | O52: 1.59 | P52: 1.471583484 | Q52: 2 | R52: =MMULT($B$47:$K$47,TRANSPOSE(T52:AC52 )) -> 0.7726 | S52: =IF(R52=0,1,ROUND((O52/P52)/(R52/$R$50),Rnd_solve)) -> 1 | T52: 0.256 | U52: 0.367 | V52: 0.202 | W52: 0.079 | X52: 0.067 | Y52: 0.029 | Z52: 0 | AA52: 0 | AB52: 0 | AC52: 0
B53: -0.07469314463 | C53: 0.001133443347 | D53: -0.07345176629 | E53: -0.03386082287 | F53: -0.01784661427 | G53: -0.01032671384 | H53: 0 | I53: 0 | J53: 0 | K53: 0 | L53: =MDETERM(C51:E53) -> 3.614316421e-06 | O53: 1.67 | P53: 1.575978198 | Q53: 3 | R53: =MMULT($B$47:$K$47,TRANSPOSE(T53:AC53 )) -> 0.75772 | S53: 1 | T53: 0.24 | U53: 0.354 | V53: 0.201 | W53: 0.088 | X53: 0.086 | Y53: 0.031 | Z53: 0 | AA53: 0 | AB53: 0 | AC53: 0
B54: -0.08686493441 | C54: -0.006769082315 | D54: -0.06748706402 | E54: -0.03620854194 | F54: -0.04199510531 | G54: -0.005783766397 | H54: 0 | I54: 0 | J54: 0 | K54: 0 | L54: =MDETERM(C51:F54) -> 1.287121654e-08 | O54: 1.98 | P54: 1.848086151 | Q54: 4 | R54: =MMULT($B$47:$K$47,TRANSPOSE(T54:AC54 )) -> 0.7661 | S54: 1 | T54: 0.254 | U54: 0.35 | V54: 0.21 | W54: 0.087 | X54: 0.063 | Y54: 0.036 | Z54: 0 | AA54: 0 | AB54: 0 | AC54: 0
B55: -0.07386686432 | C55: 0.00663888345 | D55: -0.08150309065 | E55: -0.04399558079 | F55: -0.01510927754 | G55: 0.00796671608 | H55: 0 | I55: 0 | J55: 0 | K55: 0 | L55: =MDETERM(C51:G55) -> 4.092523704e-11 | O55: 2.18 | P55: 2.0719765 | Q55: 5 | R55: =MMULT($B$47:$K$47,TRANSPOSE(T55:AC55 )) -> 0.75234 | S55: 1 | T55: 0.238 | U55: 0.357 | V55: 0.191 | W55: 0.077 | X55: 0.088 | Y55: 0.049 | Z55: 0 | AA55: 0 | AB55: 0 | AC55: 0
B56: 0 | C56: 0 | D56: 0 | E56: 0 | F56: 0 | G56: 0 | H56: 0 | I56: 0 | J56: 0 | K56: 0 | L56: =MDETERM(C51:H56) -> 0 | O56: 0 | P56: 0 | Q56: 6 | R56: =MMULT($B$47:$K$47,TRANSPOSE(T56:AC56)) -> 0 | S56: 1 | T56: 0 | U56: 0 | V56: 0 | W56: 0 | X56: 0 | Y56: 0 | Z56: 0 | AA56: 0 | AB56: 0 | AC56: 0
B57: 0 | C57: 0 | D57: 0 | E57: 0 | F57: 0 | G57: 0 | H57: 0 | I57: 0 | J57: 0 | K57: 0 | L57: =MDETERM(C51:I57) -> 0 | O57: 0 | P57: 0 | Q57: 7 | R57: =MMULT($B$47:$K$47,TRANSPOSE(T57:AC57)) -> 0 | S57: 1 | T57: 0 | U57: 0 | V57: 0 | W57: 0 | X57: 0 | Y57: 0 | Z57: 0 | AA57: 0 | AB57: 0 | AC57: 0
B58: 0 | C58: 0 | D58: 0 | E58: 0 | F58: 0 | G58: 0 | H58: 0 | I58: 0 | J58: 0 | K58: 0 | L58: =MDETERM(C51:J58) -> 0 | O58: 0 | P58: 0 | Q58: 8 | R58: =MMULT($B$47:$K$47,TRANSPOSE(T58:AC58)) -> 0 | S58: 1 | T58: 0 | U58: 0 | V58: 0 | W58: 0 | X58: 0 | Y58: 0 | Z58: 0 | AA58: 0 | AB58: 0 | AC58: 0
B59: =IF($P59=0,0,$O59/$P59*C$6-C15) -> 0 | C59: 0 | D59: 0 | E59: 0 | F59: 0 | G59: 0 | H59: 0 | I59: 0 | J59: 0 | K59: 0 | L59: =MDETERM(C51:K59) -> 0 | O59: 0 | P59: 0 | Q59: 9 | R59: =MMULT($B$47:$K$47,TRANSPOSE(T59:AC59)) -> 0 | S59: 1 | T59: 0 | U59: 0 | V59: 0 | W59: 0 | X59: 0 | Y59: 0 | Z59: 0 | AA59: 0 | AB59: 0 | AC59: 0
S60: =COUNTIF(S50:S59,"=1") -> 10 | T60: =IF(SUM(T50:T59)>0,1,0) -> 1 | U60: =IF(SUM(U50:U59)>0,1,0) -> 1 | V60: 1 | W60: 1 | X60: 1 | Y60: 1 | Z60: 0 | AA60: 0 | AB60: 0 | AC60: 0
B61: A^-1 | T61: .
C62: 1 | D62: 2 | E62: 3 | F62: 4 | G62: 5 | H62: 6 | I62: 7 | J62: 8 | K62: 9
B63: 1 | C63: =IF(ISNUMBER(C130),C130,IF(ISNUMBER(C121),C121,IF(ISNUMBER(C113),C113,IF(ISNUMBER(C106),C106,IF(ISNUMBER(C100),C100,IF(ISNUMBER(C95),C95,IF(ISNUMBER(C91),C91,IF(ISNUMBER(C88),C88,IF(ISNUMBER(C86),C86,0))))))))) -> 6699.342865 | D63: =IF(ISNUMBER(D130),D130,IF(ISNUMBER(D121),D121,IF(ISNUMBER(D113),D113,IF(ISNUMBER(D106),D106,IF(ISNUMBER(D100),D100,IF(ISNUMBER(D95),D95,IF(ISNUMBER(D91),D91,IF(ISNUMBER(D88),D88,0)))))))) -> 767.1704975 | E63: =IF(ISNUMBER(E130),E130,IF(ISNUMBER(E121),E121,IF(ISNUMBER(E113),E113,IF(ISNUMBER(E106),E106,IF(ISNUMBER(E100),E100,IF(ISNUMBER(E95),E95,IF(ISNUMBER(E91),E91,0))))))) -> -1523.931471 | F63: =IF(ISNUMBER(F130),F130,IF(ISNUMBER(F121),F121,IF(ISNUMBER(F113),F113,IF(ISNUMBER(F106),F106,IF(ISNUMBER(F100),F100,IF(ISNUMBER(F95),F95,0)))))) -> -3198.463488 | G63: =IF(ISNUMBER(G130),G130,IF(ISNUMBER(G121),G121,IF(ISNUMBER(G113),G113,IF(ISNUMBER(G106),G106,IF(ISNUMBER(G100),G100,0))))) -> 597.665134 | H63: =IF(ISNUMBER(H130),H130,IF(ISNUMBER(H121),H121,IF(ISNUMBER(H113),H113,IF(ISNUMBER(H106),H106,0)))) -> 0 | I63: =IF(ISNUMBER(I130),I130,IF(ISNUMBER(I121),I121,IF(ISNUMBER(I113),I113,0))) -> 0 | J63: =IF(ISNUMBER(J130),J130,IF(ISNUMBER(J121),J121,0)) -> 0 | K63: =IF(ISNUMBER(K130),K130,0) -> 0 | S63: RR_c | T63: =COUNTIF(U60:AC60,"=1") -> 5
B64: 2 | C64: =IF(ISNUMBER(C131),C131,IF(ISNUMBER(C122),C122,IF(ISNUMBER(C114),C114,IF(ISNUMBER(C107),C107,IF(ISNUMBER(C101),C101,IF(ISNUMBER(C96),C96,IF(ISNUMBER(C92),C92,IF(ISNUMBER(C89),C89,0)))))))) -> -4937.565425 | D64: =IF(ISNUMBER(D131),D131,IF(ISNUMBER(D122),D122,IF(ISNUMBER(D114),D114,IF(ISNUMBER(D107),D107,IF(ISNUMBER(D101),D101,IF(ISNUMBER(D96),D96,IF(ISNUMBER(D92),D92,IF(ISNUMBER(D89),D89,0)))))))) -> -499.6663286 | E64: =IF(ISNUMBER(E131),E131,IF(ISNUMBER(E122),E122,IF(ISNUMBER(E114),E114,IF(ISNUMBER(E107),E107,IF(ISNUMBER(E101),E101,IF(ISNUMBER(E96),E96,IF(ISNUMBER(E92),E92,0))))))) -> 1068.208296 | F64: =IF(ISNUMBER(F131),F131,IF(ISNUMBER(F122),F122,IF(ISNUMBER(F114),F114,IF(ISNUMBER(F107),F107,IF(ISNUMBER(F101),F101,IF(ISNUMBER(F96),F96,0)))))) -> 2316.971348 | G64: =IF(ISNUMBER(G131),G131,IF(ISNUMBER(G122),G122,IF(ISNUMBER(G114),G114,IF(ISNUMBER(G107),G107,IF(ISNUMBER(G101),G101,0))))) -> -432.6039154 | H64: 0 | I64: 0 | J64: 0 | K64: 0 | S64: Diag | T64: =COUNTIF(L74:L82,"=1") -> 5
B65: 3 | C65: =IF(ISNUMBER(C132),C132,IF(ISNUMBER(C123),C123,IF(ISNUMBER(C115),C115,IF(ISNUMBER(C108),C108,IF(ISNUMBER(C102),C102,IF(ISNUMBER(C97),C97,IF(ISNUMBER(C93),C93,0))))))) -> 12095.83977 | D65: =IF(ISNUMBER(D132),D132,IF(ISNUMBER(D123),D123,IF(ISNUMBER(D115),D115,IF(ISNUMBER(D108),D108,IF(ISNUMBER(D102),D102,IF(ISNUMBER(D97),D97,IF(ISNUMBER(D93),D93,0))))))) -> 1247.274535 | E65: =IF(ISNUMBER(E132),E132,IF(ISNUMBER(E123),E123,IF(ISNUMBER(E115),E115,IF(ISNUMBER(E108),E108,IF(ISNUMBER(E102),E102,IF(ISNUMBER(E97),E97,IF(ISNUMBER(E93),E93,0))))))) -> -2659.659753 | F65: =IF(ISNUMBER(F132),F132,IF(ISNUMBER(F123),F123,IF(ISNUMBER(F115),F115,IF(ISNUMBER(F108),F108,IF(ISNUMBER(F102),F102,IF(ISNUMBER(F97),F97,0)))))) -> -5673.728335 | G65: =IF(ISNUMBER(G132),G132,IF(ISNUMBER(G123),G123,IF(ISNUMBER(G115),G115,IF(ISNUMBER(G108),G108,IF(ISNUMBER(G102),G102,0))))) -> 1044.230163 | H65: 0 | I65: 0 | J65: 0 | K65: 0 | S65: RR_obs | T65: =COUNTIF(M6:M15,"=1")-1 -> 5
B66: 4 | C66: =IF(ISNUMBER(C133),C133,IF(ISNUMBER(C124),C124,IF(ISNUMBER(C116),C116,IF(ISNUMBER(C109),C109,IF(ISNUMBER(C103),C103,IF(ISNUMBER(C98),C98,0)))))) -> -4002.652201 | D66: =IF(ISNUMBER(D133),D133,IF(ISNUMBER(D124),D124,IF(ISNUMBER(D116),D116,IF(ISNUMBER(D109),D109,IF(ISNUMBER(D103),D103,IF(ISNUMBER(D98),D98,0)))))) -> -438.2076818 | E66: =IF(ISNUMBER(E133),E133,IF(ISNUMBER(E124),E124,IF(ISNUMBER(E116),E116,IF(ISNUMBER(E109),E109,IF(ISNUMBER(E103),E103,IF(ISNUMBER(E98),E98,0)))))) -> 923.7718835 | F66: =IF(ISNUMBER(F133),F133,IF(ISNUMBER(F124),F124,IF(ISNUMBER(F116),F116,IF(ISNUMBER(F109),F109,IF(ISNUMBER(F103),F103,IF(ISNUMBER(F98),F98,0)))))) -> 1858.447813 | G66: =IF(ISNUMBER(G133),G133,IF(ISNUMBER(G124),G124,IF(ISNUMBER(G116),G116,IF(ISNUMBER(G109),G109,IF(ISNUMBER(G103),G103,0))))) -> -344.7914913 | H66: 0 | I66: 0 | J66: 0 | K66: 0
B67: 5 | C67: =IF(ISNUMBER(C134),C134,IF(ISNUMBER(C125),C125,IF(ISNUMBER(C117),C117,IF(ISNUMBER(C110),C110,IF(ISNUMBER(C104),C104,0))))) -> 3110.856923 | D67: =IF(ISNUMBER(D134),D134,IF(ISNUMBER(D125),D125,IF(ISNUMBER(D117),D117,IF(ISNUMBER(D110),D110,IF(ISNUMBER(D104),D104,0))))) -> 305.7797567 | E67: =IF(ISNUMBER(E134),E134,IF(ISNUMBER(E125),E125,IF(ISNUMBER(E117),E117,IF(ISNUMBER(E110),E110,IF(ISNUMBER(E104),E104,0))))) -> -737.6023852 | F67: =IF(ISNUMBER(F134),F134,IF(ISNUMBER(F125),F125,IF(ISNUMBER(F117),F117,IF(ISNUMBER(F110),F110,IF(ISNUMBER(F104),F104,0))))) -> -1439.064393 | G67: =IF(ISNUMBER(G134),G134,IF(ISNUMBER(G125),G125,IF(ISNUMBER(G117),G117,IF(ISNUMBER(G110),G110,IF(ISNUMBER(G104),G104,0))))) -> 314.5056076 | H67: 0 | I67: 0 | J67: 0 | K67: 0
B68: 6 | C68: =IF(ISNUMBER(C135),C135,IF(ISNUMBER(C126),C126,IF(ISNUMBER(C118),C118,IF(ISNUMBER(C111),C111,0)))) -> 0 | D68: =IF(ISNUMBER(D135),D135,IF(ISNUMBER(D126),D126,IF(ISNUMBER(D118),D118,IF(ISNUMBER(D111),D111,0)))) -> 0 | E68: =IF(ISNUMBER(E135),E135,IF(ISNUMBER(E126),E126,IF(ISNUMBER(E118),E118,IF(ISNUMBER(E111),E111,0)))) -> 0 | F68: =IF(ISNUMBER(F135),F135,IF(ISNUMBER(F126),F126,IF(ISNUMBER(F118),F118,IF(ISNUMBER(F111),F111,0)))) -> 0 | G68: =IF(ISNUMBER(G135),G135,IF(ISNUMBER(G126),G126,IF(ISNUMBER(G118),G118,IF(ISNUMBER(G111),G111,0)))) -> 0 | H68: 0 | I68: 0 | J68: 0 | K68: 0
B69: 7 | C69: =IF(ISNUMBER(C136),C136,IF(ISNUMBER(C127),C127,IF(ISNUMBER(C119),C119,0))) -> 0 | D69: 0 | E69: 0 | F69: 0 | G69: 0 | H69: 0 | I69: 0 | J69: 0 | K69: 0
B70: 8 | C70: =IF(ISNUMBER(C137),C137,IF(ISNUMBER(C128),C128,0)) -> 0 | D70: 0 | E70: 0 | F70: 0 | G70: 0 | H70: 0 | I70: 0 | J70: 0 | K70: 0
B71: 9 | C71: =IF(ISNUMBER(C138),C138,0) -> 0 | D71: 0 | E71: 0 | F71: 0 | G71: 0 | H71: 0 | I71: 0 | J71: 0 | K71: 0
B73: A*A^-1 | L73: Diag
C74: =MMULT(C63:K71,C51:K59) -> 1 | D74: 7.318590178e-13 | E74: 3.836930773e-13 | F74: 4.156675004e-13 | G74: 8.970602039e-14 | H74: 0 | I74: 0 | J74: 0 | K74: 0 | L74: =ROUND(C74,9) -> 1
C75: 2.220446049e-15 | D75: 1 | E75: -2.486899575e-14 | F75: -1.065814104e-14 | G75: 6.217248938e-15 | H75: 0 | I75: 0 | J75: 0 | K75: 0 | L75: =ROUND(D75,9) -> 1
C76: -9.769962617e-15 | D76: 7.105427358e-14 | E76: 1 | F76: 2.486899575e-14 | G76: -7.105427358e-15 | H76: 0 | I76: 0 | J76: 0 | K76: 0 | L76: =ROUND(E76,9) -> 1
C77: 0 | D77: -2.131628207e-14 | E77: -2.309263891e-14 | F77: 1 | G77: 4.884981308e-15 | H77: 0 | I77: 0 | J77: 0 | K77: 0 | L77: =ROUND(F77,9) -> 1
C78: 0 | D78: 2.842170943e-14 | E78: 2.486899575e-14 | F78: 1.776356839e-14 | G78: 1 | H78: 0 | I78: 0 | J78: 0 | K78: 0 | L78: =ROUND(G78,9) -> 1
C79: 0 | D79: 0 | E79: 0 | F79: 0 | G79: 0 | H79: 0 | I79: 0 | J79: 0 | K79: 0 | L79: =ROUND(H79,9) -> 0
C80: 0 | D80: 0 | E80: 0 | F80: 0 | G80: 0 | H80: 0 | I80: 0 | J80: 0 | K80: 0 | L80: =ROUND(I80,9) -> 0
C81: 0 | D81: 0 | E81: 0 | F81: 0 | G81: 0 | H81: 0 | I81: 0 | J81: 0 | K81: 0 | L81: =ROUND(J81,9) -> 0
C82: 0 | D82: 0 | E82: 0 | F82: 0 | G82: 0 | H82: 0 | I82: 0 | J82: 0 | K82: 0 | L82: =ROUND(K82,9) -> 0
B85: W/O XNumbers addin
C86: =MINVERSE(C51) -> -235.7444283
C88: =MINVERSE(C51:D52) -> -137.5104656 | D88: 57.84324019
C89: -12.72602176 | D89: -7.493481003
C91: =MINVERSE(C51:E53) -> -190.4109074 | D91: 16.00777356 | E91: 67.91786626
C92: 53.29837868 | D92: 44.72085796 | E92: -84.76746589
C93: -121.9899483 | D93: -96.47379556 | E93: 156.6205632
C95: =MINVERSE(C51:F54) -> 787.6812763 | D95: 186.087379 | E95: -122.2419055 | F95: -463.7630805
C96: -658.5673634 | D96: -79.06486137 | E96: 53.63280895 | F96: 337.5316304
C97: 1767.087102 | D97: 232.0161819 | E97: -210.6520382 | F97: -895.7071804
C98: -592.2297096 | D98: -102.9823129 | E98: 115.1407488 | F98: 280.8061234
C100: =MINVERSE(C51:G55) -> 6699.342865 | D100: 767.1704975 | E100: -1523.931471 | F100: -3198.463488 | G100: 597.665134
C101: -4937.565425 | D101: -499.6663286 | E101: 1068.208296 | F101: 2316.971348 | G101: -432.6039154
C102: 12095.83977 | D102: 1247.274535 | E102: -2659.659753 | F102: -5673.728335 | G102: 1044.230163
C103: -4002.652201 | D103: -438.2076818 | E103: 923.7718835 | F103: 1858.447813 | G103: -344.7914913
C104: 3110.856923 | D104: 305.7797567 | E104: -737.6023852 | F104: -1439.064393 | G104: 314.5056076
C106: =MINVERSE(C51:H56) -> 
C113: =MINVERSE(C51:I57) -> 
C121: =MINVERSE(C51:J58) -> 
C130: =MINVERSE(C51:K59) -> 

Sheet AddMdl (hidden)
A1: For ERR_Obs and ERR_X fixed, solve for ERR_C
D2: Conditional probabilites P(C|X)
A3: ERR_Obs | B3: ERR_X | D3: 0 | E3: 1 | F3: 2 | G3: 3 | H3: 4 | I3: 5 | J3: 6 | K3: 7 | L3: 8 | M3: 9 | N3: Sum | O3: =IF(COUNTBLANK(O4:O13)=10,"","Warning:") -> 
A4: =IF(Solve_RRC!C35="","",Solve_RRC!C35) -> 0 | B4: =IF(Solve_RRC!D35="","",Solve_RRC!D35) -> 0 | C4: P(C=j | E=0) | D4: =IF(Solve_RRC!C6="",0,Solve_RRC!C6) -> 0.156 | E4: =IF(Solve_RRC!D6="",0,Solve_RRC!D6) -> 0.333 | F4: =IF(Solve_RRC!E6="",0,Solve_RRC!E6) -> 0.259 | G4: =IF(Solve_RRC!F6="",0,Solve_RRC!F6) -> 0.115 | H4: =IF(Solve_RRC!G6="",0,Solve_RRC!G6) -> 0.098 | I4: =IF(Solve_RRC!H6="",0,Solve_RRC!H6) -> 0.039 | J4: =IF(Solve_RRC!I6="",0,Solve_RRC!I6) -> 0 | K4: =IF(Solve_RRC!J6="",0,Solve_RRC!J6) -> 0 | L4: =IF(Solve_RRC!K6="",0,Solve_RRC!K6) -> 0 | M4: =IF(Solve_RRC!L6="",0,Solve_RRC!L6) -> 0 | N4: =SUM(D4:M4) -> 1 | O4: =IF(N4=0,"",IF(ABS(N4-1)<tol_Pr,"","**P(C|X) ≠ 1**")) ->  | P4: =COUNTIF(D4:M4,">0") -> 6
A5: =IF(Solve_RRC!C36="","",Solve_RRC!C36) -> 0.26 | B5: =IF(Solve_RRC!D36="","",Solve_RRC!D36) -> 0.1617756 | C5: P(C=j | E=1) | D5: =IF(Solve_RRC!C7="",0,Solve_RRC!C7) -> 0.203 | E5: =IF(Solve_RRC!D7="",0,Solve_RRC!D7) -> 0.34 | F5: =IF(Solve_RRC!E7="",0,Solve_RRC!E7) -> 0.235 | G5: =IF(Solve_RRC!F7="",0,Solve_RRC!F7) -> 0.103 | H5: =IF(Solve_RRC!G7="",0,Solve_RRC!G7) -> 0.083 | I5: =IF(Solve_RRC!H7="",0,Solve_RRC!H7) -> 0.036 | J5: =IF(Solve_RRC!I7="",0,Solve_RRC!I7) -> 0 | K5: =IF(Solve_RRC!J7="",0,Solve_RRC!J7) -> 0 | L5: =IF(Solve_RRC!K7="",0,Solve_RRC!K7) -> 0 | M5: =IF(Solve_RRC!L7="",0,Solve_RRC!L7) -> 0 | N5: =SUM(D5:M5) -> 1 | P5: =COUNTIF(D5:M5,">0") -> 6
A6: =IF(Solve_RRC!C37="","",Solve_RRC!C37) -> 0.59 | B6: =IF(Solve_RRC!D37="","",Solve_RRC!D37) -> 0.3643454 | C6: P(C=j | E=2) | D6: =IF(Solve_RRC!C8="",0,Solve_RRC!C8) -> 0.256 | E6: =IF(Solve_RRC!D8="",0,Solve_RRC!D8) -> 0.367 | F6: =IF(Solve_RRC!E8="",0,Solve_RRC!E8) -> 0.202 | G6: =IF(Solve_RRC!F8="",0,Solve_RRC!F8) -> 0.079 | H6: =IF(Solve_RRC!G8="",0,Solve_RRC!G8) -> 0.067 | I6: =IF(Solve_RRC!H8="",0,Solve_RRC!H8) -> 0.029 | J6: =IF(Solve_RRC!I8="",0,Solve_RRC!I8) -> 0 | K6: =IF(Solve_RRC!J8="",0,Solve_RRC!J8) -> 0 | L6: =IF(Solve_RRC!K8="",0,Solve_RRC!K8) -> 0 | M6: =IF(Solve_RRC!L8="",0,Solve_RRC!L8) -> 0 | N6: 1 | P6: 6
A7: =IF(Solve_RRC!C38="",0,Solve_RRC!C38) -> 0.67 | B7: =IF(Solve_RRC!D38="",0,Solve_RRC!D38) -> 0.4364302 | C7: P(C=j | E=3) | D7: =IF(Solve_RRC!C9="",0,Solve_RRC!C9) -> 0.24 | E7: =IF(Solve_RRC!D9="",0,Solve_RRC!D9) -> 0.354 | F7: =IF(Solve_RRC!E9="",0,Solve_RRC!E9) -> 0.201 | G7: =IF(Solve_RRC!F9="",0,Solve_RRC!F9) -> 0.088 | H7: =IF(Solve_RRC!G9="",0,Solve_RRC!G9) -> 0.086 | I7: =IF(Solve_RRC!H9="",0,Solve_RRC!H9) -> 0.031 | J7: =IF(Solve_RRC!I9="",0,Solve_RRC!I9) -> 0 | K7: =IF(Solve_RRC!J9="",0,Solve_RRC!J9) -> 0 | L7: =IF(Solve_RRC!K9="",0,Solve_RRC!K9) -> 0 | M7: =IF(Solve_RRC!L9="",0,Solve_RRC!L9) -> 0 | N7: 1 | P7: 6
A8: =IF(Solve_RRC!C39="",0,Solve_RRC!C39) -> 0.98 | B8: =IF(Solve_RRC!D39="",0,Solve_RRC!D39) -> 0.6497188 | C8: P(C=j | E=4) | D8: =IF(Solve_RRC!C10="",0,Solve_RRC!C10) -> 0.254 | E8: =IF(Solve_RRC!D10="",0,Solve_RRC!D10) -> 0.35 | F8: =IF(Solve_RRC!E10="",0,Solve_RRC!E10) -> 0.21 | G8: =IF(Solve_RRC!F10="",0,Solve_RRC!F10) -> 0.087 | H8: =IF(Solve_RRC!G10="",0,Solve_RRC!G10) -> 0.063 | I8: =IF(Solve_RRC!H10="",0,Solve_RRC!H10) -> 0.036 | J8: =IF(Solve_RRC!I10="",0,Solve_RRC!I10) -> 0 | K8: =IF(Solve_RRC!J10="",0,Solve_RRC!J10) -> 0 | L8: =IF(Solve_RRC!K10="",0,Solve_RRC!K10) -> 0 | M8: =IF(Solve_RRC!L10="",0,Solve_RRC!L10) -> 0 | N8: 1 | P8: 6
A9: =IF(Solve_RRC!C40="",0,Solve_RRC!C40) -> 1.18 | B9: =IF(Solve_RRC!D40="",0,Solve_RRC!D40) -> 0.8064908 | C9: P(C=j | E=5) | D9: =IF(Solve_RRC!C11="",0,Solve_RRC!C11) -> 0.238 | E9: =IF(Solve_RRC!D11="",0,Solve_RRC!D11) -> 0.357 | F9: =IF(Solve_RRC!E11="",0,Solve_RRC!E11) -> 0.191 | G9: =IF(Solve_RRC!F11="",0,Solve_RRC!F11) -> 0.077 | H9: =IF(Solve_RRC!G11="",0,Solve_RRC!G11) -> 0.088 | I9: =IF(Solve_RRC!H11="",0,Solve_RRC!H11) -> 0.049 | J9: =IF(Solve_RRC!I11="",0,Solve_RRC!I11) -> 0 | K9: =IF(Solve_RRC!J11="",0,Solve_RRC!J11) -> 0 | L9: =IF(Solve_RRC!K11="",0,Solve_RRC!K11) -> 0 | M9: =IF(Solve_RRC!L11="",0,Solve_RRC!L11) -> 0 | N9: 1 | P9: 6
A10: =IF(Solve_RRC!C41="",0,Solve_RRC!C41) -> 0 | B10: =IF(Solve_RRC!D41="",0,Solve_RRC!D41) -> 0 | C10: P(C=j | E=6) | D10: =IF(Solve_RRC!C12="",0,Solve_RRC!C12) -> 0 | E10: =IF(Solve_RRC!D12="",0,Solve_RRC!D12) -> 0 | F10: =IF(Solve_RRC!E12="",0,Solve_RRC!E12) -> 0 | G10: =IF(Solve_RRC!F12="",0,Solve_RRC!F12) -> 0 | H10: =IF(Solve_RRC!G12="",0,Solve_RRC!G12) -> 0 | I10: =IF(Solve_RRC!H12="",0,Solve_RRC!H12) -> 0 | J10: =IF(Solve_RRC!I12="",0,Solve_RRC!I12) -> 0 | K10: =IF(Solve_RRC!J12="",0,Solve_RRC!J12) -> 0 | L10: =IF(Solve_RRC!K12="",0,Solve_RRC!K12) -> 0 | M10: =IF(Solve_RRC!L12="",0,Solve_RRC!L12) -> 0 | N10: 0 | P10: 0
A11: =IF(Solve_RRC!C42="",0,Solve_RRC!C42) -> 0 | B11: =IF(Solve_RRC!D42="",0,Solve_RRC!D42) -> 0 | C11: P(C=j | E=7) | D11: =IF(Solve_RRC!C13="",0,Solve_RRC!C13) -> 0 | E11: =IF(Solve_RRC!D13="",0,Solve_RRC!D13) -> 0 | F11: =IF(Solve_RRC!E13="",0,Solve_RRC!E13) -> 0 | G11: =IF(Solve_RRC!F13="",0,Solve_RRC!F13) -> 0 | H11: =IF(Solve_RRC!G13="",0,Solve_RRC!G13) -> 0 | I11: =IF(Solve_RRC!H13="",0,Solve_RRC!H13) -> 0 | J11: =IF(Solve_RRC!I13="",0,Solve_RRC!I13) -> 0 | K11: =IF(Solve_RRC!J13="",0,Solve_RRC!J13) -> 0 | L11: =IF(Solve_RRC!K13="",0,Solve_RRC!K13) -> 0 | M11: =IF(Solve_RRC!L13="",0,Solve_RRC!L13) -> 0 | N11: 0 | P11: 0
A12: =IF(Solve_RRC!C43="",0,Solve_RRC!C43) -> 0 | B12: =IF(Solve_RRC!D43="",0,Solve_RRC!D43) -> 0 | C12: P(C=j | E=8) | D12: =IF(Solve_RRC!C14="",0,Solve_RRC!C14) -> 0 | E12: =IF(Solve_RRC!D14="",0,Solve_RRC!D14) -> 0 | F12: =IF(Solve_RRC!E14="",0,Solve_RRC!E14) -> 0 | G12: =IF(Solve_RRC!F14="",0,Solve_RRC!F14) -> 0 | H12: =IF(Solve_RRC!G14="",0,Solve_RRC!G14) -> 0 | I12: =IF(Solve_RRC!H14="",0,Solve_RRC!H14) -> 0 | J12: =IF(Solve_RRC!I14="",0,Solve_RRC!I14) -> 0 | K12: =IF(Solve_RRC!J14="",0,Solve_RRC!J14) -> 0 | L12: =IF(Solve_RRC!K14="",0,Solve_RRC!K14) -> 0 | M12: =IF(Solve_RRC!L14="",0,Solve_RRC!L14) -> 0 | N12: 0 | P12: 0
A13: =IF(Solve_RRC!C44="",0,Solve_RRC!C44) -> 0 | B13: =IF(Solve_RRC!D44="",0,Solve_RRC!D44) -> 0 | C13: P(C=j | E=9) | D13: =IF(Solve_RRC!C15="",0,Solve_RRC!C15) -> 0 | E13: =IF(Solve_RRC!D15="",0,Solve_RRC!D15) -> 0 | F13: =IF(Solve_RRC!E15="",0,Solve_RRC!E15) -> 0 | G13: =IF(Solve_RRC!F15="",0,Solve_RRC!F15) -> 0 | H13: =IF(Solve_RRC!G15="",0,Solve_RRC!G15) -> 0 | I13: =IF(Solve_RRC!H15="",0,Solve_RRC!H15) -> 0 | J13: =IF(Solve_RRC!I15="",0,Solve_RRC!I15) -> 0 | K13: =IF(Solve_RRC!J15="",0,Solve_RRC!J15) -> 0 | L13: =IF(Solve_RRC!K15="",0,Solve_RRC!K15) -> 0 | M13: =IF(Solve_RRC!L15="",0,Solve_RRC!L15) -> 0 | N13: 0 | P13: 0
N14: =((N4 =1)+(N4 =0))*((N5 =1)+(N5 =0))*((N6=1)+(N6=0))*((N7=1)+(N7=0))*((N8=1)+(N8=0))*((N9=1)+(N9=0))*((N10=1)+(N10=0))*((N11=1)+(N11=0))*((N12=1)+(N12=0))*((N13=1)+(N13=0)) -> 1
B16: =IF(SUM(P4:P13)=0,"",IF(R44=10,IF(S48=K31,"Result: Exact Solution","Result: No unique soln"),"Result: No unique soln")) -> Result: Exact Solution
B17: A×ERR_C | C17: -b | D17: ERR_C | E17: Level
A18: =COUNTIF(F18:F26,"=0") -> 9 | B18: =MMULT(B34:J42,D18:D26) -> -0.0982244 | C18: =A34 -> -0.0982244 | D18: =MMULT(B46:J54,A34:A42) -> -0.16 | E18: 1 | F18: =ROUND(B18-C18,Rnd_solve) -> 0
A19: =COUNTIF(Solve_RRC!R6:R15,">0") - 1 -> -1 | B19: -0.2256546 | C19: =A35 -> -0.2256546 | D19: -0.34 | E19: 2 | F19: =ROUND(B19-C19,Rnd_solve) -> 0
B20: -0.2335698 | C20: -0.2335698 | D20: -0.5 | E20: 3 | F20: 0
B21: -0.3302812 | C21: -0.3302812 | D21: -0.6 | E21: 4 | F21: 0
B22: -0.3735092 | C22: -0.3735092 | D22: -0.7 | E22: 5 | F22: 0
B23: 0 | C23: 0 | D23: 0 | E23: 6 | F23: 0
B24: 0 | C24: 0 | D24: 0 | E24: 7 | F24: 0
B25: 0 | C25: 0 | D25: 0 | E25: 8 | F25: 0
B26: 0 | C26: 0 | D26: 0 | E26: 9 | F26: 0
A29: ERR_c
A30: 0 | B30: =IF(D18=0,0,D18) -> -0.16 | C30: =IF(D19=0,0,D19) -> -0.34 | D30: =IF(D20=0,0,D20) -> -0.5 | E30: =IF(D21=0,0,D21) -> -0.6 | F30: =IF(D22=0,0,D22) -> -0.7 | G30: =IF(D23=0,0,D23) -> 0 | H30: =IF(D24=0,0,D24) -> 0 | I30: =IF(D25=0,0,D25) -> 0 | J30: =IF(D26=0,0,D26) -> 0
A31: =ROUND(SUM(D4:D13)>0,1) -> 1 | B31: =ROUND(SUM(E4:E13)>0,1) -> 1 | C31: 1 | D31: 1 | E31: 1 | F31: 1 | G31: 0 | H31: 0 | I31: 0 | J31: 0 | K31: =SUM(B31:J31) -> 5
Q32: Check results
A33: -b | B33: A | K33: Det | Q33: ∑_j π_j ERR_C(j) | R33: ERR_X | S33: Conditional probabilites P(C|X=i)
A34: =-(A5-B5) -> -0.0982244 | B34: =IF(Solve_RRC!$C36="",0,E$4*($A5+1)-E5) -> 0.07958 | C34: =IF(Solve_RRC!$C36="",0,F$4*($A5+1)-F5) -> 0.09134 | D34: =IF(Solve_RRC!$C36="",0,G$4*($A5+1)-G5) -> 0.0419 | E34: =IF(Solve_RRC!$C36="",0,H$4*($A5+1)-H5) -> 0.04048 | F34: =IF(Solve_RRC!$C36="",0,I$4*($A5+1)-I5) -> 0.01314 | G34: =IF(Solve_RRC!$C36="",0,J$4*($A5+1)-J5) -> 0 | H34: =IF(Solve_RRC!$C36="",0,K$4*($A5+1)-K5) -> 0 | I34: =IF(Solve_RRC!$C36="",0,L$4*($A5+1)-L5) -> 0 | J34: =IF(Solve_RRC!$C36="",0,M$4*($A5+1)-M5) -> 0 | K34: =MDETERM(B34:B34) -> 0.07958 | Q34: =MMULT($A$30:$J$30,TRANSPOSE(S34:AB34)) -> -0.28494 | R34: =IF(Q34=0,0, ROUND((B4+ (Q34-$Q$34))/($Q$34+1)-A4,Rnd_solve)) -> 0 | S34: =IF(D4="",0,D4) -> 0.156 | T34: =IF(E4="",0,E4) -> 0.333 | U34: =IF(F4="",0,F4) -> 0.259 | V34: =IF(G4="",0,G4) -> 0.115 | W34: =IF(H4="",0,H4) -> 0.098 | X34: =IF(I4="",0,I4) -> 0.039 | Y34: =IF(J4="",0,J4) -> 0 | Z34: =IF(K4="",0,K4) -> 0 | AA34: =IF(L4="",0,L4) -> 0 | AB34: =IF(M4="",0,M4) -> 0
A35: =-(A6-B6) -> -0.2256546 | B35: =IF(Solve_RRC!$C37="",0,E$4*($A6+1)-E6) -> 0.16247 | C35: =IF(Solve_RRC!$C37="",0,F$4*($A6+1)-F6) -> 0.20981 | D35: =IF(Solve_RRC!$C37="",0,G$4*($A6+1)-G6) -> 0.10385 | E35: =IF(Solve_RRC!$C37="",0,H$4*($A6+1)-H6) -> 0.08882 | F35: =IF(Solve_RRC!$C37="",0,I$4*($A6+1)-I6) -> 0.03301 | G35: =IF(Solve_RRC!$C37="",0,J$4*($A6+1)-J6) -> 0 | H35: =IF(Solve_RRC!$C37="",0,K$4*($A6+1)-K6) -> 0 | I35: =IF(Solve_RRC!$C37="",0,L$4*($A6+1)-L6) -> 0 | J35: =IF(Solve_RRC!$C37="",0,M$4*($A6+1)-M6) -> 0 | K35: =MDETERM(B34:C35) -> 0.00185667 | Q35: =MMULT($A$30:$J$30,TRANSPOSE(S35:AB35)) -> -0.2608 | R35: 0 | S35: 0.203 | T35: 0.34 | U35: 0.235 | V35: 0.103 | W35: 0.083 | X35: 0.036 | Y35: 0 | Z35: 0 | AA35: 0 | AB35: 0
A36: -0.2335698 | B36: =IF(Solve_RRC!$C38="",0,E$4*($A7+1)-E7) -> 0.20211 | C36: =IF(Solve_RRC!$C38="",0,F$4*($A7+1)-F7) -> 0.23153 | D36: =IF(Solve_RRC!$C38="",0,G$4*($A7+1)-G7) -> 0.10405 | E36: =IF(Solve_RRC!$C38="",0,H$4*($A7+1)-H7) -> 0.07766 | F36: =IF(Solve_RRC!$C38="",0,I$4*($A7+1)-I7) -> 0.03413 | G36: =IF(Solve_RRC!$C38="",0,J$4*($A7+1)-J7) -> 0 | H36: =IF(Solve_RRC!$C38="",0,K$4*($A7+1)-K7) -> 0 | I36: =IF(Solve_RRC!$C38="",0,L$4*($A7+1)-L7) -> 0 | J36: =IF(Solve_RRC!$C38="",0,M$4*($A7+1)-M7) -> 0 | K36: =MDETERM(B34:D36) -> -3.73758e-06 | Q36: =MMULT($A$30:$J$30,TRANSPOSE(S36:AB36)) -> -0.2274 | R36: 0 | S36: 0.256 | T36: 0.367 | U36: 0.202 | V36: 0.079 | W36: 0.067 | X36: 0.029 | Y36: 0 | Z36: 0 | AA36: 0 | AB36: 0
A37: -0.3302812 | B37: =IF(Solve_RRC!$C39="",0,E$4*($A8+1)-E8) -> 0.30934 | C37: =IF(Solve_RRC!$C39="",0,F$4*($A8+1)-F8) -> 0.30282 | D37: =IF(Solve_RRC!$C39="",0,G$4*($A8+1)-G8) -> 0.1407 | E37: =IF(Solve_RRC!$C39="",0,H$4*($A8+1)-H8) -> 0.13104 | F37: =IF(Solve_RRC!$C39="",0,I$4*($A8+1)-I8) -> 0.04122 | G37: =IF(Solve_RRC!$C39="",0,J$4*($A8+1)-J8) -> 0 | H37: =IF(Solve_RRC!$C39="",0,K$4*($A8+1)-K8) -> 0 | I37: =IF(Solve_RRC!$C39="",0,L$4*($A8+1)-L8) -> 0 | J37: =IF(Solve_RRC!$C39="",0,M$4*($A8+1)-M8) -> 0 | K37: =MDETERM(B34:E37) -> 9.2097283e-07 | Q37: =MMULT($A$30:$J$30,TRANSPOSE(S37:AB37)) -> -0.24228 | R37: 0 | S37: 0.24 | T37: 0.354 | U37: 0.201 | V37: 0.088 | W37: 0.086 | X37: 0.031 | Y37: 0 | Z37: 0 | AA37: 0 | AB37: 0
A38: -0.3735092 | B38: =IF(Solve_RRC!$C40="",0,E$4*($A9+1)-E9) -> 0.36894 | C38: =IF(Solve_RRC!$C40="",0,F$4*($A9+1)-F9) -> 0.37362 | D38: =IF(Solve_RRC!$C40="",0,G$4*($A9+1)-G9) -> 0.1737 | E38: =IF(Solve_RRC!$C40="",0,H$4*($A9+1)-H9) -> 0.12564 | F38: =IF(Solve_RRC!$C40="",0,I$4*($A9+1)-I9) -> 0.03602 | G38: =IF(Solve_RRC!$C40="",0,J$4*($A9+1)-J9) -> 0 | H38: =IF(Solve_RRC!$C40="",0,K$4*($A9+1)-K9) -> 0 | I38: =IF(Solve_RRC!$C40="",0,L$4*($A9+1)-L9) -> 0 | J38: =IF(Solve_RRC!$C40="",0,M$4*($A9+1)-M9) -> 0 | K38: =MDETERM(B34:F38) -> -1.604860792e-08 | Q38: =MMULT($A$30:$J$30,TRANSPOSE(S38:AB38)) -> -0.2339 | R38: 0 | S38: 0.254 | T38: 0.35 | U38: 0.21 | V38: 0.087 | W38: 0.063 | X38: 0.036 | Y38: 0 | Z38: 0 | AA38: 0 | AB38: 0
A39: 0 | B39: =IF(Solve_RRC!$C41="",0,E$4*($A10+1)-E10) -> 0 | C39: =IF(Solve_RRC!$C41="",0,F$4*($A10+1)-F10) -> 0 | D39: =IF(Solve_RRC!$C41="",0,G$4*($A10+1)-G10) -> 0 | E39: =IF(Solve_RRC!$C41="",0,H$4*($A10+1)-H10) -> 0 | F39: =IF(Solve_RRC!$C41="",0,I$4*($A10+1)-I10) -> 0 | G39: =IF(Solve_RRC!$C41="",0,J$4*($A10+1)-J10) -> 0 | H39: =IF(Solve_RRC!$C41="",0,K$4*($A10+1)-K10) -> 0 | I39: =IF(Solve_RRC!$C41="",0,L$4*($A10+1)-L10) -> 0 | J39: =IF(Solve_RRC!$C41="",0,M$4*($A10+1)-M10) -> 0 | K39: =MDETERM(B34:G39) -> 0 | Q39: =MMULT($A$30:$J$30,TRANSPOSE(S39:AB39)) -> -0.24766 | R39: 0 | S39: 0.238 | T39: 0.357 | U39: 0.191 | V39: 0.077 | W39: 0.088 | X39: 0.049 | Y39: 0 | Z39: 0 | AA39: 0 | AB39: 0
A40: 0 | B40: =IF(Solve_RRC!$C42="",0,E$4*($A11+1)-E11) -> 0 | C40: =IF(Solve_RRC!$C42="",0,F$4*($A11+1)-F11) -> 0 | D40: =IF(Solve_RRC!$C42="",0,G$4*($A11+1)-G11) -> 0 | E40: =IF(Solve_RRC!$C42="",0,H$4*($A11+1)-H11) -> 0 | F40: =IF(Solve_RRC!$C42="",0,I$4*($A11+1)-I11) -> 0 | G40: =IF(Solve_RRC!$C42="",0,J$4*($A11+1)-J11) -> 0 | H40: =IF(Solve_RRC!$C42="",0,K$4*($A11+1)-K11) -> 0 | I40: =IF(Solve_RRC!$C42="",0,L$4*($A11+1)-L11) -> 0 | J40: =IF(Solve_RRC!$C42="",0,M$4*($A11+1)-M11) -> 0 | K40: =MDETERM(B34:H40) -> 0 | Q40: =MMULT($A$30:$J$30,TRANSPOSE(S40:AB40)) -> 0 | R40: 0 | S40: 0 | T40: 0 | U40: 0 | V40: 0 | W40: 0 | X40: 0 | Y40: 0 | Z40: 0 | AA40: 0 | AB40: 0
A41: 0 | B41: =IF(Solve_RRC!$C43="",0,E$4*($A12+1)-E12) -> 0 | C41: =IF(Solve_RRC!$C43="",0,F$4*($A12+1)-F12) -> 0 | D41: =IF(Solve_RRC!$C43="",0,G$4*($A12+1)-G12) -> 0 | E41: =IF(Solve_RRC!$C43="",0,H$4*($A12+1)-H12) -> 0 | F41: =IF(Solve_RRC!$C43="",0,I$4*($A12+1)-I12) -> 0 | G41: =IF(Solve_RRC!$C43="",0,J$4*($A12+1)-J12) -> 0 | H41: =IF(Solve_RRC!$C43="",0,K$4*($A12+1)-K12) -> 0 | I41: =IF(Solve_RRC!$C43="",0,L$4*($A12+1)-L12) -> 0 | J41: =IF(Solve_RRC!$C43="",0,M$4*($A12+1)-M12) -> 0 | K41: =MDETERM(B34:I41) -> 0 | Q41: =MMULT($A$30:$J$30,TRANSPOSE(S41:AB41)) -> 0 | R41: 0 | S41: 0 | T41: 0 | U41: 0 | V41: 0 | W41: 0 | X41: 0 | Y41: 0 | Z41: 0 | AA41: 0 | AB41: 0
A42: 0 | B42: =IF(Solve_RRC!$C44="",0,E$4*($A13+1)-E13) -> 0 | C42: =IF(Solve_RRC!$C44="",0,F$4*($A13+1)-F13) -> 0 | D42: =IF(Solve_RRC!$C44="",0,G$4*($A13+1)-G13) -> 0 | E42: =IF(Solve_RRC!$C44="",0,H$4*($A13+1)-H13) -> 0 | F42: =IF(Solve_RRC!$C44="",0,I$4*($A13+1)-I13) -> 0 | G42: =IF(Solve_RRC!$C44="",0,J$4*($A13+1)-J13) -> 0 | H42: =IF(Solve_RRC!$C44="",0,K$4*($A13+1)-K13) -> 0 | I42: =IF(Solve_RRC!$C44="",0,L$4*($A13+1)-L13) -> 0 | J42: =IF(Solve_RRC!$C44="",0,M$4*($A13+1)-M13) -> 0 | K42: =MDETERM(B34:J42) -> 0 | Q42: =MMULT($A$30:$J$30,TRANSPOSE(S42:AB42)) -> 0 | R42: 0 | S42: 0 | T42: 0 | U42: 0 | V42: 0 | W42: 0 | X42: 0 | Y42: 0 | Z42: 0 | AA42: 0 | AB42: 0
Q43: =MMULT($A$30:$J$30,TRANSPOSE(S43:AB43)) -> 0 | R43: 0 | S43: 0 | T43: 0 | U43: 0 | V43: 0 | W43: 0 | X43: 0 | Y43: 0 | Z43: 0 | AA43: 0 | AB43: 0
A44: A^-1 | R44: =COUNTIF(R34:R43,"=0") -> 10 | S44: =IF(SUM(S34:S43)>0,1,0) -> 1 | T44: 1 | U44: 1 | V44: 1 | W44: 1 | X44: 1 | Y44: 0 | Z44: 0 | AA44: 0 | AB44: 0
B45: 1 | C45: 2 | D45: 3 | E45: 4 | F45: 5 | G45: 6 | H45: 7 | I45: 8 | J45: 9
A46: 1 | B46: =IF(ISNUMBER(B112),B112,IF(ISNUMBER(B103),B103,IF(ISNUMBER(B95),B95,IF(ISNUMBER(B88),B88,IF(ISNUMBER(B82),B82,IF(ISNUMBER(B77),B77,IF(ISNUMBER(B73),B73,IF(ISNUMBER(B70),B70,IF(ISNUMBER(B68),B68,0))))))))) -> -64.27142124 | C46: =IF(ISNUMBER(C112),C112,IF(ISNUMBER(C103),C103,IF(ISNUMBER(C95),C95,IF(ISNUMBER(C88),C88,IF(ISNUMBER(C82),C82,IF(ISNUMBER(C77),C77,IF(ISNUMBER(C73),C73,IF(ISNUMBER(C70),C70,0)))))))) -> -3.573423956 | D46: =IF(ISNUMBER(D112),D112,IF(ISNUMBER(D103),D103,IF(ISNUMBER(D95),D95,IF(ISNUMBER(D88),D88,IF(ISNUMBER(D82),D82,IF(ISNUMBER(D77),D77,IF(ISNUMBER(D73),D73,0))))))) -> 3.278138532 | E46: =IF(ISNUMBER(E112),E112,IF(ISNUMBER(E103),E103,IF(ISNUMBER(E95),E95,IF(ISNUMBER(E88),E88,IF(ISNUMBER(E82),E82,IF(ISNUMBER(E77),E77,0)))))) -> 23.74291415 | F46: =IF(ISNUMBER(F112),F112,IF(ISNUMBER(F103),F103,IF(ISNUMBER(F95),F95,IF(ISNUMBER(F88),F88,IF(ISNUMBER(F82),F82,0))))) -> -3.555818691 | G46: =IF(ISNUMBER(G112),G112,IF(ISNUMBER(G103),G103,IF(ISNUMBER(G95),G95,IF(ISNUMBER(G88),G88,0)))) -> 0 | H46: =IF(ISNUMBER(H112),H112,IF(ISNUMBER(H103),H103,IF(ISNUMBER(H95),H95,0))) -> 0 | I46: =IF(ISNUMBER(I112),I112,IF(ISNUMBER(I103),I103,0)) -> 0 | J46: =IF(ISNUMBER(J112),J112,0) -> 0
A47: 2 | B47: =IF(ISNUMBER(B113),B113,IF(ISNUMBER(B104),B104,IF(ISNUMBER(B96),B96,IF(ISNUMBER(B89),B89,IF(ISNUMBER(B83),B83,IF(ISNUMBER(B78),B78,IF(ISNUMBER(B74),B74,IF(ISNUMBER(B71),B71,0)))))))) -> 194.3920629 | C47: =IF(ISNUMBER(C113),C113,IF(ISNUMBER(C104),C104,IF(ISNUMBER(C96),C96,IF(ISNUMBER(C89),C89,IF(ISNUMBER(C83),C83,IF(ISNUMBER(C78),C78,IF(ISNUMBER(C74),C74,IF(ISNUMBER(C71),C71,0)))))))) -> -46.2016895 | D47: =IF(ISNUMBER(D113),D113,IF(ISNUMBER(D104),D104,IF(ISNUMBER(D96),D96,IF(ISNUMBER(D89),D89,IF(ISNUMBER(D83),D83,IF(ISNUMBER(D78),D78,IF(ISNUMBER(D74),D74,0))))))) -> 18.85194788 | E47: =IF(ISNUMBER(E113),E113,IF(ISNUMBER(E104),E104,IF(ISNUMBER(E96),E96,IF(ISNUMBER(E89),E89,IF(ISNUMBER(E83),E83,IF(ISNUMBER(E78),E78,0)))))) -> -47.47806687 | F47: =IF(ISNUMBER(F113),F113,IF(ISNUMBER(F104),F104,IF(ISNUMBER(F96),F96,IF(ISNUMBER(F89),F89,IF(ISNUMBER(F83),F83,0))))) -> 7.896585214 | G47: 0 | H47: 0 | I47: 0 | J47: 0 | R47: ERR_c | S47: =COUNTIF(T44:AB44,"=1") -> 5
A48: 3 | B48: =IF(ISNUMBER(B114),B114,IF(ISNUMBER(B105),B105,IF(ISNUMBER(B97),B97,IF(ISNUMBER(B90),B90,IF(ISNUMBER(B84),B84,IF(ISNUMBER(B79),B79,IF(ISNUMBER(B75),B75,0))))))) -> -319.0063864 | C48: =IF(ISNUMBER(C114),C114,IF(ISNUMBER(C105),C105,IF(ISNUMBER(C97),C97,IF(ISNUMBER(C90),C90,IF(ISNUMBER(C84),C84,IF(ISNUMBER(C79),C79,IF(ISNUMBER(C75),C75,0))))))) -> 108.0621153 | D48: =IF(ISNUMBER(D114),D114,IF(ISNUMBER(D105),D105,IF(ISNUMBER(D97),D97,IF(ISNUMBER(D90),D90,IF(ISNUMBER(D84),D84,IF(ISNUMBER(D79),D79,IF(ISNUMBER(D75),D75,0))))))) -> -39.40401455 | E48: =IF(ISNUMBER(E114),E114,IF(ISNUMBER(E105),E105,IF(ISNUMBER(E97),E97,IF(ISNUMBER(E90),E90,IF(ISNUMBER(E84),E84,IF(ISNUMBER(E79),E79,0)))))) -> 38.79952474 | F48: =IF(ISNUMBER(F114),F114,IF(ISNUMBER(F105),F105,IF(ISNUMBER(F97),F97,IF(ISNUMBER(F90),F90,IF(ISNUMBER(F84),F84,0))))) -> 10.27640471 | G48: 0 | H48: 0 | I48: 0 | J48: 0 | R48: Diag | S48: =COUNTIF(K57:K65,"=1") -> 5
A49: 4 | B49: =IF(ISNUMBER(B115),B115,IF(ISNUMBER(B106),B106,IF(ISNUMBER(B98),B98,IF(ISNUMBER(B91),B91,IF(ISNUMBER(B85),B85,IF(ISNUMBER(B80),B80,0)))))) -> 120.3074603 | C49: =IF(ISNUMBER(C115),C115,IF(ISNUMBER(C106),C106,IF(ISNUMBER(C98),C98,IF(ISNUMBER(C91),C91,IF(ISNUMBER(C85),C85,IF(ISNUMBER(C80),C80,0)))))) -> -8.59189038 | D49: =IF(ISNUMBER(D115),D115,IF(ISNUMBER(D106),D106,IF(ISNUMBER(D98),D98,IF(ISNUMBER(D91),D91,IF(ISNUMBER(D85),D85,IF(ISNUMBER(D80),D80,0)))))) -> -33.99993213 | E49: =IF(ISNUMBER(E115),E115,IF(ISNUMBER(E106),E106,IF(ISNUMBER(E98),E98,IF(ISNUMBER(E91),E91,IF(ISNUMBER(E85),E85,IF(ISNUMBER(E80),E80,0)))))) -> -0.8401252038 | F49: =IF(ISNUMBER(F115),F115,IF(ISNUMBER(F106),F106,IF(ISNUMBER(F98),F98,IF(ISNUMBER(F91),F91,IF(ISNUMBER(F85),F85,0))))) -> -2.836593069 | G49: 0 | H49: 0 | I49: 0 | J49: 0 | R49: ERR_obs | S49: =COUNTIF(N4:N13,"=1")-1 -> 5
A50: 5 | B50: =IF(ISNUMBER(B116),B116,IF(ISNUMBER(B107),B107,IF(ISNUMBER(B99),B99,IF(ISNUMBER(B92),B92,IF(ISNUMBER(B86),B86,0))))) -> -239.3249408 | C50: =IF(ISNUMBER(C116),C116,IF(ISNUMBER(C107),C107,IF(ISNUMBER(C99),C99,IF(ISNUMBER(C92),C92,IF(ISNUMBER(C86),C86,0))))) -> 24.69044804 | D50: =IF(ISNUMBER(D116),D116,IF(ISNUMBER(D107),D107,IF(ISNUMBER(D99),D99,IF(ISNUMBER(D92),D92,IF(ISNUMBER(D86),D86,0))))) -> 79.49271528 | E50: =IF(ISNUMBER(E116),E116,IF(ISNUMBER(E107),E107,IF(ISNUMBER(E99),E99,IF(ISNUMBER(E92),E92,IF(ISNUMBER(E86),E86,0))))) -> 65.1060656 | F50: =IF(ISNUMBER(F116),F116,IF(ISNUMBER(F107),F107,IF(ISNUMBER(F99),F99,IF(ISNUMBER(F92),F92,IF(ISNUMBER(F86),F86,0))))) -> -57.38646209 | G50: 0 | H50: 0 | I50: 0 | J50: 0
A51: 6 | B51: =IF(ISNUMBER(B117),B117,IF(ISNUMBER(B108),B108,IF(ISNUMBER(B100),B100,IF(ISNUMBER(B93),B93,0)))) -> 0 | C51: =IF(ISNUMBER(C117),C117,IF(ISNUMBER(C108),C108,IF(ISNUMBER(C100),C100,IF(ISNUMBER(C93),C93,0)))) -> 0 | D51: =IF(ISNUMBER(D117),D117,IF(ISNUMBER(D108),D108,IF(ISNUMBER(D100),D100,IF(ISNUMBER(D93),D93,0)))) -> 0 | E51: =IF(ISNUMBER(E117),E117,IF(ISNUMBER(E108),E108,IF(ISNUMBER(E100),E100,IF(ISNUMBER(E93),E93,0)))) -> 0 | F51: =IF(ISNUMBER(F117),F117,IF(ISNUMBER(F108),F108,IF(ISNUMBER(F100),F100,IF(ISNUMBER(F93),F93,0)))) -> 0 | G51: 0 | H51: 0 | I51: 0 | J51: 0
A52: 7 | B52: =IF(ISNUMBER(B118),B118,IF(ISNUMBER(B109),B109,IF(ISNUMBER(B101),B101,0))) -> 0 | C52: 0 | D52: 0 | E52: 0 | F52: 0 | G52: 0 | H52: 0 | I52: 0 | J52: 0
A53: 8 | B53: =IF(ISNUMBER(B119),B119,IF(ISNUMBER(B110),B110,0)) -> 0 | C53: 0 | D53: 0 | E53: 0 | F53: 0 | G53: 0 | H53: 0 | I53: 0 | J53: 0
A54: 9 | B54: =IF(ISNUMBER(B120),B120,0) -> 0 | C54: 0 | D54: 0 | E54: 0 | F54: 0 | G54: 0 | H54: 0 | I54: 0 | J54: 0
A56: A*A^-1 | K56: Diag
B57: =MMULT(B46:J54,B34:J42) -> 1 | C57: -2.220446049e-16 | D57: -4.440892099e-16 | E57: -5.551115123e-16 | F57: 0 | G57: 0 | H57: 0 | I57: 0 | J57: 0 | K57: =ROUND(B57,9) -> 1
B58: -1.33226763e-15 | C58: 1 | D58: 4.440892099e-16 | E58: -7.771561172e-16 | F58: -5.551115123e-17 | G58: 0 | H58: 0 | I58: 0 | J58: 0 | K58: =ROUND(C58,9) -> 1
B59: 3.108624469e-15 | C59: 4.440892099e-15 | D59: 1 | E59: 3.108624469e-15 | F59: 9.436895709e-16 | G59: 0 | H59: 0 | I59: 0 | J59: 0 | K59: =ROUND(D59,9) -> 1
B60: -1.554312234e-15 | C60: -1.776356839e-15 | D60: -4.440892099e-16 | E60: 1 | F60: -4.440892099e-16 | G60: 0 | H60: 0 | I60: 0 | J60: 0 | K60: =ROUND(E60,9) -> 1
B61: -3.552713679e-15 | C61: -3.552713679e-15 | D61: -1.776356839e-15 | E61: -8.881784197e-16 | F61: 1 | G61: 0 | H61: 0 | I61: 0 | J61: 0 | K61: =ROUND(F61,9) -> 1
B62: 0 | C62: 0 | D62: 0 | E62: 0 | F62: 0 | G62: 0 | H62: 0 | I62: 0 | J62: 0 | K62: =ROUND(G62,9) -> 0
B63: 0 | C63: 0 | D63: 0 | E63: 0 | F63: 0 | G63: 0 | H63: 0 | I63: 0 | J63: 0 | K63: =ROUND(H63,9) -> 0
B64: 0 | C64: 0 | D64: 0 | E64: 0 | F64: 0 | G64: 0 | H64: 0 | I64: 0 | J64: 0 | K64: =ROUND(I64,9) -> 0
B65: 0 | C65: 0 | D65: 0 | E65: 0 | F65: 0 | G65: 0 | H65: 0 | I65: 0 | J65: 0 | K65: =ROUND(J65,9) -> 0
A67: W/O addin
B68: =MINVERSE(B34) -> 12.56597135
B70: =MINVERSE(B34:C35) -> 113.0033878 | C70: -49.19560288
B71: -87.50612656 | C71: 42.86168247
B73: =MINVERSE(B34:D36) -> 592.2709347 | C73: -52.75606141 | D73: -185.847527
B74: -1092.717748 | C74: 50.3293575 | D74: 389.795001
B75: 1281.048165 | C75: -9.516853151 | D75: -496.75726
B77: =MINVERSE(B34:E37) -> -49.44220776 | C77: -5.10331016 | D77: -1.647442737 | E77: 19.70876817
B78: 161.4600835 | C78: -42.80419434 | D78: 29.79043367 | E78: -38.51923623
B79: -361.8631833 | C79: 112.4835246 | D79: -25.16896182 | E79: 50.45830722
B80: 132.1372097 | C80: -9.812330729 | D80: -37.92922968 | E80: -4.058295618
B82: =MINVERSE(B34:F38) -> -64.27142124 | C82: -3.573423956 | D82: 3.278138532 | E82: 23.74291415 | F82: -3.555818691
B83: 194.3920629 | C83: -46.2016895 | D83: 18.85194788 | E83: -47.47806687 | F83: 7.896585214
B84: -319.0063864 | C84: 108.0621153 | D84: -39.40401455 | E84: 38.79952474 | F84: 10.27640471
B85: 120.3074603 | C85: -8.59189038 | D85: -33.99993213 | E85: -0.8401252038 | F85: -2.836593069
B86: -239.3249408 | C86: 24.69044804 | D86: 79.49271528 | E86: 65.1060656 | F86: -57.38646209
B88: =MINVERSE(B34:G39) -> 
B95: =MINVERSE(B34:H40) -> 
B103: =MINVERSE(B34:I41) -> 
B112: =MINVERSE(B34:J42) -> 

Sheet RegSm (hidden)
A1: Find RR_X: Fitted Mult RR model with Excel (not used) | H1: Intercept= | I1: =IF(IndrctAdj!K52=1,1,IF(IndrctAdj!K52="Y",1,0)) -> 0 | O1: Return
A2: No RR_X= | B2: =16-COUNTBLANK(A5:A20) -> 7 | C2: no. scrs = | D2: =16-COUNTBLANK(D5:D20) -> 7 | P2: =SUM(P5:P20) -> 0.01619753133 | R2: =SUM(R5:R20) -> 0.0188605178
A3: No RR_Obs= | B3: =16-COUNTBLANK(B5:B20) -> 7 | H3: Fitted - log-linear (OLS) | M3: RR_X-1 | N3: RR_obs-1 | O3: Fitted - linear (OLS)
A4: RR_X | B4: RR_obs | C4: Const | D4: x | F4: ln(RR_X) | G4: ln(RR_obs) | H4: alpha | I4: Beta | J4: alpha | K4: Beta | M4: ERR_X | N4: ERR_obs | O4: alpha | P4: Beta | Q4: alpha | R4: Beta
A5: =IF(IndrctAdj!E32="","",IndrctAdj!E32) -> 1 | B5: =IF(IndrctAdj!C32="","",IndrctAdj!C32) -> 1 | C5: 1 | D5: =IF(IndrctAdj!D8="","",IndrctAdj!D8) -> 0 | E5: 1 | F5: =IF(A5="","",LN(A5)) -> 0 | G5: =IF(B5="","",LN(B5)) -> 0 | H5: =IF($B$2=E5,INTERCEPT($F$5:F5,$D$5:D5)*$I$1,"") ->  | I5: =IF($B$2=E5,LINEST($F$5:F5,$D$5:D5,$I$1),"") ->  | J5: =IF($B$2=E5,INTERCEPT($G$5:G5,$D$5:D5)*$I$1,"") ->  | K5: =IF($B$2=E5,LINEST($G$5:G5,$D$5:D5,$I$1),"") ->  | M5: =IF(A5="","",A5-1) -> 0 | N5: =IF(B5="","",B5-1) -> 0
A6: =IF(IndrctAdj!E33="","",IndrctAdj!E33) -> 1.248788393 | B6: =IF(IndrctAdj!C33="","",IndrctAdj!C33) -> 1.26 | C6: 1 | D6: =IF(IndrctAdj!D9="","",IndrctAdj!D9) -> 6.65243 | E6: 2 | F6: 0.2221737959 | G6: 0.231111721 | H6: =IF($B$2=E6,INTERCEPT($F$5:F6,$D$5:D6)*$I$1,"") ->  | I6: =IF($B$2=E6,LINEST($F$5:F6,$D$5:D6,$I$1),"") ->  | J6: =IF($B$2=E6,INTERCEPT($G$5:G6,$D$5:D6)*$I$1,"") ->  | K6: =IF($B$2=E6,LINEST($G$5:G6,$D$5:D6,$I$1),"") ->  | M6: 0.2487883933 | N6: 0.26 | O6: =IF($B$2=E6,INTERCEPT($M$5:M6,$D$5:D6)*$I$1,"") ->  | P6: =IF($B$2=E6,LINEST($M$5:M6,$D$5:D6,$I$1),"") ->  | Q6: =IF($B$2=E6,INTERCEPT($N$5:N6,$D$5:D6)*$I$1,"") ->  | R6: =IF($B$2=E6,LINEST($N$5:N6,$D$5:D6,$I$1),"") -> 
A7: =IF(IndrctAdj!E34="","",IndrctAdj!E34) -> 1.482097815 | B7: =IF(IndrctAdj!C34="","",IndrctAdj!C34) -> 1.59 | C7: 1 | D7: =IF(IndrctAdj!D10="","",IndrctAdj!D10) -> 23.5316 | E7: 3 | F7: 0.3934585268 | G7: 0.4637340162 | H7: =IF($B$2=E7,INTERCEPT($F$5:F7,$D$5:D7)*$I$1,"") ->  | I7: =IF($B$2=E7,LINEST($F$5:F7,$D$5:D7,$I$1),"") ->  | J7: =IF($B$2=E7,INTERCEPT($G$5:G7,$D$5:D7)*$I$1,"") ->  | K7: =IF($B$2=E7,LINEST($G$5:G7,$D$5:D7,$I$1),"") ->  | M7: 0.4820978152 | N7: 0.59 | O7: =IF($B$2=E7,INTERCEPT($M$5:M7,$D$5:D7)*$I$1,"") ->  | P7: =IF($B$2=E7,LINEST($M$5:M7,$D$5:D7,$I$1),"") ->  | Q7: =IF($B$2=E7,INTERCEPT($N$5:N7,$D$5:D7)*$I$1,"") ->  | R7: =IF($B$2=E7,LINEST($N$5:N7,$D$5:D7,$I$1),"") -> 
A8: =IF(IndrctAdj!E35="","",IndrctAdj!E35) -> 1.573447008 | B8: =IF(IndrctAdj!C35="","",IndrctAdj!C35) -> 1.67 | C8: 1 | D8: =IF(IndrctAdj!D11="","",IndrctAdj!D11) -> 33.5394 | E8: 4 | F8: 0.453268759 | G8: 0.5128236264 | H8: =IF($B$2=E8,INTERCEPT($F$5:F8,$D$5:D8)*$I$1,"") ->  | I8: =IF($B$2=E8,LINEST($F$5:F8,$D$5:D8,$I$1),"") ->  | J8: =IF($B$2=E8,INTERCEPT($G$5:G8,$D$5:D8)*$I$1,"") ->  | K8: =IF($B$2=E8,LINEST($G$5:G8,$D$5:D8,$I$1),"") ->  | M8: 0.5734470078 | N8: 0.67 | O8: =IF($B$2=E8,INTERCEPT($M$5:M8,$D$5:D8)*$I$1,"") ->  | P8: =IF($B$2=E8,LINEST($M$5:M8,$D$5:D8,$I$1),"") ->  | Q8: =IF($B$2=E8,INTERCEPT($N$5:N8,$D$5:D8)*$I$1,"") ->  | R8: =IF($B$2=E8,LINEST($N$5:N8,$D$5:D8,$I$1),"") -> 
A9: =IF(IndrctAdj!E36="","",IndrctAdj!E36) -> 1.829078012 | B9: =IF(IndrctAdj!C36="","",IndrctAdj!C36) -> 1.98 | C9: 1 | D9: =IF(IndrctAdj!D12="","",IndrctAdj!D12) -> 43.6746 | E9: 5 | F9: 0.6038120216 | G9: 0.6830968447 | H9: =IF($B$2=E9,INTERCEPT($F$5:F9,$D$5:D9)*$I$1,"") ->  | I9: =IF($B$2=E9,LINEST($F$5:F9,$D$5:D9,$I$1),"") ->  | J9: =IF($B$2=E9,INTERCEPT($G$5:G9,$D$5:D9)*$I$1,"") ->  | K9: =IF($B$2=E9,LINEST($G$5:G9,$D$5:D9,$I$1),"") ->  | M9: 0.8290780125 | N9: 0.98 | O9: =IF($B$2=E9,INTERCEPT($M$5:M9,$D$5:D9)*$I$1,"") ->  | P9: =IF($B$2=E9,LINEST($M$5:M9,$D$5:D9,$I$1),"") ->  | Q9: =IF($B$2=E9,INTERCEPT($N$5:N9,$D$5:D9)*$I$1,"") ->  | R9: =IF($B$2=E9,LINEST($N$5:N9,$D$5:D9,$I$1),"") -> 
A10: =IF(IndrctAdj!E37="","",IndrctAdj!E37) -> 2.025606833 | B10: =IF(IndrctAdj!C37="","",IndrctAdj!C37) -> 2.18 | C10: 1 | D10: =IF(IndrctAdj!D13="","",IndrctAdj!D13) -> 53.618 | E10: 6 | F10: 0.7058693264 | G10: 0.7793248768 | H10: =IF($B$2=E10,INTERCEPT($F$5:F10,$D$5:D10)*$I$1,"") ->  | I10: =IF($B$2=E10,LINEST($F$5:F10,$D$5:D10,$I$1),"") ->  | J10: =IF($B$2=E10,INTERCEPT($G$5:G10,$D$5:D10)*$I$1,"") ->  | K10: =IF($B$2=E10,LINEST($G$5:G10,$D$5:D10,$I$1),"") ->  | M10: 1.025606833 | N10: 1.18 | O10: =IF($B$2=E10,INTERCEPT($M$5:M10,$D$5:D10)*$I$1,"") ->  | P10: =IF($B$2=E10,LINEST($M$5:M10,$D$5:D10,$I$1),"") ->  | Q10: =IF($B$2=E10,INTERCEPT($N$5:N10,$D$5:D10)*$I$1,"") ->  | R10: =IF($B$2=E10,LINEST($N$5:N10,$D$5:D10,$I$1),"") -> 
A11: =IF(IndrctAdj!E38="","",IndrctAdj!E38) -> 2.08664548 | B11: =IF(IndrctAdj!C38="","",IndrctAdj!C38) -> 2.26 | C11: 1 | D11: =IF(IndrctAdj!D14="","",IndrctAdj!D14) -> 80.8767 | E11: 7 | F11: 0.735557743 | G11: 0.8153648133 | H11: =IF($B$2=E11,INTERCEPT($F$5:F11,$D$5:D11)*$I$1,"") -> 0 | I11: =IF($B$2=E11,LINEST($F$5:F11,$D$5:D11,$I$1),"") -> 0.01147047728 | J11: =IF($B$2=E11,INTERCEPT($G$5:G11,$D$5:D11)*$I$1,"") -> 0 | K11: =IF($B$2=E11,LINEST($G$5:G11,$D$5:D11,$I$1),"") -> 0.01281694451 | M11: 1.08664548 | N11: 1.26 | O11: =IF($B$2=E11,INTERCEPT($M$5:M11,$D$5:D11)*$I$1,"") -> 0 | P11: =IF($B$2=E11,LINEST($M$5:M11,$D$5:D11,$I$1),"") -> 0.01619753133 | Q11: =IF($B$2=E11,INTERCEPT($N$5:N11,$D$5:D11)*$I$1,"") -> 0 | R11: =IF($B$2=E11,LINEST($N$5:N11,$D$5:D11,$I$1),"") -> 0.0188605178
A12: =IF(IndrctAdj!E39="","",IndrctAdj!E39) ->  | B12: =IF(IndrctAdj!C39="","",IndrctAdj!C39) ->  | C12: 1 | D12: =IF(IndrctAdj!D15="","",IndrctAdj!D15) ->  | E12: 8 | H12: =IF($B$2=E12,INTERCEPT($F$5:F12,$D$5:D12)*$I$1,"") ->  | I12: =IF($B$2=E12,LINEST($F$5:F12,$D$5:D12,$I$1),"") ->  | J12: =IF($B$2=E12,INTERCEPT($G$5:G12,$D$5:D12)*$I$1,"") ->  | K12: =IF($B$2=E12,LINEST($G$5:G12,$D$5:D12,$I$1),"") ->  | O12: =IF($B$2=E12,INTERCEPT($M$5:M12,$D$5:D12)*$I$1,"") ->  | P12: =IF($B$2=E12,LINEST($M$5:M12,$D$5:D12,$I$1),"") ->  | Q12: =IF($B$2=E12,INTERCEPT($N$5:N12,$D$5:D12)*$I$1,"") ->  | R12: =IF($B$2=E12,LINEST($N$5:N12,$D$5:D12,$I$1),"") -> 
A13: =IF(IndrctAdj!E40="","",IndrctAdj!E40) ->  | B13: =IF(IndrctAdj!C40="","",IndrctAdj!C40) ->  | C13: 1 | D13: =IF(IndrctAdj!D16="","",IndrctAdj!D16) ->  | E13: 9 | F13: =IF(A13="","",LN(A13)) ->  | G13: =IF(B13="","",LN(B13)) ->  | H13: =IF($B$2=E13,INTERCEPT($F$5:F13,$D$5:D13)*$I$1,"") ->  | I13: =IF($B$2=E13,LINEST($F$5:F13,$D$5:D13,$I$1),"") ->  | J13: =IF($B$2=E13,INTERCEPT($G$5:G13,$D$5:D13)*$I$1,"") ->  | K13: =IF($B$2=E13,LINEST($G$5:G13,$D$5:D13,$I$1),"") ->  | O13: =IF($B$2=E13,INTERCEPT($M$5:M13,$D$5:D13)*$I$1,"") ->  | P13: =IF($B$2=E13,LINEST($M$5:M13,$D$5:D13,$I$1),"") ->  | Q13: =IF($B$2=E13,INTERCEPT($N$5:N13,$D$5:D13)*$I$1,"") ->  | R13: =IF($B$2=E13,LINEST($N$5:N13,$D$5:D13,$I$1),"") -> 
A14: =IF(IndrctAdj!E41="","",IndrctAdj!E41) ->  | B14: =IF(IndrctAdj!C41="","",IndrctAdj!C41) ->  | C14: 1 | D14: =IF(IndrctAdj!D17="","",IndrctAdj!D17) ->  | E14: 10 | H14: =IF($B$2=E14,INTERCEPT($F$5:F14,$D$5:D14)*$I$1,"") ->  | I14: =IF($B$2=E14,LINEST($F$5:F14,$D$5:D14,$I$1),"") ->  | J14: =IF($B$2=E14,INTERCEPT($G$5:G14,$D$5:D14)*$I$1,"") ->  | K14: =IF($B$2=E14,LINEST($G$5:G14,$D$5:D14,$I$1),"") ->  | O14: =IF($B$2=E14,INTERCEPT($M$5:M14,$D$5:D14)*$I$1,"") ->  | P14: =IF($B$2=E14,LINEST($M$5:M14,$D$5:D14,$I$1),"") ->  | Q14: =IF($B$2=E14,INTERCEPT($N$5:N14,$D$5:D14)*$I$1,"") ->  | R14: =IF($B$2=E14,LINEST($N$5:N14,$D$5:D14,$I$1),"") -> 
A15: =IF(IndrctAdj!E42="","",IndrctAdj!E42) ->  | B15: =IF(IndrctAdj!C42="","",IndrctAdj!C42) ->  | C15: 1 | D15: =IF(IndrctAdj!D18="","",IndrctAdj!D18) ->  | E15: 11 | H15: =IF($B$2=E15,INTERCEPT($F$5:F15,$D$5:D15)*$I$1,"") ->  | I15: =IF($B$2=E15,LINEST($F$5:F15,$D$5:D15,$I$1),"") ->  | J15: =IF($B$2=E15,INTERCEPT($G$5:G15,$D$5:D15)*$I$1,"") ->  | K15: =IF($B$2=E15,LINEST($G$5:G15,$D$5:D15,$I$1),"") ->  | M15: =IF(A15="","",A15-1) ->  | N15: =IF(B15="","",B15-1) ->  | O15: =IF($B$2=E15,INTERCEPT($M$5:M15,$D$5:D15)*$I$1,"") ->  | P15: =IF($B$2=E15,LINEST($M$5:M15,$D$5:D15,$I$1),"") ->  | Q15: =IF($B$2=E15,INTERCEPT($N$5:N15,$D$5:D15)*$I$1,"") ->  | R15: =IF($B$2=E15,LINEST($N$5:N15,$D$5:D15,$I$1),"") -> 
A16: =IF(IndrctAdj!E43="","",IndrctAdj!E43) ->  | B16: =IF(IndrctAdj!C43="","",IndrctAdj!C43) ->  | C16: 1 | D16: =IF(IndrctAdj!D19="","",IndrctAdj!D19) ->  | E16: 12 | H16: =IF($B$2=E16,INTERCEPT($F$5:F16,$D$5:D16)*$I$1,"") ->  | I16: =IF($B$2=E16,LINEST($F$5:F16,$D$5:D16,$I$1),"") ->  | J16: =IF($B$2=E16,INTERCEPT($G$5:G16,$D$5:D16)*$I$1,"") ->  | K16: =IF($B$2=E16,LINEST($G$5:G16,$D$5:D16,$I$1),"") ->  | O16: =IF($B$2=E16,INTERCEPT($M$5:M16,$D$5:D16)*$I$1,"") ->  | P16: =IF($B$2=E16,LINEST($M$5:M16,$D$5:D16,$I$1),"") ->  | Q16: =IF($B$2=E16,INTERCEPT($N$5:N16,$D$5:D16)*$I$1,"") ->  | R16: =IF($B$2=E16,LINEST($N$5:N16,$D$5:D16,$I$1),"") -> 
A17: =IF(IndrctAdj!E44="","",IndrctAdj!E44) ->  | B17: =IF(IndrctAdj!C44="","",IndrctAdj!C44) ->  | C17: 1 | D17: =IF(IndrctAdj!D20="","",IndrctAdj!D20) ->  | E17: 13 | H17: =IF($B$2=E17,INTERCEPT($F$5:F17,$D$5:D17)*$I$1,"") ->  | I17: =IF($B$2=E17,LINEST($F$5:F17,$D$5:D17,$I$1),"") ->  | J17: =IF($B$2=E17,INTERCEPT($G$5:G17,$D$5:D17)*$I$1,"") ->  | K17: =IF($B$2=E17,LINEST($G$5:G17,$D$5:D17,$I$1),"") ->  | N17: =IF(B17="","",B17-1) ->  | O17: =IF($B$2=E17,INTERCEPT($M$5:M17,$D$5:D17)*$I$1,"") ->  | P17: =IF($B$2=E17,LINEST($M$5:M17,$D$5:D17,$I$1),"") ->  | Q17: =IF($B$2=E17,INTERCEPT($N$5:N17,$D$5:D17)*$I$1,"") ->  | R17: =IF($B$2=E17,LINEST($N$5:N17,$D$5:D17,$I$1),"") -> 
A18: =IF(IndrctAdj!E45="","",IndrctAdj!E45) ->  | B18: =IF(IndrctAdj!C45="","",IndrctAdj!C45) ->  | C18: 1 | D18: =IF(IndrctAdj!D21="","",IndrctAdj!D21) ->  | E18: 14 | F18: =IF(A18="","",LN(A18)) ->  | G18: =IF(B18="","",LN(B18)) ->  | H18: =IF($B$2=E18,INTERCEPT($F$5:F18,$D$5:D18)*$I$1,"") ->  | I18: =IF($B$2=E18,LINEST($F$5:F18,$D$5:D18,$I$1),"") ->  | J18: =IF($B$2=E18,INTERCEPT($G$5:G18,$D$5:D18)*$I$1,"") ->  | K18: =IF($B$2=E18,LINEST($G$5:G18,$D$5:D18,$I$1),"") ->  | M18: =IF(A18="","",A18-1) ->  | O18: =IF($B$2=E18,INTERCEPT($M$5:M18,$D$5:D18)*$I$1,"") ->  | P18: =IF($B$2=E18,LINEST($M$5:M18,$D$5:D18,$I$1),"") ->  | Q18: =IF($B$2=E18,INTERCEPT($N$5:N18,$D$5:D18)*$I$1,"") ->  | R18: =IF($B$2=E18,LINEST($N$5:N18,$D$5:D18,$I$1),"") -> 
A19: =IF(IndrctAdj!E46="","",IndrctAdj!E46) ->  | B19: =IF(IndrctAdj!C46="","",IndrctAdj!C46) ->  | C19: 1 | D19: =IF(IndrctAdj!D22="","",IndrctAdj!D22) ->  | E19: 15 | H19: =IF($B$2=E19,INTERCEPT($F$5:F19,$D$5:D19)*$I$1,"") ->  | I19: =IF($B$2=E19,LINEST($F$5:F19,$D$5:D19,$I$1),"") ->  | J19: =IF($B$2=E19,INTERCEPT($G$5:G19,$D$5:D19)*$I$1,"") ->  | K19: =IF($B$2=E19,LINEST($G$5:G19,$D$5:D19,$I$1),"") ->  | O19: =IF($B$2=E19,INTERCEPT($M$5:M19,$D$5:D19)*$I$1,"") ->  | P19: =IF($B$2=E19,LINEST($M$5:M19,$D$5:D19,$I$1),"") ->  | Q19: =IF($B$2=E19,INTERCEPT($N$5:N19,$D$5:D19)*$I$1,"") ->  | R19: =IF($B$2=E19,LINEST($N$5:N19,$D$5:D19,$I$1),"") -> 
A20: =IF(IndrctAdj!E47="","",IndrctAdj!E47) ->  | B20: =IF(IndrctAdj!C47="","",IndrctAdj!C47) ->  | C20: 1 | D20: =IF(IndrctAdj!D23="","",IndrctAdj!D23) ->  | E20: 16 | F20: =IF(A20="","",LN(A20)) ->  | G20: =IF(B20="","",LN(B20)) ->  | H20: =IF($B$2=E20,INTERCEPT($F$5:F20,$D$5:D20)*$I$1,"") ->  | I20: =IF($B$2=E20,LINEST($F$5:F20,$D$5:D20,$I$1),"") ->  | J20: =IF($B$2=E20,INTERCEPT($G$5:G20,$D$5:D20)*$I$1,"") ->  | K20: =IF($B$2=E20,LINEST($G$5:G20,$D$5:D20,$I$1),"") ->  | M20: =IF(A20="","",A20-1) ->  | N20: =IF(B20="","",B20-1) ->  | O20: =IF($B$2=E20,INTERCEPT($M$5:M20,$D$5:D20)*$I$1,"") ->  | P20: =IF($B$2=E20,LINEST($M$5:M20,$D$5:D20,$I$1),"") ->  | Q20: =IF($B$2=E20,INTERCEPT($N$5:N20,$D$5:D20)*$I$1,"") ->  | R20: =IF($B$2=E20,LINEST($N$5:N20,$D$5:D20,$I$1),"") -> 
G21: Return | H21: =SUM(H5:H20) -> 0 | I21: =SUM(I5:I20) -> 0.01147047728 | J21: 0 | K21: 0.01281694451 | N21: Return | O21: =SUM(O5:O20) -> 0 | P21: =SUM(P5:P20) -> 0.01619753133 | Q21: 0 | R21: 0.0188605178
A23: Find ERR_X: Fitted ERR Add model with Excel (not used)
A24: No ERR_X= | B24: =16-COUNTBLANK(A27:A42) -> 7 | C24: no. scrs = | D24: =16-COUNTBLANK(D27:D42) -> 7 | H24: Intercept= | I24: =IF(IndrctAdj!K99=1,1,IF(IndrctAdj!K99="Y",1,0)) -> 0
A25: No ERR_Obs= | B25: =16-COUNTBLANK(B27:B42) -> 7 | F25: X | H25: Obs
A26: ERR_X | B26: ERR_obs | D26: x | F26: alpha | G26: Beta | H26: alpha | I26: Beta
A27: =IF(IndrctAdj!E79="","",IndrctAdj!E79) -> 0 | B27: =IF(IndrctAdj!C79="","",IndrctAdj!C79) -> 0 | C27: 1 | D27: =IF(IndrctAdj!D8="","",IndrctAdj!D8) -> 0 | E27: 1
A28: =IF(IndrctAdj!E80="","",IndrctAdj!E80) -> 0.1806779432 | B28: =IF(IndrctAdj!C80="","",IndrctAdj!C80) -> 0.26 | C28: 1 | D28: =IF(IndrctAdj!D9="","",IndrctAdj!D9) -> 6.65243 | E28: 2 | F28: =IF($B$24=E28,INTERCEPT($A$27:A28,$D$27:D28)*$I$24,"") ->  | G28: =IF($B$24=E28,LINEST($A$27:A28,$D$27:D28,$I$24),"") ->  | H28: =IF($B$24=E28,INTERCEPT($B$27:B28,$D$27:D28)*$I$24,"") ->  | I28: =IF($B$24=E28,LINEST($B$27:B28,$D$27:D28,$I$24),"") -> 
A29: =IF(IndrctAdj!E81="","",IndrctAdj!E81) -> 0.3722620388 | B29: =IF(IndrctAdj!C81="","",IndrctAdj!C81) -> 0.59 | C29: 1 | D29: =IF(IndrctAdj!D10="","",IndrctAdj!D10) -> 23.5316 | E29: 3 | F29: =IF($B$24=E29,INTERCEPT($A$27:A29,$D$27:D29)*$I$24,"") ->  | G29: =IF($B$24=E29,LINEST($A$27:A29,$D$27:D29,$I$24),"") ->  | H29: =IF($B$24=E29,INTERCEPT($B$27:B29,$D$27:D29)*$I$24,"") ->  | I29: =IF($B$24=E29,LINEST($B$27:B29,$D$27:D29,$I$24),"") -> 
A30: =IF(IndrctAdj!E82="","",IndrctAdj!E82) -> 0.4380775244 | B30: =IF(IndrctAdj!C82="","",IndrctAdj!C82) -> 0.67 | C30: 1 | D30: =IF(IndrctAdj!D11="","",IndrctAdj!D11) -> 33.5394 | E30: 4 | F30: =IF($B$24=E30,INTERCEPT($A$27:A30,$D$27:D30)*$I$24,"") ->  | G30: =IF($B$24=E30,LINEST($A$27:A30,$D$27:D30,$I$24),"") ->  | H30: =IF($B$24=E30,INTERCEPT($B$27:B30,$D$27:D30)*$I$24,"") ->  | I30: =IF($B$24=E30,LINEST($B$27:B30,$D$27:D30,$I$24),"") -> 
A31: =IF(IndrctAdj!E83="","",IndrctAdj!E83) -> 0.6459838936 | B31: =IF(IndrctAdj!C83="","",IndrctAdj!C83) -> 0.98 | C31: 1 | D31: =IF(IndrctAdj!D12="","",IndrctAdj!D12) -> 43.6746 | E31: 5 | F31: =IF($B$24=E31,INTERCEPT($A$27:A31,$D$27:D31)*$I$24,"") ->  | G31: =IF($B$24=E31,LINEST($A$27:A31,$D$27:D31,$I$24),"") ->  | H31: =IF($B$24=E31,INTERCEPT($B$27:B31,$D$27:D31)*$I$24,"") ->  | I31: =IF($B$24=E31,LINEST($B$27:B31,$D$27:D31,$I$24),"") -> 
A32: =IF(IndrctAdj!E84="","",IndrctAdj!E84) -> 0.7944664776 | B32: =IF(IndrctAdj!C84="","",IndrctAdj!C84) -> 1.18 | C32: 1 | D32: =IF(IndrctAdj!D13="","",IndrctAdj!D13) -> 53.618 | E32: 6 | F32: =IF($B$24=E32,INTERCEPT($A$27:A32,$D$27:D32)*$I$24,"") ->  | G32: =IF($B$24=E32,LINEST($A$27:A32,$D$27:D32,$I$24),"") ->  | H32: =IF($B$24=E32,INTERCEPT($B$27:B32,$D$27:D32)*$I$24,"") ->  | I32: =IF($B$24=E32,LINEST($B$27:B32,$D$27:D32,$I$24),"") -> 
A33: =IF(IndrctAdj!E85="","",IndrctAdj!E85) -> 0.8471122832 | B33: =IF(IndrctAdj!C85="","",IndrctAdj!C85) -> 1.26 | C33: 1 | D33: =IF(IndrctAdj!D14="","",IndrctAdj!D14) -> 80.8767 | E33: 7 | F33: =IF($B$24=E33,INTERCEPT($A$27:A33,$D$27:D33)*$I$24,"") -> 0 | G33: =IF($B$24=E33,LINEST($A$27:A33,$D$27:D33,$I$24),"") -> 0.01256887931 | H33: =IF($B$24=E33,INTERCEPT($B$27:B33,$D$27:D33)*$I$24,"") -> 0 | I33: =IF($B$24=E33,LINEST($B$27:B33,$D$27:D33,$I$24),"") -> 0.0188605178
A34: =IF(IndrctAdj!E86="","",IndrctAdj!E86) ->  | B34: =IF(IndrctAdj!C86="","",IndrctAdj!C86) ->  | C34: 1 | D34: =IF(IndrctAdj!D15="","",IndrctAdj!D15) ->  | E34: 8 | F34: =IF($B$24=E34,INTERCEPT($A$27:A34,$D$27:D34)*$I$24,"") ->  | G34: =IF($B$24=E34,LINEST($A$27:A34,$D$27:D34,$I$24),"") ->  | H34: =IF($B$24=E34,INTERCEPT($B$27:B34,$D$27:D34)*$I$24,"") ->  | I34: =IF($B$24=E34,LINEST($B$27:B34,$D$27:D34,$I$24),"") -> 
A35: =IF(IndrctAdj!E87="","",IndrctAdj!E87) ->  | B35: =IF(IndrctAdj!C87="","",IndrctAdj!C87) ->  | C35: 1 | D35: =IF(IndrctAdj!D16="","",IndrctAdj!D16) ->  | E35: 9 | F35: =IF($B$24=E35,INTERCEPT($A$27:A35,$D$27:D35)*$I$24,"") ->  | G35: =IF($B$24=E35,LINEST($A$27:A35,$D$27:D35,$I$24),"") ->  | H35: =IF($B$24=E35,INTERCEPT($B$27:B35,$D$27:D35)*$I$24,"") ->  | I35: =IF($B$24=E35,LINEST($B$27:B35,$D$27:D35,$I$24),"") -> 
A36: =IF(IndrctAdj!E88="","",IndrctAdj!E88) ->  | B36: =IF(IndrctAdj!C88="","",IndrctAdj!C88) ->  | C36: 1 | D36: =IF(IndrctAdj!D17="","",IndrctAdj!D17) ->  | E36: 10 | F36: =IF($B$24=E36,INTERCEPT($A$27:A36,$D$27:D36)*$I$24,"") ->  | G36: =IF($B$24=E36,LINEST($A$27:A36,$D$27:D36,$I$24),"") ->  | H36: =IF($B$24=E36,INTERCEPT($B$27:B36,$D$27:D36)*$I$24,"") ->  | I36: =IF($B$24=E36,LINEST($B$27:B36,$D$27:D36,$I$24),"") -> 
A37: =IF(IndrctAdj!E89="","",IndrctAdj!E89) ->  | B37: =IF(IndrctAdj!C89="","",IndrctAdj!C89) ->  | C37: 1 | D37: =IF(IndrctAdj!D18="","",IndrctAdj!D18) ->  | E37: 11 | F37: =IF($B$24=E37,INTERCEPT($A$27:A37,$D$27:D37)*$I$24,"") ->  | G37: =IF($B$24=E37,LINEST($A$27:A37,$D$27:D37,$I$24),"") ->  | H37: =IF($B$24=E37,INTERCEPT($B$27:B37,$D$27:D37)*$I$24,"") ->  | I37: =IF($B$24=E37,LINEST($B$27:B37,$D$27:D37,$I$24),"") -> 
A38: =IF(IndrctAdj!E90="","",IndrctAdj!E90) ->  | B38: =IF(IndrctAdj!C90="","",IndrctAdj!C90) ->  | C38: 1 | D38: =IF(IndrctAdj!D19="","",IndrctAdj!D19) ->  | E38: 12 | F38: =IF($B$24=E38,INTERCEPT($A$27:A38,$D$27:D38)*$I$24,"") ->  | G38: =IF($B$24=E38,LINEST($A$27:A38,$D$27:D38,$I$24),"") ->  | H38: =IF($B$24=E38,INTERCEPT($B$27:B38,$D$27:D38)*$I$24,"") ->  | I38: =IF($B$24=E38,LINEST($B$27:B38,$D$27:D38,$I$24),"") -> 
A39: =IF(IndrctAdj!E91="","",IndrctAdj!E91) ->  | B39: =IF(IndrctAdj!C91="","",IndrctAdj!C91) ->  | C39: 1 | D39: =IF(IndrctAdj!D20="","",IndrctAdj!D20) ->  | E39: 13 | F39: =IF($B$24=E39,INTERCEPT($A$27:A39,$D$27:D39)*$I$24,"") ->  | G39: =IF($B$24=E39,LINEST($A$27:A39,$D$27:D39,$I$24),"") ->  | H39: =IF($B$24=E39,INTERCEPT($B$27:B39,$D$27:D39)*$I$24,"") ->  | I39: =IF($B$24=E39,LINEST($B$27:B39,$D$27:D39,$I$24),"") -> 
A40: =IF(IndrctAdj!E92="","",IndrctAdj!E92) ->  | B40: =IF(IndrctAdj!C92="","",IndrctAdj!C92) ->  | C40: 1 | D40: =IF(IndrctAdj!D21="","",IndrctAdj!D21) ->  | E40: 14 | F40: =IF($B$24=E40,INTERCEPT($A$27:A40,$D$27:D40)*$I$24,"") ->  | G40: =IF($B$24=E40,LINEST($A$27:A40,$D$27:D40,$I$24),"") ->  | H40: =IF($B$24=E40,INTERCEPT($B$27:B40,$D$27:D40)*$I$24,"") ->  | I40: =IF($B$24=E40,LINEST($B$27:B40,$D$27:D40,$I$24),"") -> 
A41: =IF(IndrctAdj!E93="","",IndrctAdj!E93) ->  | B41: =IF(IndrctAdj!C93="","",IndrctAdj!C93) ->  | C41: 1 | D41: =IF(IndrctAdj!D22="","",IndrctAdj!D22) ->  | E41: 15 | F41: =IF($B$24=E41,INTERCEPT($A$27:A41,$D$27:D41)*$I$24,"") ->  | G41: =IF($B$24=E41,LINEST($A$27:A41,$D$27:D41,$I$24),"") ->  | H41: =IF($B$24=E41,INTERCEPT($B$27:B41,$D$27:D41)*$I$24,"") ->  | I41: =IF($B$24=E41,LINEST($B$27:B41,$D$27:D41,$I$24),"") -> 
A42: =IF(IndrctAdj!E94="","",IndrctAdj!E94) ->  | B42: =IF(IndrctAdj!C94="","",IndrctAdj!C94) ->  | C42: 1 | D42: =IF(IndrctAdj!D23="","",IndrctAdj!D23) ->  | E42: 16 | F42: =IF($B$24=E42,INTERCEPT($A$27:A42,$D$27:D42)*$I$24,"") ->  | G42: =IF($B$24=E42,LINEST($A$27:A42,$D$27:D42,$I$24),"") ->  | H42: =IF($B$24=E42,INTERCEPT($B$27:B42,$D$27:D42)*$I$24,"") ->  | I42: =IF($B$24=E42,LINEST($B$27:B42,$D$27:D42,$I$24),"") ->  | S42: MMULT(MINVERSE(MMULT(MMULT(TRANSPOSE($C$5:$D14),$C$57:L66),$C$5:$D14)),MMULT(MMULT(TRANSPOSE($C$5:$D14),$C$57:L66),$F$5:$F14))
E43: Return | F43: =SUM(F27:F42) -> 0 | G43: =SUM(G27:G42) -> 0.01256887931 | H43: 0 | I43: 0.0188605178
A46: Find RR_X: Multiplicative model: Wgt reg: b = (X'WX)^-1 X'Wy | T46: Multiplicative model: Wgt reg: b = (X'WX)^-1 X'Wy
A47: W/ intercept | D47: 2 | E47: 3 | F47: 4 | G47: 5 | H47: 6 | I47: 7 | J47: 8 | K47: 9 | L47: 10 | M47: 11 | N47: 12 | O47: 13 | P47: 14 | Q47: 15 | R47: 16 | T47: No intercept | U47: 2 | V47: 3 | W47: 4 | X47: 5 | Y47: 6 | Z47: 7 | AA47: 8 | AB47: 9 | AC47: 10 | AD47: 11 | AE47: 12 | AF47: 13 | AG47: 14 | AH47: 15 | AI47: 16
A48: ln(RR_X) | B48: b_0 | D48: =MMULT(MINVERSE(MMULT(MMULT(TRANSPOSE(C5:D6 ),C57:D58),C5:D6 )),MMULT(MMULT(TRANSPOSE(C5:D6 ),C57:D58),F5:F6 )) -> -1.110223025e-16 | E48: =MMULT(MINVERSE(MMULT(MMULT(TRANSPOSE(C5:D7 ),C57:E59),C5:D7 )),MMULT(MMULT(TRANSPOSE(C5:D7 ),C57:E59),F5:F7 )) -> 0.08315735459 | F48: =MMULT(MINVERSE(MMULT(MMULT(TRANSPOSE(C5:D8 ),C57:F60),C5:D8 )),MMULT(MMULT(TRANSPOSE(C5:D8 ),C57:F60),F5:F8 )) -> 0.09993239988 | G48: =MMULT(MINVERSE(MMULT(MMULT(TRANSPOSE(C5:D9 ),C57:G61),C5:D9 )),MMULT(MMULT(TRANSPOSE(C5:D9 ),C57:G61),F5:F9 )) -> 0.1014002735 | H48: =MMULT(MINVERSE(MMULT(MMULT(TRANSPOSE(C5:D10),C57:H62),C5:D10)),MMULT(MMULT(TRANSPOSE(C5:D10),C57:H62),F5:F10)) -> 0.1027279284 | I48: =MMULT(MINVERSE(MMULT(MMULT(TRANSPOSE(C5:D11),C57:I63),C5:D11)),MMULT(MMULT(TRANSPOSE(C5:D11),C57:I63),F5:F11)) -> 0.1419669381 | J48: =MMULT(MINVERSE(MMULT(MMULT(TRANSPOSE(C5:D12),C57:J64),C5:D12)),MMULT(MMULT(TRANSPOSE(C5:D12),C57:J64),F5:F12)) ->  | K48: =MMULT(MINVERSE(MMULT(MMULT(TRANSPOSE(C5:D13),C57:K65),C5:D13)),MMULT(MMULT(TRANSPOSE(C5:D13),C57:K65),F5:F13)) ->  | L48: =MMULT(MINVERSE(MMULT(MMULT(TRANSPOSE($C$5:$D14),$C$57:L66),$C$5:$D14)),MMULT(MMULT(TRANSPOSE($C$5:$D14),$C$57:L66),$F5:$F14)) ->  | M48: =MMULT(MINVERSE(MMULT(MMULT(TRANSPOSE($C$5:$D$15),$C$57:M67),$C$5:$D$15)),MMULT(MMULT(TRANSPOSE($C$5:$D$15),$C$57:M67),$F5:$F15)) ->  | N48: =MMULT(MINVERSE(MMULT(MMULT(TRANSPOSE($C$5:$D$16),$C$57:N68),$C$5:$D$16)),MMULT(MMULT(TRANSPOSE($C$5:$D$16),$C$57:N68),$F5:$F16)) ->  | O48: =MMULT(MINVERSE(MMULT(MMULT(TRANSPOSE($C$5:$D$17),$C$57:O69),$C$5:$D$17)),MMULT(MMULT(TRANSPOSE($C$5:$D$17),$C$57:O69),$F5:$F17)) ->  | P48: =MMULT(MINVERSE(MMULT(MMULT(TRANSPOSE($C$5:$D$17),$C$57:O69),$C$5:$D$17)),MMULT(MMULT(TRANSPOSE($C$5:$D$17),$C$57:O69),$F5:$F17)) ->  | Q48: =MMULT(MINVERSE(MMULT(MMULT(TRANSPOSE($C$5:$D$19),$C$57:Q71),$C$5:$D$19)),MMULT(MMULT(TRANSPOSE($C$5:$D$19),$C$57:Q71),$F5:$F19)) ->  | R48: =MMULT(MINVERSE(MMULT(MMULT(TRANSPOSE($C$5:$D$20),$C$57:R72),$C$5:$D$20)),MMULT(MMULT(TRANSPOSE($C$5:$D$20),$C$57:R72),$F5:$F20)) ->  | U48: 0 | V48: 0 | W48: 0 | X48: 0 | Y48: 0 | Z48: 0 | AA48: 0 | AB48: 0 | AC48: 0 | AD48: 0 | AE48: 0 | AF48: 0 | AG48: 0 | AH48: 0 | AI48: 0
B49: b_1 | D49: 0.03339738951 | E49: 0.01447684621 | F49: 0.01181619862 | G49: 0.01164088821 | H49: 0.01151339671 | I49: 0.008639183785 | U49: =MMULT(MINVERSE(MMULT(MMULT(TRANSPOSE(D5:D6 ),C57:D58),D5:D6 )),MMULT(MMULT(TRANSPOSE(D5:D6 ),C57:D58),F5:F6 )) -> 0.03339738951 | V49: =MMULT(MINVERSE(MMULT(MMULT(TRANSPOSE(D5:D7 ),C57:E59),D5:D7 )),MMULT(MMULT(TRANSPOSE(D5:D7 ),C57:E59),F5:F7 )) -> 0.01951114268 | W49: =MMULT(MINVERSE(MMULT(MMULT(TRANSPOSE(D5:D8 ),C57:F60),D5:D8 )),MMULT(MMULT(TRANSPOSE(D5:D8 ),C57:F60),F5:F8 )) -> 0.01614001769 | X49: =MMULT(MINVERSE(MMULT(MMULT(TRANSPOSE(D5:D9 ),C57:G61),D5:D9 )),MMULT(MMULT(TRANSPOSE(D5:D9 ),C57:G61),F5:F9 )) -> 0.01510138831 | Y49: =MMULT(MINVERSE(MMULT(MMULT(TRANSPOSE(D5:D10),C57:H62),D5:D10)),MMULT(MMULT(TRANSPOSE(D5:D10),C57:H62),F5:F10)) -> 0.01464235632 | Z49: =MMULT(MINVERSE(MMULT(MMULT(TRANSPOSE(D5:D11),C57:I63),D5:D11)),MMULT(MMULT(TRANSPOSE(D5:D11),C57:I63),F5:F11)) -> 0.01151537079 | AA49: =MMULT(MINVERSE(MMULT(MMULT(TRANSPOSE(D5:D12),C57:J64),D5:D12)),MMULT(MMULT(TRANSPOSE(D5:D12),C57:J64),F5:F12)) ->  | AB49: =MMULT(MINVERSE(MMULT(MMULT(TRANSPOSE(D5:D13),C57:K65),D5:D13)),MMULT(MMULT(TRANSPOSE(D5:D13),C57:K65),F5:F13)) ->  | AC49: =MMULT(MINVERSE(MMULT(MMULT(TRANSPOSE($D$5:$D$14),$C$57:$L$66),$D$5:$D$14)),MMULT(MMULT(TRANSPOSE($D$5:$D$14),$C$57:$L$66),$F$5:$F$14)) ->  | AD49: =MMULT(MINVERSE(MMULT(MMULT(TRANSPOSE($D$5:$D$15),$C$57:$M$67),$D$5:$D$15)),MMULT(MMULT(TRANSPOSE($D$5:$D$15),$C$57:$M$67),$F$5:$F$15)) ->  | AE49: =MMULT(MINVERSE(MMULT(MMULT(TRANSPOSE($D$5:$D$16),$C$57:$N$68),$D$5:$D$16)),MMULT(MMULT(TRANSPOSE($D$5:$D$16),$C$57:$N$68),$F$5:$F$16)) ->  | AF49: =MMULT(MINVERSE(MMULT(MMULT(TRANSPOSE($D$5:$D$17),$C$57:$O$69),$D$5:$D$17)),MMULT(MMULT(TRANSPOSE($D$5:$D$17),$C$57:$O$69),$F$5:$F$17)) ->  | AG49: =MMULT(MINVERSE(MMULT(MMULT(TRANSPOSE($D$5:$D$18),$C$57:$P$70),$D$5:$D$18)),MMULT(MMULT(TRANSPOSE($D$5:$D$18),$C$57:$P$70),$F$5:$F$18)) ->  | AH49: =MMULT(MINVERSE(MMULT(MMULT(TRANSPOSE($D$5:$D$19),$C$57:$Q$71),$D$5:$D$19)),MMULT(MMULT(TRANSPOSE($D$5:$D$19),$C$57:$Q$71),$F$5:$F$19)) ->  | AI49: =MMULT(MINVERSE(MMULT(MMULT(TRANSPOSE($D$5:$D$20),$C$57:$R$72),$D$5:$D$20)),MMULT(MMULT(TRANSPOSE($D$5:$D$20),$C$57:$R$72),$F$5:$F$20)) -> 
A50: ln(RR_obs) | B50: b_0 | D50: =MMULT(MINVERSE(MMULT(MMULT(TRANSPOSE(C5:D6),C57:D58),C5:D6)),MMULT(MMULT(TRANSPOSE(C5:D6),C57:D58),G5:G6)) -> -1.110223025e-16 | E50: =MMULT(MINVERSE(MMULT(MMULT(TRANSPOSE(C5:D7),C57:E59),C5:D7)),MMULT(MMULT(TRANSPOSE(C5:D7),C57:E59),G5:G7)) -> 0.07496539598 | F50: =MMULT(MINVERSE(MMULT(MMULT(TRANSPOSE(C5:D8),C57:F60),C5:D8)),MMULT(MMULT(TRANSPOSE(C5:D8),C57:F60),G5:G8)) -> 0.09752850218 | G50: =MMULT(MINVERSE(MMULT(MMULT(TRANSPOSE(C5:D9),C57:G61),C5:D9)),MMULT(MMULT(TRANSPOSE(C5:D9),C57:G61),G5:G9)) -> 0.101200425 | H50: =MMULT(MINVERSE(MMULT(MMULT(TRANSPOSE(C5:D10),C57:H62),C5:D10)),MMULT(MMULT(TRANSPOSE(C5:D10),C57:H62),G5:G10)) -> 0.1048867731 | I50: =MMULT(MINVERSE(MMULT(MMULT(TRANSPOSE(C5:D11),C57:I63),C5:D11)),MMULT(MMULT(TRANSPOSE(C5:D11),C57:I63),G5:G11)) -> 0.1530570203 | J50: =MMULT(MINVERSE(MMULT(MMULT(TRANSPOSE(C5:D12),C57:J64),C5:D12)),MMULT(MMULT(TRANSPOSE(C5:D12),C57:J64),G5:G12)) ->  | K50: =MMULT(MINVERSE(MMULT(MMULT(TRANSPOSE(C5:D13),C57:K65),C5:D13)),MMULT(MMULT(TRANSPOSE(C5:D13),C57:K65),G5:G13)) ->  | L50: =MMULT(MINVERSE(MMULT(MMULT(TRANSPOSE($C$5:$D14),$C$57:L66),$C$5:$D14)),MMULT(MMULT(TRANSPOSE($C$5:$D14),$C$57:L66),$G5:$G14)) ->  | M50: =MMULT(MINVERSE(MMULT(MMULT(TRANSPOSE($C$5:$D$15),$C$57:M67),$C$5:$D$15)),MMULT(MMULT(TRANSPOSE($C$5:$D$15),$C$57:M67),$G5:$G15)) ->  | N50: =MMULT(MINVERSE(MMULT(MMULT(TRANSPOSE($C$5:$D$16),$C$57:N68),$C$5:$D$16)),MMULT(MMULT(TRANSPOSE($C$5:$D$16),$C$57:N68),$G5:$G16)) ->  | O50: =MMULT(MINVERSE(MMULT(MMULT(TRANSPOSE($C$5:$D$17),$C$57:O69),$C$5:$D$17)),MMULT(MMULT(TRANSPOSE($C$5:$D$17),$C$57:O69),$G5:$G17)) ->  | P50: =MMULT(MINVERSE(MMULT(MMULT(TRANSPOSE($C$5:$D$18),$C$57:P70),$C$5:$D$18)),MMULT(MMULT(TRANSPOSE($C$5:$D$18),$C$57:P70),$G5:$G18)) ->  | Q50: =MMULT(MINVERSE(MMULT(MMULT(TRANSPOSE($C$5:$D$19),$C$57:Q71),$C$5:$D$19)),MMULT(MMULT(TRANSPOSE($C$5:$D$19),$C$57:Q71),$G5:$G19)) ->  | R50: =MMULT(MINVERSE(MMULT(MMULT(TRANSPOSE($C$5:$D$20),$C$57:R72),$C$5:$D$20)),MMULT(MMULT(TRANSPOSE($C$5:$D$20),$C$57:R72),$G5:$G20)) ->  | U50: 0 | V50: 0 | W50: 0 | X50: 0 | Y50: 0 | Z50: 0 | AA50: 0 | AB50: 0 | AC50: 0 | AD50: 0 | AE50: 0 | AF50: 0 | AG50: 0 | AH50: 0 | AI50: 0
B51: b_1 | D51: 0.03474094744 | E51: 0.01768429589 | F51: 0.01410561857 | G51: 0.01366707516 | H51: 0.01331308403 | I51: 0.009784668099 | U51: =MMULT(MINVERSE(MMULT(MMULT(TRANSPOSE(D5:D6 ),C57:D58),D5:D6 )),MMULT(MMULT(TRANSPOSE(D5:D6 ),C57:D58),G5:G6 )) -> 0.03474094744 | V51: =MMULT(MINVERSE(MMULT(MMULT(TRANSPOSE(D5:D7 ),C57:E59),D5:D7 )),MMULT(MMULT(TRANSPOSE(D5:D7 ),C57:E59),G5:G7 )) -> 0.02222265609 | W51: =MMULT(MINVERSE(MMULT(MMULT(TRANSPOSE(D5:D8 ),C57:F60),D5:D8 )),MMULT(MMULT(TRANSPOSE(D5:D8 ),C57:F60),G5:G8 )) -> 0.01832542714 | X51: =MMULT(MINVERSE(MMULT(MMULT(TRANSPOSE(D5:D9 ),C57:G61),D5:D9 )),MMULT(MMULT(TRANSPOSE(D5:D9 ),C57:G61),G5:G9 )) -> 0.017120755 | Y51: =MMULT(MINVERSE(MMULT(MMULT(TRANSPOSE(D5:D10),C57:H62),D5:D10)),MMULT(MMULT(TRANSPOSE(D5:D10),C57:H62),G5:G10)) -> 0.01650779926 | Z51: =MMULT(MINVERSE(MMULT(MMULT(TRANSPOSE(D5:D11),C57:I63),D5:D11)),MMULT(MMULT(TRANSPOSE(D5:D11),C57:I63),G5:G11)) -> 0.01288553523 | AA51: =MMULT(MINVERSE(MMULT(MMULT(TRANSPOSE(D5:D12),C57:J64),D5:D12)),MMULT(MMULT(TRANSPOSE(D5:D12),C57:J64),G5:G12)) ->  | AB51: =MMULT(MINVERSE(MMULT(MMULT(TRANSPOSE(D5:D13),C57:K65),D5:D13)),MMULT(MMULT(TRANSPOSE(D5:D13),C57:K65),G5:G13)) ->  | AC51: =MMULT(MINVERSE(MMULT(MMULT(TRANSPOSE(D5:D14),C57:L66),D5:D14)),MMULT(MMULT(TRANSPOSE(D5:D14),C57:L66),G5:G14)) ->  | AD51: =MMULT(MINVERSE(MMULT(MMULT(TRANSPOSE($D$5:$D$15),$C$57:$M$67),$D$5:$D$15)),MMULT(MMULT(TRANSPOSE($D$5:$D$15),$C$57:$M$67),$G$5:$G$15)) ->  | AE51: =MMULT(MINVERSE(MMULT(MMULT(TRANSPOSE($D$5:$D$16),$C$57:$N$68),$D$5:$D$16)),MMULT(MMULT(TRANSPOSE($D$5:$D$16),$C$57:$N$68),$G$5:$G$16)) ->  | AF51: =MMULT(MINVERSE(MMULT(MMULT(TRANSPOSE($D$5:$D$17),$C$57:$O$69),$D$5:$D$17)),MMULT(MMULT(TRANSPOSE($D$5:$D$17),$C$57:$O$69),$G$5:$G$17)) ->  | AG51: =MMULT(MINVERSE(MMULT(MMULT(TRANSPOSE($D$5:$D$18),$C$57:$P$70),$D$5:$D$18)),MMULT(MMULT(TRANSPOSE($D$5:$D$18),$C$57:$P$70),$G$5:$G$18)) ->  | AH51: =MMULT(MINVERSE(MMULT(MMULT(TRANSPOSE($D$5:$D$19),$C$57:$Q$71),$D$5:$D$19)),MMULT(MMULT(TRANSPOSE($D$5:$D$19),$C$57:$Q$71),$G$5:$G$19)) ->  | AI51: =MMULT(MINVERSE(MMULT(MMULT(TRANSPOSE($D$5:$D$20),$C$57:$R$72),$D$5:$D$20)),MMULT(MMULT(TRANSPOSE($D$5:$D$20),$C$57:$R$72),$G$5:$G$20)) -> 
A52: ERR_X | B52: b_0 | D52: =MMULT(MINVERSE(MMULT(MMULT(TRANSPOSE(C5:D6 ),C57:D58),C5:D6 )),MMULT(MMULT(TRANSPOSE(C5:D6 ),C57:D58),M5:M6 )) -> 0 | E52: =MMULT(MINVERSE(MMULT(MMULT(TRANSPOSE(C5:D7 ),C57:E59),C5:D7 )),MMULT(MMULT(TRANSPOSE(C5:D7 ),C57:E59),M5:M7 )) -> 0.08432373329 | F52: =MMULT(MINVERSE(MMULT(MMULT(TRANSPOSE(C5:D8 ),C57:F60),C5:D8 )),MMULT(MMULT(TRANSPOSE(C5:D8 ),C57:F60),M5:M8 )) -> 0.1020098838 | G52: =MMULT(MINVERSE(MMULT(MMULT(TRANSPOSE(C5:D9 ),C57:G61),C5:D9 )),MMULT(MMULT(TRANSPOSE(C5:D9 ),C57:G61),M5:M9 )) -> 0.0954857216 | H52: =MMULT(MINVERSE(MMULT(MMULT(TRANSPOSE(C5:D10),C57:H62),C5:D10)),MMULT(MMULT(TRANSPOSE(C5:D10),C57:H62),M5:M10)) -> 0.09128893465 | I52: =MMULT(MINVERSE(MMULT(MMULT(TRANSPOSE(C5:D11),C57:I63),C5:D11)),MMULT(MMULT(TRANSPOSE(C5:D11),C57:I63),M5:M11)) -> 0.1368399806 | J52: =MMULT(MINVERSE(MMULT(MMULT(TRANSPOSE(C5:D12),C57:J64),C5:D12)),MMULT(MMULT(TRANSPOSE(C5:D12),C57:J64),M5:M12)) ->  | K52: =MMULT(MINVERSE(MMULT(MMULT(TRANSPOSE(C5:D13),C57:K65),C5:D13)),MMULT(MMULT(TRANSPOSE(C5:D13),C57:K65),M5:M13)) ->  | L52: =MMULT(MINVERSE(MMULT(MMULT(TRANSPOSE($C$5:$D14),$C$57:L66),$C$5:$D14)),MMULT(MMULT(TRANSPOSE($C$5:$D14),$C$57:L66),$M$5:$M14)) ->  | M52: =MMULT(MINVERSE(MMULT(MMULT(TRANSPOSE($C$5:$D$15),$C$57:M67),$C$5:$D$15)),MMULT(MMULT(TRANSPOSE($C$5:$D$15),$C$57:M67),$M$5:$M15)) ->  | N52: =MMULT(MINVERSE(MMULT(MMULT(TRANSPOSE($C$5:$D$16),$C$57:N68),$C$5:$D$16)),MMULT(MMULT(TRANSPOSE($C$5:$D$16),$C$57:N68),$M$5:$M16)) ->  | O52: =MMULT(MINVERSE(MMULT(MMULT(TRANSPOSE($C$5:$D$17),$C$57:O69),$C$5:$D$17)),MMULT(MMULT(TRANSPOSE($C$5:$D$17),$C$57:O69),$M$5:$M17)) ->  | P52: =MMULT(MINVERSE(MMULT(MMULT(TRANSPOSE($C$5:$D$18),$C$57:P70),$C$5:$D$18)),MMULT(MMULT(TRANSPOSE($C$5:$D$18),$C$57:P70),$M$5:$M18)) ->  | Q52: =MMULT(MINVERSE(MMULT(MMULT(TRANSPOSE($C$5:$D$19),$C$57:Q71),$C$5:$D$19)),MMULT(MMULT(TRANSPOSE($C$5:$D$19),$C$57:Q71),$M$5:$M19)) ->  | R52: =MMULT(MINVERSE(MMULT(MMULT(TRANSPOSE($C$5:$D$20),$C$57:R72),$C$5:$D$20)),MMULT(MMULT(TRANSPOSE($C$5:$D$20),$C$57:R72),$M$5:$M20)) ->  | U52: 0 | V52: 0 | W52: 0 | X52: 0 | Y52: 0 | Z52: 0 | AA52: 0 | AB52: 0 | AC52: 0 | AD52: 0 | AE52: 0 | AF52: 0 | AG52: 0 | AH52: 0 | AI52: 0
B53: b_1 | D53: 0.03739812269 | E53: 0.01821219674 | F53: 0.01540704105 | G53: 0.01618623182 | H53: 0.01658923916 | I53: 0.01325267675 | U53: =MMULT(MINVERSE(MMULT(MMULT(TRANSPOSE(D5:D6 ),C57:D58),D5:D6 )),MMULT(MMULT(TRANSPOSE(D5:D6 ),C57:D58),M5:M6 )) -> 0.03739812269 | V53: =MMULT(MINVERSE(MMULT(MMULT(TRANSPOSE(D5:D7 ),C57:E59),D5:D7 )),MMULT(MMULT(TRANSPOSE(D5:D7 ),C57:E59),M5:M7 )) -> 0.02331710508 | W53: =MMULT(MINVERSE(MMULT(MMULT(TRANSPOSE(D5:D8 ),C57:F60),D5:D8 )),MMULT(MMULT(TRANSPOSE(D5:D8 ),C57:F60),M5:M8 )) -> 0.01982074753 | X53: =MMULT(MINVERSE(MMULT(MMULT(TRANSPOSE(D5:D9 ),C57:G61),D5:D9 )),MMULT(MMULT(TRANSPOSE(D5:D9 ),C57:G61),M5:M9 )) -> 0.01944488526 | Y53: =MMULT(MINVERSE(MMULT(MMULT(TRANSPOSE(D5:D10),C57:H62),D5:D10)),MMULT(MMULT(TRANSPOSE(D5:D10),C57:H62),M5:M10)) -> 0.01936978185 | Z53: =MMULT(MINVERSE(MMULT(MMULT(TRANSPOSE(D5:D11),C57:I63),D5:D11)),MMULT(MMULT(TRANSPOSE(D5:D11),C57:I63),M5:M11)) -> 0.01602499388 | AA53: =MMULT(MINVERSE(MMULT(MMULT(TRANSPOSE(D5:D12),C57:J64),D5:D12)),MMULT(MMULT(TRANSPOSE(D5:D12),C57:J64),M5:M12)) ->  | AB53: =MMULT(MINVERSE(MMULT(MMULT(TRANSPOSE(D5:D13),C57:K65),D5:D13)),MMULT(MMULT(TRANSPOSE(D5:D13),C57:K65),M5:M13)) ->  | AC53: =MMULT(MINVERSE(MMULT(MMULT(TRANSPOSE(D5:D14),C57:L66),D5:D14)),MMULT(MMULT(TRANSPOSE(D5:D14),C57:L66),M5:M14)) ->  | AD53: =MMULT(MINVERSE(MMULT(MMULT(TRANSPOSE($D$5:$D$15),$C$57:$M$67),$D$5:$D$15)),MMULT(MMULT(TRANSPOSE($D$5:$D$15),$C$57:$M$67),$M$5:$M$15)) ->  | AE53: =MMULT(MINVERSE(MMULT(MMULT(TRANSPOSE($D$5:$D$16),$C$57:$N$68),$D$5:$D$16)),MMULT(MMULT(TRANSPOSE($D$5:$D$16),$C$57:$N$68),$M$5:$M$16)) ->  | AF53: =MMULT(MINVERSE(MMULT(MMULT(TRANSPOSE($D$5:$D$17),$C$57:$O$69),$D$5:$D$17)),MMULT(MMULT(TRANSPOSE($D$5:$D$17),$C$57:$O$69),$M$5:$M$17)) ->  | AG53: =MMULT(MINVERSE(MMULT(MMULT(TRANSPOSE($D$5:$D$18),$C$57:$P$70),$D$5:$D$18)),MMULT(MMULT(TRANSPOSE($D$5:$D$18),$C$57:$P$70),$M$5:$M$18)) ->  | AH53: =MMULT(MINVERSE(MMULT(MMULT(TRANSPOSE($D$5:$D$19),$C$57:$Q$71),$D$5:$D$19)),MMULT(MMULT(TRANSPOSE($D$5:$D$19),$C$57:$Q$71),$M$5:$M$19)) ->  | AI53: =MMULT(MINVERSE(MMULT(MMULT(TRANSPOSE($D$5:$D$20),$C$57:$R$72),$D$5:$D$20)),MMULT(MMULT(TRANSPOSE($D$5:$D$20),$C$57:$R$72),$M$5:$M$20)) -> 
A54: ERR_obs | B54: b_0 | D54: =MMULT(MINVERSE(MMULT(MMULT(TRANSPOSE(C5:D6 ),C57:D58),C5:D6 )),MMULT(MMULT(TRANSPOSE(C5:D6 ),C57:D58),N5:N6 )) -> -1.110223025e-16 | E54: =MMULT(MINVERSE(MMULT(MMULT(TRANSPOSE(C5:D7 ),C57:E59),C5:D7 )),MMULT(MMULT(TRANSPOSE(C5:D7 ),C57:E59),N5:N7 )) -> 0.06986290107 | F54: =MMULT(MINVERSE(MMULT(MMULT(TRANSPOSE(C5:D8 ),C57:F60),C5:D8 )),MMULT(MMULT(TRANSPOSE(C5:D8 ),C57:F60),N5:N8 )) -> 0.09566731156 | G54: =MMULT(MINVERSE(MMULT(MMULT(TRANSPOSE(C5:D9 ),C57:G61),C5:D9 )),MMULT(MMULT(TRANSPOSE(C5:D9 ),C57:G61),N5:N9 )) -> 0.08960144145 | H54: =MMULT(MINVERSE(MMULT(MMULT(TRANSPOSE(C5:D10),C57:H62),C5:D10)),MMULT(MMULT(TRANSPOSE(C5:D10),C57:H62),N5:N10)) -> 0.08773258841 | I54: =MMULT(MINVERSE(MMULT(MMULT(TRANSPOSE(C5:D11),C57:I63),C5:D11)),MMULT(MMULT(TRANSPOSE(C5:D11),C57:I63),N5:N11)) -> 0.1462853049 | J54: =MMULT(MINVERSE(MMULT(MMULT(TRANSPOSE(C5:D12),C57:J64),C5:D12)),MMULT(MMULT(TRANSPOSE(C5:D12),C57:J64),N5:N12)) ->  | K54: =MMULT(MINVERSE(MMULT(MMULT(TRANSPOSE(C5:D13),C57:K65),C5:D13)),MMULT(MMULT(TRANSPOSE(C5:D13),C57:K65),N5:N13)) ->  | L54: =MMULT(MINVERSE(MMULT(MMULT(TRANSPOSE($C$5:$D14),$C$57:L66),$C$5:$D14)),MMULT(MMULT(TRANSPOSE($C$5:$D14),$C$57:L66),$N$5:$N14)) ->  | M54: =MMULT(MINVERSE(MMULT(MMULT(TRANSPOSE($C$5:$D$15),$C$57:M67),$C$5:$D$15)),MMULT(MMULT(TRANSPOSE($C$5:$D$15),$C$57:M67),$N$5:$N15)) ->  | N54: =MMULT(MINVERSE(MMULT(MMULT(TRANSPOSE($C$5:$D$16),$C$57:N68),$C$5:$D$16)),MMULT(MMULT(TRANSPOSE($C$5:$D$16),$C$57:N68),$N$5:$N16)) ->  | O54: =MMULT(MINVERSE(MMULT(MMULT(TRANSPOSE($C$5:$D$17),$C$57:O69),$C$5:$D$17)),MMULT(MMULT(TRANSPOSE($C$5:$D$17),$C$57:O69),$N$5:$N17)) ->  | P54: =MMULT(MINVERSE(MMULT(MMULT(TRANSPOSE($C$5:$D$18),$C$57:P70),$C$5:$D$18)),MMULT(MMULT(TRANSPOSE($C$5:$D$18),$C$57:P70),$N$5:$N18)) ->  | Q54: =MMULT(MINVERSE(MMULT(MMULT(TRANSPOSE($C$5:$D$19),$C$57:Q71),$C$5:$D$19)),MMULT(MMULT(TRANSPOSE($C$5:$D$19),$C$57:Q71),$N$5:$N19)) ->  | R54: =MMULT(MINVERSE(MMULT(MMULT(TRANSPOSE($C$5:$D$20),$C$57:R72),$C$5:$D$20)),MMULT(MMULT(TRANSPOSE($C$5:$D$20),$C$57:R72),$N$5:$N20)) ->  | U54: 0 | V54: 0 | W54: 0 | X54: 0 | Y54: 0 | Z54: 0 | AA54: 0 | AB54: 0 | AC54: 0 | AD54: 0 | AE54: 0 | AF54: 0 | AG54: 0 | AH54: 0 | AI54: 0
B55: b_1 | D55: 0.03908346273 | E55: 0.02318776654 | F55: 0.01909499413 | G55: 0.01981945036 | H55: 0.01999891182 | I55: 0.0157099918 | U55: =MMULT(MINVERSE(MMULT(MMULT(TRANSPOSE(D5:D6 ),C57:D58),D5:D6 )),MMULT(MMULT(TRANSPOSE(D5:D6 ),C57:D58),N5:N6 )) -> 0.03908346273 | V55: =MMULT(MINVERSE(MMULT(MMULT(TRANSPOSE(D5:D7 ),C57:E59),D5:D7 )),MMULT(MMULT(TRANSPOSE(D5:D7 ),C57:E59),N5:N7 )) -> 0.02741722475 | W55: =MMULT(MINVERSE(MMULT(MMULT(TRANSPOSE(D5:D8 ),C57:F60),D5:D8 )),MMULT(MMULT(TRANSPOSE(D5:D8 ),C57:F60),N5:N8 )) -> 0.02323427374 | X55: =MMULT(MINVERSE(MMULT(MMULT(TRANSPOSE(D5:D9 ),C57:G61),D5:D9 )),MMULT(MMULT(TRANSPOSE(D5:D9 ),C57:G61),N5:N9 )) -> 0.02287729022 | Y55: =MMULT(MINVERSE(MMULT(MMULT(TRANSPOSE(D5:D10),C57:H62),D5:D10)),MMULT(MMULT(TRANSPOSE(D5:D10),C57:H62),N5:N10)) -> 0.02267113281 | Z55: =MMULT(MINVERSE(MMULT(MMULT(TRANSPOSE(D5:D11),C57:I63),D5:D11)),MMULT(MMULT(TRANSPOSE(D5:D11),C57:I63),N5:N11)) -> 0.01867366699 | AA55: =MMULT(MINVERSE(MMULT(MMULT(TRANSPOSE(D5:D12),C57:J64),D5:D12)),MMULT(MMULT(TRANSPOSE(D5:D12),C57:J64),N5:N12)) ->  | AB55: =MMULT(MINVERSE(MMULT(MMULT(TRANSPOSE(D5:D13),C57:K65),D5:D13)),MMULT(MMULT(TRANSPOSE(D5:D13),C57:K65),N5:N13)) ->  | AC55: =MMULT(MINVERSE(MMULT(MMULT(TRANSPOSE(D5:D14),C57:L66),D5:D14)),MMULT(MMULT(TRANSPOSE(D5:D14),C57:L66),N5:N14)) ->  | AD55: =MMULT(MINVERSE(MMULT(MMULT(TRANSPOSE($D$5:$D$15),$C$57:$M$67),$D$5:$D$15)),MMULT(MMULT(TRANSPOSE($D$5:$D$15),$C$57:$M$67),$N$5:$N$15)) ->  | AE55: =MMULT(MINVERSE(MMULT(MMULT(TRANSPOSE($D$5:$D$16),$C$57:$N$68),$D$5:$D$16)),MMULT(MMULT(TRANSPOSE($D$5:$D$16),$C$57:$N$68),$N$5:$N$16)) ->  | AF55: =MMULT(MINVERSE(MMULT(MMULT(TRANSPOSE($D$5:$D$17),$C$57:$O$69),$D$5:$D$17)),MMULT(MMULT(TRANSPOSE($D$5:$D$17),$C$57:$O$69),$N$5:$N$17)) ->  | AG55: =MMULT(MINVERSE(MMULT(MMULT(TRANSPOSE($D$5:$D$18),$C$57:$P$70),$D$5:$D$18)),MMULT(MMULT(TRANSPOSE($D$5:$D$18),$C$57:$P$70),$N$5:$N$18)) ->  | AH55: =MMULT(MINVERSE(MMULT(MMULT(TRANSPOSE($D$5:$D$19),$C$57:$Q$71),$D$5:$D$19)),MMULT(MMULT(TRANSPOSE($D$5:$D$19),$C$57:$Q$71),$N$5:$N$19)) ->  | AI55: =MMULT(MINVERSE(MMULT(MMULT(TRANSPOSE($D$5:$D$20),$C$57:$R$72),$D$5:$D$20)),MMULT(MMULT(TRANSPOSE($D$5:$D$20),$C$57:$R$72),$N$5:$N$20)) -> 
A56: wgt | B56: wgt
B57: =IF( $A$73=16,1*(IndrctAdj!C32<>""),IF(IndrctAdj!D32<=0,0,IndrctAdj!D32)) -> 250 | C57: =B57 -> 250 | D57: 0 | E57: 0 | F57: 0 | G57: 0 | H57: 0 | I57: 0 | J57: 0 | K57: 0 | L57: 0 | M57: 0 | N57: 0 | O57: 0 | P57: 0 | Q57: 0 | R57: 0
B58: =IF( $A$73=16,1*(IndrctAdj!C33<>""),IF(IndrctAdj!D33<=0,0,IndrctAdj!D33)) -> 678.5925385 | C58: 0 | D58: =B58 -> 678.5925385 | E58: 0 | F58: 0 | G58: 0 | H58: 0 | I58: 0 | J58: 0 | K58: 0 | L58: 0 | M58: 0 | N58: 0 | O58: 0 | P58: 0 | Q58: 0 | R58: 0
B59: =IF( $A$73=16,1*(IndrctAdj!C34<>""),IF(IndrctAdj!D34<=0,0,IndrctAdj!D34)) -> 269.8590076 | C59: 0 | D59: 0 | E59: =B59 -> 269.8590076 | F59: 0 | G59: 0 | H59: 0 | I59: 0 | J59: 0 | K59: 0 | L59: 0 | M59: 0 | N59: 0 | O59: 0 | P59: 0 | Q59: 0 | R59: 0
B60: =IF( $A$73=16,1*(IndrctAdj!C35<>""),IF(IndrctAdj!D35<=0,0,IndrctAdj!D35)) -> 204.8442346 | C60: 0 | D60: 0 | E60: 0 | F60: =B60 -> 204.8442346 | G60: 0 | H60: 0 | I60: 0 | J60: 0 | K60: 0 | L60: 0 | M60: 0 | N60: 0 | O60: 0 | P60: 0 | Q60: 0 | R60: 0
B61: =IF( $A$73=16,1*(IndrctAdj!C36<>""),IF(IndrctAdj!D36<=0,0,IndrctAdj!D36)) -> 174.8918512 | C61: 0 | D61: 0 | E61: 0 | F61: 0 | G61: =B61 -> 174.8918512 | H61: 0 | I61: 0 | J61: 0 | K61: 0 | L61: 0 | M61: 0 | N61: 0 | O61: 0 | P61: 0 | Q61: 0 | R61: 0
B62: =IF( $A$73=16,1*(IndrctAdj!C37<>""),IF(IndrctAdj!D37<=0,0,IndrctAdj!D37)) -> 80.34298061 | C62: 0 | D62: 0 | E62: 0 | F62: 0 | G62: 0 | H62: =B62 -> 80.34298061 | I62: 0 | J62: 0 | K62: 0 | L62: 0 | M62: 0 | N62: 0 | O62: 0 | P62: 0 | Q62: 0 | R62: 0
B63: =IF( $A$73=16,1*(IndrctAdj!C38<>""),IF(IndrctAdj!D38<=0,0,IndrctAdj!D38)) -> 192.4550623 | C63: 0 | D63: 0 | E63: 0 | F63: 0 | G63: 0 | H63: 0 | I63: =B63 -> 192.4550623 | J63: 0 | K63: 0 | L63: 0 | M63: 0 | N63: 0 | O63: 0 | P63: 0 | Q63: 0 | R63: 0
B64: =IF( $A$73=16,1*(IndrctAdj!C39<>""),IF(IndrctAdj!D39<=0,0,IndrctAdj!D39)) -> 0 | C64: 0 | D64: 0 | E64: 0 | F64: 0 | G64: 0 | H64: 0 | I64: 0 | J64: =B64 -> 0 | K64: 0 | L64: 0 | M64: 0 | N64: 0 | O64: 0 | P64: 0 | Q64: 0 | R64: 0
B65: =IF( $A$73=16,1*(IndrctAdj!C40<>""),IF(IndrctAdj!D40<=0,0,IndrctAdj!D40)) -> 0 | C65: 0 | D65: 0 | E65: 0 | F65: 0 | G65: 0 | H65: 0 | I65: 0 | J65: 0 | K65: =B65 -> 0 | L65: 0 | M65: 0 | N65: 0 | O65: 0 | P65: 0 | Q65: 0 | R65: 0
B66: =IF( $A$73=16,1*(IndrctAdj!C41<>""),IF(IndrctAdj!D41<=0,0,IndrctAdj!D41)) -> 0 | C66: 0 | D66: 0 | E66: 0 | F66: 0 | G66: 0 | H66: 0 | I66: 0 | J66: 0 | K66: 0 | L66: =B66 -> 0 | M66: 0 | N66: 0 | O66: 0 | P66: 0 | Q66: 0 | R66: 0
B67: =IF( $A$73=16,1*(IndrctAdj!C42<>""),IF(IndrctAdj!D42<=0,0,IndrctAdj!D42)) -> 0 | C67: 0 | D67: 0 | E67: 0 | F67: 0 | G67: 0 | H67: 0 | I67: 0 | J67: 0 | K67: 0 | L67: 0 | M67: =B67 -> 0 | N67: 0 | O67: 0 | P67: 0 | Q67: 0 | R67: 0
B68: =IF( $A$73=16,1*(IndrctAdj!C43<>""),IF(IndrctAdj!D43<=0,0,IndrctAdj!D43)) -> 0 | C68: 0 | D68: 0 | E68: 0 | F68: 0 | G68: 0 | H68: 0 | I68: 0 | J68: 0 | K68: 0 | L68: 0 | M68: 0 | N68: =B68 -> 0 | O68: 0 | P68: 0 | Q68: 0 | R68: 0
B69: =IF( $A$73=16,1*(IndrctAdj!C44<>""),IF(IndrctAdj!D44<=0,0,IndrctAdj!D44)) -> 0 | C69: 0 | D69: 0 | E69: 0 | F69: 0 | G69: 0 | H69: 0 | I69: 0 | J69: 0 | K69: 0 | L69: 0 | M69: 0 | N69: 0 | O69: =B69 -> 0 | P69: 0 | Q69: 0 | R69: 0
B70: =IF( $A$73=16,1*(IndrctAdj!C45<>""),IF(IndrctAdj!D45<=0,0,IndrctAdj!D45)) -> 0 | C70: 0 | D70: 0 | E70: 0 | F70: 0 | G70: 0 | H70: 0 | I70: 0 | J70: 0 | K70: 0 | L70: 0 | M70: 0 | N70: 0 | O70: 0 | P70: =B70 -> 0 | Q70: 0 | R70: 0
B71: =IF( $A$73=16,1*(IndrctAdj!C46<>""),IF(IndrctAdj!D46<=0,0,IndrctAdj!D46)) -> 0 | C71: 0 | D71: 0 | E71: 0 | F71: 0 | G71: 0 | H71: 0 | I71: 0 | J71: 0 | K71: 0 | L71: 0 | M71: 0 | N71: 0 | O71: 0 | P71: 0 | Q71: =B71 -> 0 | R71: 0
B72: =IF( $A$73=16,1*(IndrctAdj!C47<>""),IF(IndrctAdj!D47<=0,0,IndrctAdj!D47)) -> 0 | C72: 0 | D72: 0 | E72: 0 | F72: 0 | G72: 0 | H72: 0 | I72: 0 | J72: 0 | K72: 0 | L72: 0 | M72: 0 | N72: 0 | O72: 0 | P72: 0 | Q72: 0 | R72: =B72 -> 0
A73: =COUNTBLANK(IndrctAdj!D32:'IndrctAdj'!D47) -> 9
C74: Log-linear (WLS) | G74: Linear (WLS) | L74: RR = exp(α + β*x) | N74: RR = 1 + α + β*x
C75: alpha | D75: ln(RR_X) | E75: alpha | F75: ln(RR_obs) | G75: alpha | H75: ERR_X | I75: alpha | J75: ERR_obs | L75: RR_X(i) | M75: RR_Obs | N75: RR_X(i) | O75: RR_Obs
B76: 2 | C76: =IF($B$2=2, D48*$I$1+U48*(1-$I$1),"") ->  | D76: =IF($B$2=2, D49*$I$1+U49*(1-$I$1),"") ->  | E76: =IF($B$2=2, D50*$I$1+U50*(1-$I$1),"") ->  | F76: =IF($B$2=2, D51*$I$1+U51*(1-$I$1),"") ->  | G76: =IF($B$2=2, D52*$I$1+U52*(1-$I$1),"") ->  | H76: =IF($B$2=2, D53*$I$1+U53*(1-$I$1),"") ->  | I76: =IF($B$2=2, D54*$I$1+U54*(1-$I$1),"") ->  | J76: =IF($B$2=2, D55*$I$1+U55*(1-$I$1),"") ->  | L76: =IF(D5="","",EXP($C$91+$D$91*D5)) -> 1 | M76: =IF(D5="","",EXP($E$91+$F$91*D5)) -> 1 | N76: =IF(D5="","",1 + $G$91+$H$91*D5) -> 1 | O76: =IF(D5="","",1 + $I$91+$J$91*D5) -> 1
B77: 3 | C77: =IF($B$2=3, E48*$I$1+V48*(1-$I$1),"") ->  | D77: =IF($B$2=3, E49*$I$1+V49*(1-$I$1),"") ->  | E77: =IF($B$2=3, E50*$I$1+V50*(1-$I$1),"") ->  | F77: =IF($B$2=3, E51*$I$1+V51*(1-$I$1),"") ->  | G77: =IF($B$2=3, E52*$I$1+V52*(1-$I$1),"") ->  | H77: =IF($B$2=3, E53*$I$1+V53*(1-$I$1),"") ->  | I77: =IF($B$2=3, E54*$I$1+V54*(1-$I$1),"") ->  | J77: =IF($B$2=3, E55*$I$1+V55*(1-$I$1),"") ->  | L77: =IF(D6="","",EXP($C$91+$D$91*D6)) -> 1.079615758 | M77: =IF(D6="","",EXP($E$91+$F$91*D6)) -> 1.089501357 | N77: =IF(D6="","",1 + $G$91+$H$91*D6) -> 1.10660515 | O77: =IF(D6="","",1 + $I$91+$J$91*D6) -> 1.124225263
B78: 4 | C78: =IF($B$2=4, F48*$I$1+W48*(1-$I$1),"") ->  | D78: =IF($B$2=4, F49*$I$1+W49*(1-$I$1),"") ->  | E78: =IF($B$2=4, F50*$I$1+W50*(1-$I$1),"") ->  | F78: =IF($B$2=4, F51*$I$1+W51*(1-$I$1),"") ->  | G78: =IF($B$2=4, F52*$I$1+W52*(1-$I$1),"") ->  | H78: =IF($B$2=4, F53*$I$1+W53*(1-$I$1),"") ->  | I78: =IF($B$2=4, F54*$I$1+W54*(1-$I$1),"") ->  | J78: =IF($B$2=4, F55*$I$1+W55*(1-$I$1),"") ->  | L78: 1.311242419 | M78: 1.354208649 | N78: 1.377093746 | O78: 1.439421262
B79: 5 | C79: =IF($B$2=5, G48*$I$1+X48*(1-$I$1),"") ->  | D79: =IF($B$2=5, G49*$I$1+X49*(1-$I$1),"") ->  | E79: =IF($B$2=5, G50*$I$1+X50*(1-$I$1),"") ->  | F79: =IF($B$2=5, G51*$I$1+X51*(1-$I$1),"") ->  | G79: =IF($B$2=5, G52*$I$1+X52*(1-$I$1),"") ->  | H79: =IF($B$2=5, G53*$I$1+X53*(1-$I$1),"") ->  | I79: =IF($B$2=5, G54*$I$1+X54*(1-$I$1),"") ->  | J79: =IF($B$2=5, G55*$I$1+X55*(1-$I$1),"") ->  | L79: 1.471406325 | M79: 1.540601802 | N79: 1.53746868 | O79: 1.626303587
B80: 6 | C80: =IF($B$2=6, H48*$I$1+Y48*(1-$I$1),"") ->  | D80: =IF($B$2=6, H49*$I$1+Y49*(1-$I$1),"") ->  | E80: =IF($B$2=6, H50*$I$1+Y50*(1-$I$1),"") ->  | F80: =IF($B$2=6, H51*$I$1+Y51*(1-$I$1),"") ->  | G80: =IF($B$2=6, H52*$I$1+Y52*(1-$I$1),"") ->  | H80: =IF($B$2=6, H53*$I$1+Y53*(1-$I$1),"") ->  | I80: =IF($B$2=6, H54*$I$1+Y54*(1-$I$1),"") ->  | J80: =IF($B$2=6, H55*$I$1+Y55*(1-$I$1),"") ->  | L80: 1.653557807 | M80: 1.755529634 | N80: 1.699885198 | O80: 1.815564936
B81: 7 | C81: =IF($B$2=7, I48*$I$1+Z48*(1-$I$1),"") -> 0 | D81: =IF($B$2=7, I49*$I$1+Z49*(1-$I$1),"") -> 0.01151537079 | E81: =IF($B$2=7, I50*$I$1+Z50*(1-$I$1),"") -> 0 | F81: =IF($B$2=7, I51*$I$1+Z51*(1-$I$1),"") -> 0.01288553523 | G81: =IF($B$2=7, I52*$I$1+Z52*(1-$I$1),"") -> 0 | H81: =IF($B$2=7, I53*$I$1+Z53*(1-$I$1),"") -> 0.01602499388 | I81: =IF($B$2=7, I54*$I$1+Z54*(1-$I$1),"") -> 0 | J81: =IF($B$2=7, I55*$I$1+Z55*(1-$I$1),"") -> 0.01867366699 | L81: 1.854158864 | M81: 1.995503956 | N81: 1.859228122 | O81: 2.001244677
B82: 8 | C82: =IF($B$2=8, J48*$I$1+AA48*(1-$I$1),"") ->  | D82: =IF($B$2=8, J49*$I$1+AA49*(1-$I$1),"") ->  | E82: =IF($B$2=8, J50*$I$1+AA50*(1-$I$1),"") ->  | F82: =IF($B$2=8, J51*$I$1+AA51*(1-$I$1),"") ->  | G82: =IF($B$2=8, J52*$I$1+AA52*(1-$I$1),"") ->  | H82: =IF($B$2=8, J53*$I$1+AA53*(1-$I$1),"") ->  | I82: =IF($B$2=8, J54*$I$1+AA54*(1-$I$1),"") ->  | J82: =IF($B$2=8, J55*$I$1+AA55*(1-$I$1),"") ->  | L82: 2.537870106 | M82: 2.835276795 | N82: 2.296048622 | O82: 2.510264563
B83: 9 | C83: =IF($B$2=9, K48*$I$1+AB48*(1-$I$1),"") ->  | D83: =IF($B$2=9, K49*$I$1+AB49*(1-$I$1),"") ->  | E83: =IF($B$2=9, K50*$I$1+AB50*(1-$I$1),"") ->  | F83: =IF($B$2=9, K51*$I$1+AB51*(1-$I$1),"") ->  | G83: =IF($B$2=9, K52*$I$1+AB52*(1-$I$1),"") ->  | H83: =IF($B$2=9, K53*$I$1+AB53*(1-$I$1),"") ->  | I83: =IF($B$2=9, K54*$I$1+AB54*(1-$I$1),"") ->  | J83: =IF($B$2=9, K55*$I$1+AB55*(1-$I$1),"") -> 
B84: 10 | C84: =IF($B$2=10,L48*$I$1+AC48*(1-$I$1),"") ->  | D84: =IF($B$2=10,L49*$I$1+AC49*(1-$I$1),"") ->  | E84: =IF($B$2=10,L50*$I$1+AC50*(1-$I$1),"") ->  | F84: =IF($B$2=10,L51*$I$1+AC51*(1-$I$1),"") ->  | G84: =IF($B$2=10,L52*$I$1+AC52*(1-$I$1),"") ->  | H84: =IF($B$2=10,L53*$I$1+AC53*(1-$I$1),"") ->  | I84: =IF($B$2=10,L54*$I$1+AC54*(1-$I$1),"") ->  | J84: =IF($B$2=10,L55*$I$1+AC55*(1-$I$1),"") -> 
B85: 11 | C85: =IF($B$2=11,M48*$I$1+AD48*(1-$I$1),"") ->  | D85: =IF($B$2=11,M49*$I$1+AD49*(1-$I$1),"") ->  | E85: =IF($B$2=11,M50*$I$1+AD50*(1-$I$1),"") ->  | F85: =IF($B$2=11,M51*$I$1+AD51*(1-$I$1),"") ->  | G85: =IF($B$2=11,M52*$I$1+AD52*(1-$I$1),"") ->  | H85: =IF($B$2=11,M53*$I$1+AD53*(1-$I$1),"") ->  | I85: =IF($B$2=11,M54*$I$1+AD54*(1-$I$1),"") ->  | J85: =IF($B$2=11,M55*$I$1+AD55*(1-$I$1),"") -> 
B86: 12 | C86: =IF($B$2=12,N48*$I$1+AE48*(1-$I$1),"") ->  | D86: =IF($B$2=12,N49*$I$1+AE49*(1-$I$1),"") ->  | E86: =IF($B$2=12,N50*$I$1+AE50*(1-$I$1),"") ->  | F86: =IF($B$2=12,N51*$I$1+AE51*(1-$I$1),"") ->  | G86: =IF($B$2=12,N52*$I$1+AE52*(1-$I$1),"") ->  | H86: =IF($B$2=12,N53*$I$1+AE53*(1-$I$1),"") ->  | I86: =IF($B$2=12,N54*$I$1+AE54*(1-$I$1),"") ->  | J86: =IF($B$2=12,N55*$I$1+AE55*(1-$I$1),"") -> 
B87: 13 | C87: =IF($B$2=13,O48*$I$1+AF48*(1-$I$1),"") ->  | D87: =IF($B$2=13,O49*$I$1+AF49*(1-$I$1),"") ->  | E87: =IF($B$2=13,O50*$I$1+AF50*(1-$I$1),"") ->  | F87: =IF($B$2=13,O51*$I$1+AF51*(1-$I$1),"") ->  | G87: =IF($B$2=13,O52*$I$1+AF52*(1-$I$1),"") ->  | H87: =IF($B$2=13,O53*$I$1+AF53*(1-$I$1),"") ->  | I87: =IF($B$2=13,O54*$I$1+AF54*(1-$I$1),"") ->  | J87: =IF($B$2=13,O55*$I$1+AF55*(1-$I$1),"") -> 
B88: 14 | C88: =IF($B$2=14,P48*$I$1+AG48*(1-$I$1),"") ->  | D88: =IF($B$2=14,P49*$I$1+AG49*(1-$I$1),"") ->  | E88: =IF($B$2=14,P50*$I$1+AG50*(1-$I$1),"") ->  | F88: =IF($B$2=14,P51*$I$1+AG51*(1-$I$1),"") ->  | G88: =IF($B$2=14,P52*$I$1+AG52*(1-$I$1),"") ->  | H88: =IF($B$2=14,P53*$I$1+AG53*(1-$I$1),"") ->  | I88: =IF($B$2=14,P54*$I$1+AG54*(1-$I$1),"") ->  | J88: =IF($B$2=14,P55*$I$1+AG55*(1-$I$1),"") -> 
B89: 15 | C89: =IF($B$2=15,Q48*$I$1+AH48*(1-$I$1),"") ->  | D89: =IF($B$2=15,Q49*$I$1+AH49*(1-$I$1),"") ->  | E89: =IF($B$2=15,Q50*$I$1+AH50*(1-$I$1),"") ->  | F89: =IF($B$2=15,Q51*$I$1+AH51*(1-$I$1),"") ->  | G89: =IF($B$2=15,Q52*$I$1+AH52*(1-$I$1),"") ->  | H89: =IF($B$2=15,Q53*$I$1+AH53*(1-$I$1),"") ->  | I89: =IF($B$2=15,Q54*$I$1+AH54*(1-$I$1),"") ->  | J89: =IF($B$2=15,Q55*$I$1+AH55*(1-$I$1),"") -> 
B90: 16 | C90: =IF($B$2=16,R48*$I$1+AI48*(1-$I$1),"") ->  | D90: =IF($B$2=16,R49*$I$1+AI49*(1-$I$1),"") ->  | E90: =IF($B$2=16,R50*$I$1+AI50*(1-$I$1),"") ->  | F90: =IF($B$2=16,R51*$I$1+AI51*(1-$I$1),"") ->  | G90: =IF($B$2=16,R52*$I$1+AI52*(1-$I$1),"") ->  | H90: =IF($B$2=16,R53*$I$1+AI53*(1-$I$1),"") ->  | I90: =IF($B$2=16,R54*$I$1+AI54*(1-$I$1),"") ->  | J90: =IF($B$2=16,R55*$I$1+AI55*(1-$I$1),"") -> 
B91: RETURN | C91: =SUM(C76:C90) -> 0 | D91: =SUM(D76:D90) -> 0.01151537079 | E91: =SUM(E76:E90) -> 0 | F91: =SUM(F76:F90) -> 0.01288553523 | G91: 0 | H91: 0.01602499388 | I91: 0 | J91: 0.01867366699 | L91: Fitted_exp(X) | M91: Fitted_exp(Obs) | N91: Fitted_lin(X) | O91: Fitted_lin(Obs)
A96: Find ERR_X: Additive model: Wgt reg: b = (X'WX)^-1 X'Wy | R96: x
D97: 2 | E97: 3 | F97: 4 | G97: 5 | H97: 6 | I97: 7 | J97: 8 | K97: 9 | L97: 10 | M97: 11 | N97: 12 | O97: 13 | P97: 14 | Q97: 15 | R97: 16 | U97: 2 | V97: 3 | W97: 4 | X97: 5 | Y97: 6 | Z97: 7 | AA97: 8 | AB97: 9 | AC97: 10 | AD97: 11 | AE97: 12 | AF97: 13 | AG97: 14 | AH97: 15 | AI97: 16
A98: ERR_X | B98: b_0 | D98: =MMULT(MINVERSE(MMULT(MMULT(TRANSPOSE(C27:D28),C103:D104),C27:D28)),MMULT(MMULT(TRANSPOSE(C27:D28),C103:D104),A27:A28)) -> -5.551115123e-17 | E98: =MMULT(MINVERSE(MMULT(MMULT(TRANSPOSE(C27:D29),C103:E105),C27:D29)),MMULT(MMULT(TRANSPOSE(C27:D29),C103:E105),A27:A29)) -> 0.05654547896 | F98: =MMULT(MINVERSE(MMULT(MMULT(TRANSPOSE(C27:D30),C103:F106),C27:D30)),MMULT(MMULT(TRANSPOSE(C27:D30),C103:F106),A27:A30)) -> 0.07076998349 | G98: =MMULT(MINVERSE(MMULT(MMULT(TRANSPOSE(C27:D31),C103:G107),C27:D31)),MMULT(MMULT(TRANSPOSE(C27:D31),C103:G107),A27:A31)) -> 0.06481315773 | H98: =MMULT(MINVERSE(MMULT(MMULT(TRANSPOSE(C27:D32),C103:H108),C27:D32)),MMULT(MMULT(TRANSPOSE(C27:D32),C103:H108),A27:A32)) -> 0.06170798646 | I98: =MMULT(MINVERSE(MMULT(MMULT(TRANSPOSE(C27:D33),C103:I109),C27:D33)),MMULT(MMULT(TRANSPOSE(C27:D33),C103:I109),A27:A33)) -> 0.09719907415 | J98: =MMULT(MINVERSE(MMULT(MMULT(TRANSPOSE(C27:D34),C103:J110),C27:D34)),MMULT(MMULT(TRANSPOSE(C27:D34),C103:J110),A27:A34)) ->  | K98: =MMULT(MINVERSE(MMULT(MMULT(TRANSPOSE(C27:D35),C103:K111),C27:D35)),MMULT(MMULT(TRANSPOSE(C27:D35),C103:K111),A27:A35)) ->  | L98: =MMULT(MINVERSE(MMULT(MMULT(TRANSPOSE($C$27:$D$36),$C$103:$L$112),$C$27:$D$36)),MMULT(MMULT(TRANSPOSE($C$27:$D$36),$C$103:$L$112),$A$27:$A$36)) ->  | M98: =MMULT(MINVERSE(MMULT(MMULT(TRANSPOSE($C$27:$D$37),$C$103:$M$113),$C$27:$D$37)),MMULT(MMULT(TRANSPOSE($C$27:$D$37),$C$103:$M$113),$A$27:$A$37)) ->  | N98: =MMULT(MINVERSE(MMULT(MMULT(TRANSPOSE($C$27:$D$38),$C$103:$N$114),$C$27:$D$38)),MMULT(MMULT(TRANSPOSE($C$27:$D$38),$C$103:$N$114),$A$27:$A$38)) ->  | O98: =MMULT(MINVERSE(MMULT(MMULT(TRANSPOSE($C$27:$D$39),$C$103:$O$115),$C$27:$D$39)),MMULT(MMULT(TRANSPOSE($C$27:$D$39),$C$103:$O$115),$A$27:$A$39)) ->  | P98: =MMULT(MINVERSE(MMULT(MMULT(TRANSPOSE($C$27:$D$40),$C$103:$P$116),$C$27:$D$40)),MMULT(MMULT(TRANSPOSE($C$27:$D$40),$C$103:$P$116),$A$27:$A$40)) ->  | Q98: =MMULT(MINVERSE(MMULT(MMULT(TRANSPOSE($C$27:$D$41),$C$103:$Q$117),$C$27:$D$41)),MMULT(MMULT(TRANSPOSE($C$27:$D$41),$C$103:$Q$117),$A$27:$A$41)) ->  | R98: =MMULT(MINVERSE(MMULT(MMULT(TRANSPOSE($C$27:$D$42),$C$103:$R$118),$C$27:$D$42)),MMULT(MMULT(TRANSPOSE($C$27:$D$42),$C$103:$R$118),$A$27:$A$42)) ->  | U98: 0 | V98: 0 | W98: 0 | X98: 0 | Y98: 0 | Z98: 0 | AA98: 0 | AB98: 0 | AC98: 0 | AD98: 0 | AE98: 0 | AF98: 0 | AG98: 0 | AH98: 0 | AI98: 0
B99: b_1 | D99: 0.027159691 | E99: 0.01429406789 | F99: 0.01203795513 | G99: 0.01274938803 | H99: 0.01304757015 | I99: 0.01044788826 | U99: =MMULT(MINVERSE(MMULT(MMULT(TRANSPOSE(D27:D28),C103:D104),D27:D28)),MMULT(MMULT(TRANSPOSE(D27:D28),C103:D104),A27:A28)) -> 0.027159691 | V99: =MMULT(MINVERSE(MMULT(MMULT(TRANSPOSE(D27:D29),C103:E105),D27:D29)),MMULT(MMULT(TRANSPOSE(D27:D29),C103:E105),A27:A29)) -> 0.01771729733 | W99: =MMULT(MINVERSE(MMULT(MMULT(TRANSPOSE(D27:D30),C103:F106),D27:D30)),MMULT(MMULT(TRANSPOSE(D27:D30),C103:F106),A27:A30)) -> 0.01509999111 | X99: =MMULT(MINVERSE(MMULT(MMULT(TRANSPOSE(D27:D31),C103:G107),D27:D31)),MMULT(MMULT(TRANSPOSE(D27:D31),C103:G107),A27:A31)) -> 0.01496127495 | Y99: =MMULT(MINVERSE(MMULT(MMULT(TRANSPOSE(D27:D32),C103:H108),D27:D32)),MMULT(MMULT(TRANSPOSE(D27:D32),C103:H108),A27:A32)) -> 0.01492711547 | Z99: =MMULT(MINVERSE(MMULT(MMULT(TRANSPOSE(D27:D33),C103:I109),D27:D33)),MMULT(MMULT(TRANSPOSE(D27:D33),C103:I109),A27:A33)) -> 0.01241709826 | AA99: =MMULT(MINVERSE(MMULT(MMULT(TRANSPOSE(D27:D34),C103:J110),D27:D34)),MMULT(MMULT(TRANSPOSE(D27:D34),C103:J110),A27:A34)) ->  | AB99: =MMULT(MINVERSE(MMULT(MMULT(TRANSPOSE(D27:D35),C103:K111),D27:D35)),MMULT(MMULT(TRANSPOSE(D27:D35),C103:K111),A27:A35)) ->  | AC99: =MMULT(MINVERSE(MMULT(MMULT(TRANSPOSE($D$27:$D$36),$C$103:$L$112),$D$27:$D$36)),MMULT(MMULT(TRANSPOSE($D$27:$D$36),$C$103:$L$112),$A$27:$A$36)) ->  | AD99: =MMULT(MINVERSE(MMULT(MMULT(TRANSPOSE($D$27:$D$37),$C$103:$M$113),$D$27:$D$37)),MMULT(MMULT(TRANSPOSE($D$27:$D$37),$C$103:$M$113),$A$27:$A$37)) ->  | AE99: =MMULT(MINVERSE(MMULT(MMULT(TRANSPOSE($D$27:$D$38),$C$103:$N$114),$D$27:$D$38)),MMULT(MMULT(TRANSPOSE($D$27:$D$38),$C$103:$N$114),$A$27:$A$38)) ->  | AF99: =MMULT(MINVERSE(MMULT(MMULT(TRANSPOSE($D$27:$D$39),$C$103:$O$115),$D$27:$D$39)),MMULT(MMULT(TRANSPOSE($D$27:$D$39),$C$103:$O$115),$A$27:$A$39)) ->  | AG99: =MMULT(MINVERSE(MMULT(MMULT(TRANSPOSE($D$27:$D$40),$C$103:$P$116),$D$27:$D$40)),MMULT(MMULT(TRANSPOSE($D$27:$D$40),$C$103:$P$116),$A$27:$A$40)) ->  | AH99: =MMULT(MINVERSE(MMULT(MMULT(TRANSPOSE($D$27:$D$41),$C$103:$Q$117),$D$27:$D$41)),MMULT(MMULT(TRANSPOSE($D$27:$D$41),$C$103:$Q$117),$A$27:$A$41)) ->  | AI99: =MMULT(MINVERSE(MMULT(MMULT(TRANSPOSE($D$27:$D$42),$C$103:$R$118),$D$27:$D$42)),MMULT(MMULT(TRANSPOSE($D$27:$D$42),$C$103:$R$118),$A$27:$A$42)) -> 
A100: ERR_obs | B100: b_0 | D100: =MMULT(MINVERSE(MMULT(MMULT(TRANSPOSE(C27:D28),C103:D104),C27:D28)),MMULT(MMULT(TRANSPOSE(C27:D28),C103:D104),B27:B28)) -> -1.110223025e-16 | E100: =MMULT(MINVERSE(MMULT(MMULT(TRANSPOSE(C27:D29),C103:E105),C27:D29)),MMULT(MMULT(TRANSPOSE(C27:D29),C103:E105),B27:B29)) -> 0.06986290107 | F100: =MMULT(MINVERSE(MMULT(MMULT(TRANSPOSE(C27:D30),C103:F106),C27:D30)),MMULT(MMULT(TRANSPOSE(C27:D30),C103:F106),B27:B30)) -> 0.09566731156 | G100: =MMULT(MINVERSE(MMULT(MMULT(TRANSPOSE(C27:D31),C103:G107),C27:D31)),MMULT(MMULT(TRANSPOSE(C27:D31),C103:G107),B27:B31)) -> 0.08960144145 | H100: =MMULT(MINVERSE(MMULT(MMULT(TRANSPOSE(C27:D32),C103:H108),C27:D32)),MMULT(MMULT(TRANSPOSE(C27:D32),C103:H108),B27:B32)) -> 0.08773258841 | I100: =MMULT(MINVERSE(MMULT(MMULT(TRANSPOSE(C27:D33),C103:I109),C27:D33)),MMULT(MMULT(TRANSPOSE(C27:D33),C103:I109),B27:B33)) -> 0.1462853049 | J100: =MMULT(MINVERSE(MMULT(MMULT(TRANSPOSE(C27:D34),C103:J110),C27:D34)),MMULT(MMULT(TRANSPOSE(C27:D34),C103:J110),B27:B34)) ->  | K100: =MMULT(MINVERSE(MMULT(MMULT(TRANSPOSE(C27:D35),C103:K111),C27:D35)),MMULT(MMULT(TRANSPOSE(C27:D35),C103:K111),B27:B35)) ->  | L100: =MMULT(MINVERSE(MMULT(MMULT(TRANSPOSE($C$27:$D$36),$C$103:$L$112),$C$27:$D$36)),MMULT(MMULT(TRANSPOSE($C$27:$D$36),$C$103:$L$112),$B$27:$B$36)) ->  | M100: =MMULT(MINVERSE(MMULT(MMULT(TRANSPOSE($C$27:$D$37),$C$103:$M$113),$C$27:$D$37)),MMULT(MMULT(TRANSPOSE($C$27:$D$37),$C$103:$M$113),$B$27:$B$37)) ->  | N100: =MMULT(MINVERSE(MMULT(MMULT(TRANSPOSE($C$27:$D$38),$C$103:$N$114),$C$27:$D$38)),MMULT(MMULT(TRANSPOSE($C$27:$D$38),$C$103:$N$114),$B$27:$B$38)) ->  | O100: =MMULT(MINVERSE(MMULT(MMULT(TRANSPOSE($C$27:$D$39),$C$103:$O$115),$C$27:$D$39)),MMULT(MMULT(TRANSPOSE($C$27:$D$39),$C$103:$O$115),$B$27:$B$39)) ->  | P100: =MMULT(MINVERSE(MMULT(MMULT(TRANSPOSE($C$27:$D$40),$C$103:$P$116),$C$27:$D$40)),MMULT(MMULT(TRANSPOSE($C$27:$D$40),$C$103:$P$116),$B$27:$B$40)) ->  | Q100: =MMULT(MINVERSE(MMULT(MMULT(TRANSPOSE($C$27:$D$41),$C$103:$Q$117),$C$27:$D$41)),MMULT(MMULT(TRANSPOSE($C$27:$D$41),$C$103:$Q$117),$B$27:$B$41)) ->  | R100: =MMULT(MINVERSE(MMULT(MMULT(TRANSPOSE($C$27:$D$42),$C$103:$R$118),$C$27:$D$42)),MMULT(MMULT(TRANSPOSE($C$27:$D$42),$C$103:$R$118),$B$27:$B$42)) ->  | U100: 0 | V100: 0 | W100: 0 | X100: 0 | Y100: 0 | Z100: 0 | AA100: 0 | AB100: 0 | AC100: 0 | AD100: 0 | AE100: 0 | AF100: 0 | AG100: 0 | AH100: 0 | AI100: 0
B101: b_1 | D101: 0.03908346273 | E101: 0.02318776654 | F101: 0.01909499413 | G101: 0.01981945036 | H101: 0.01999891182 | I101: 0.0157099918 | U101: =MMULT(MINVERSE(MMULT(MMULT(TRANSPOSE(D27:D28),C103:D104),D27:D28)),MMULT(MMULT(TRANSPOSE(D27:D28),C103:D104),B27:B28)) -> 0.03908346273 | V101: =MMULT(MINVERSE(MMULT(MMULT(TRANSPOSE(D27:D29),C103:E105),D27:D29)),MMULT(MMULT(TRANSPOSE(D27:D29),C103:E105),B27:B29)) -> 0.02741722475 | W101: =MMULT(MINVERSE(MMULT(MMULT(TRANSPOSE(D27:D30),C103:F106),D27:D30)),MMULT(MMULT(TRANSPOSE(D27:D30),C103:F106),B27:B30)) -> 0.02323427374 | X101: =MMULT(MINVERSE(MMULT(MMULT(TRANSPOSE(D27:D31),C103:G107),D27:D31)),MMULT(MMULT(TRANSPOSE(D27:D31),C103:G107),B27:B31)) -> 0.02287729022 | Y101: =MMULT(MINVERSE(MMULT(MMULT(TRANSPOSE(D27:D32),C103:H108),D27:D32)),MMULT(MMULT(TRANSPOSE(D27:D32),C103:H108),B27:B32)) -> 0.02267113281 | Z101: =MMULT(MINVERSE(MMULT(MMULT(TRANSPOSE(D27:D33),C103:I109),D27:D33)),MMULT(MMULT(TRANSPOSE(D27:D33),C103:I109),B27:B33)) -> 0.01867366699 | AA101: =MMULT(MINVERSE(MMULT(MMULT(TRANSPOSE(D27:D34),C103:J110),D27:D34)),MMULT(MMULT(TRANSPOSE(D27:D34),C103:J110),B27:B34)) ->  | AB101: =MMULT(MINVERSE(MMULT(MMULT(TRANSPOSE(D27:D35),C103:K111),D27:D35)),MMULT(MMULT(TRANSPOSE(D27:D35),C103:K111),B27:B35)) ->  | AC101: =MMULT(MINVERSE(MMULT(MMULT(TRANSPOSE($D$27:$D$36),$C$103:$L$112),$D$27:$D$36)),MMULT(MMULT(TRANSPOSE($D$27:$D$36),$C$103:$L$112),$B$27:$B$36)) ->  | AD101: =MMULT(MINVERSE(MMULT(MMULT(TRANSPOSE($D$27:$D$37),$C$103:$M$113),$D$27:$D$37)),MMULT(MMULT(TRANSPOSE($D$27:$D$37),$C$103:$M$113),$B$27:$B$37)) ->  | AE101: =MMULT(MINVERSE(MMULT(MMULT(TRANSPOSE($D$27:$D$38),$C$103:$N$114),$D$27:$D$38)),MMULT(MMULT(TRANSPOSE($D$27:$D$38),$C$103:$N$114),$B$27:$B$38)) ->  | AF101: =MMULT(MINVERSE(MMULT(MMULT(TRANSPOSE($D$27:$D$39),$C$103:$O$115),$D$27:$D$39)),MMULT(MMULT(TRANSPOSE($D$27:$D$39),$C$103:$O$115),$B$27:$B$39)) ->  | AG101: =MMULT(MINVERSE(MMULT(MMULT(TRANSPOSE($D$27:$D$40),$C$103:$P$116),$D$27:$D$40)),MMULT(MMULT(TRANSPOSE($D$27:$D$40),$C$103:$P$116),$B$27:$B$40)) ->  | AH101: =MMULT(MINVERSE(MMULT(MMULT(TRANSPOSE($D$27:$D$41),$C$103:$Q$117),$D$27:$D$41)),MMULT(MMULT(TRANSPOSE($D$27:$D$41),$C$103:$Q$117),$B$27:$B$41)) ->  | AI101: =MMULT(MINVERSE(MMULT(MMULT(TRANSPOSE($D$27:$D$42),$C$103:$R$118),$D$27:$D$42)),MMULT(MMULT(TRANSPOSE($D$27:$D$42),$C$103:$R$118),$B$27:$B$42)) -> 
A102: wgt | B102: wgt
B103: =IF( $A$119=16,1*(IndrctAdj!C79<>""),IF(IndrctAdj!D79<=0,0,IndrctAdj!D79)) -> 250 | C103: =B103 -> 250 | D103: 0 | E103: 0 | F103: 0 | G103: 0 | H103: 0 | I103: 0 | J103: 0 | K103: 0 | L103: 0 | M103: 0 | N103: 0 | O103: 0 | P103: 0 | Q103: 0 | R103: 0
B104: =IF( $A$119=16,1*(IndrctAdj!C80<>""),IF(IndrctAdj!D80<=0,0,IndrctAdj!D80)) -> 678.5925385 | C104: 0 | D104: =B104 -> 678.5925385 | E104: 0 | F104: 0 | G104: 0 | H104: 0 | I104: 0 | J104: 0 | K104: 0 | L104: 0 | M104: 0 | N104: 0 | O104: 0 | P104: 0 | Q104: 0 | R104: 0
B105: =IF( $A$119=16,1*(IndrctAdj!C81<>""),IF(IndrctAdj!D81<=0,0,IndrctAdj!D81)) -> 269.8590076 | C105: 0 | D105: 0 | E105: =B105 -> 269.8590076 | F105: 0 | G105: 0 | H105: 0 | I105: 0 | J105: 0 | K105: 0 | L105: 0 | M105: 0 | N105: 0 | O105: 0 | P105: 0 | Q105: 0 | R105: 0
B106: =IF( $A$119=16,1*(IndrctAdj!C82<>""),IF(IndrctAdj!D82<=0,0,IndrctAdj!D82)) -> 204.8442346 | C106: 0 | D106: 0 | E106: 0 | F106: =B106 -> 204.8442346 | G106: 0 | H106: 0 | I106: 0 | J106: 0 | K106: 0 | L106: 0 | M106: 0 | N106: 0 | O106: 0 | P106: 0 | Q106: 0 | R106: 0
B107: =IF( $A$119=16,1*(IndrctAdj!C83<>""),IF(IndrctAdj!D83<=0,0,IndrctAdj!D83)) -> 174.8918512 | C107: 0 | D107: 0 | E107: 0 | F107: 0 | G107: =B107 -> 174.8918512 | H107: 0 | I107: 0 | J107: 0 | K107: 0 | L107: 0 | M107: 0 | N107: 0 | O107: 0 | P107: 0 | Q107: 0 | R107: 0
B108: =IF( $A$119=16,1*(IndrctAdj!C84<>""),IF(IndrctAdj!D84<=0,0,IndrctAdj!D84)) -> 80.34298061 | C108: 0 | D108: 0 | E108: 0 | F108: 0 | G108: 0 | H108: =B108 -> 80.34298061 | I108: 0 | J108: 0 | K108: 0 | L108: 0 | M108: 0 | N108: 0 | O108: 0 | P108: 0 | Q108: 0 | R108: 0
B109: =IF( $A$119=16,1*(IndrctAdj!C85<>""),IF(IndrctAdj!D85<=0,0,IndrctAdj!D85)) -> 192.4550623 | C109: 0 | D109: 0 | E109: 0 | F109: 0 | G109: 0 | H109: 0 | I109: =B109 -> 192.4550623 | J109: 0 | K109: 0 | L109: 0 | M109: 0 | N109: 0 | O109: 0 | P109: 0 | Q109: 0 | R109: 0
B110: =IF( $A$119=16,1*(IndrctAdj!C86<>""),IF(IndrctAdj!D86<=0,0,IndrctAdj!D86)) -> 0 | C110: 0 | D110: 0 | E110: 0 | F110: 0 | G110: 0 | H110: 0 | I110: 0 | J110: =B110 -> 0 | K110: 0 | L110: 0 | M110: 0 | N110: 0 | O110: 0 | P110: 0 | Q110: 0 | R110: 0
B111: =IF( $A$119=16,1*(IndrctAdj!C87<>""),IF(IndrctAdj!D87<=0,0,IndrctAdj!D87)) -> 0 | C111: 0 | D111: 0 | E111: 0 | F111: 0 | G111: 0 | H111: 0 | I111: 0 | J111: 0 | K111: =B111 -> 0 | L111: 0 | M111: 0 | N111: 0 | O111: 0 | P111: 0 | Q111: 0 | R111: 0
B112: =IF( $A$119=16,1*(IndrctAdj!C88<>""),IF(IndrctAdj!D88<=0,0,IndrctAdj!D88)) -> 0 | C112: 0 | D112: 0 | E112: 0 | F112: 0 | G112: 0 | H112: 0 | I112: 0 | J112: 0 | K112: 0 | L112: =B112 -> 0 | M112: 0 | N112: 0 | O112: 0 | P112: 0 | Q112: 0 | R112: 0
B113: =IF( $A$119=16,1*(IndrctAdj!C89<>""),IF(IndrctAdj!D89<=0,0,IndrctAdj!D89)) -> 0 | C113: 0 | D113: 0 | E113: 0 | F113: 0 | G113: 0 | H113: 0 | I113: 0 | J113: 0 | K113: 0 | L113: 0 | M113: =B113 -> 0 | N113: 0 | O113: 0 | P113: 0 | Q113: 0 | R113: 0
B114: =IF( $A$119=16,1*(IndrctAdj!C90<>""),IF(IndrctAdj!D90<=0,0,IndrctAdj!D90)) -> 0 | C114: 0 | D114: 0 | E114: 0 | F114: 0 | G114: 0 | H114: 0 | I114: 0 | J114: 0 | K114: 0 | L114: 0 | M114: 0 | N114: =B114 -> 0 | O114: 0 | P114: 0 | Q114: 0 | R114: 0
B115: =IF( $A$119=16,1*(IndrctAdj!C91<>""),IF(IndrctAdj!D91<=0,0,IndrctAdj!D91)) -> 0 | C115: 0 | D115: 0 | E115: 0 | F115: 0 | G115: 0 | H115: 0 | I115: 0 | J115: 0 | K115: 0 | L115: 0 | M115: 0 | N115: 0 | O115: =B115 -> 0 | P115: 0 | Q115: 0 | R115: 0
B116: =IF( $A$119=16,1*(IndrctAdj!C92<>""),IF(IndrctAdj!D92<=0,0,IndrctAdj!D92)) -> 0 | C116: 0 | D116: 0 | E116: 0 | F116: 0 | G116: 0 | H116: 0 | I116: 0 | J116: 0 | K116: 0 | L116: 0 | M116: 0 | N116: 0 | O116: 0 | P116: =B116 -> 0 | Q116: 0 | R116: 0
B117: =IF( $A$119=16,1*(IndrctAdj!C93<>""),IF(IndrctAdj!D93<=0,0,IndrctAdj!D93)) -> 0 | C117: 0 | D117: 0 | E117: 0 | F117: 0 | G117: 0 | H117: 0 | I117: 0 | J117: 0 | K117: 0 | L117: 0 | M117: 0 | N117: 0 | O117: 0 | P117: 0 | Q117: =B117 -> 0 | R117: 0
B118: =IF( $A$119=16,1*(IndrctAdj!C94<>""),IF(IndrctAdj!D94<=0,0,IndrctAdj!D94)) -> 0 | C118: 0 | D118: 0 | E118: 0 | F118: 0 | G118: 0 | H118: 0 | I118: 0 | J118: 0 | K118: 0 | L118: 0 | M118: 0 | N118: 0 | O118: 0 | P118: 0 | Q118: 0 | R118: =B118 -> 0
A119: =COUNTBLANK(IndrctAdj!D79:'IndrctAdj'!D94) -> 9
C120: Linear (WLS) | N120: ERR = α + β*x
C121: alpha | D121: ERR_X | E121: alpha | F121: ERR_obs | N121: RR_X(i) | O121: RR_Obs
B122: 2 | C122: =IF($B$24=2, D98*$I$24+U98*(1-$I$24),"") ->  | D122: =IF($B$24=2, D99*$I$24+U99*(1-$I$24),"") ->  | E122: =IF($B$24=2, D100*$I$24+U100*(1-$I$24),"") ->  | F122: =IF($B$24=2, D101*$I$24+U101*(1-$I$24),"") ->  | N122: =IF(D5="","", $C$137+$D$137*D5) -> 0 | O122: =IF(D5="","", $E$137+$F$137*D5) -> 0
B123: 3 | C123: =IF($B$24=3, E98*$I$24+V98*(1-$I$24),"") ->  | D123: =IF($B$24=3, E99*$I$24+V99*(1-$I$24),"") ->  | E123: =IF($B$24=3, E100*$I$24+V100*(1-$I$24),"") ->  | F123: =IF($B$24=3, E101*$I$24+V101*(1-$I$24),"") ->  | N123: 0.08260387695 | O123: 0.1242252625
B124: 4 | C124: =IF($B$24=4, F98*$I$24+W98*(1-$I$24),"") ->  | D124: =IF($B$24=4, F99*$I$24+W99*(1-$I$24),"") ->  | E124: =IF($B$24=4, F100*$I$24+W100*(1-$I$24),"") ->  | F124: =IF($B$24=4, F101*$I$24+W101*(1-$I$24),"") ->  | N124: 0.2921941893 | O124: 0.4394212622
B125: 5 | C125: =IF($B$24=5, G98*$I$24+X98*(1-$I$24),"") ->  | D125: =IF($B$24=5, G99*$I$24+X99*(1-$I$24),"") ->  | E125: =IF($B$24=5, G100*$I$24+X100*(1-$I$24),"") ->  | F125: =IF($B$24=5, G101*$I$24+X101*(1-$I$24),"") ->  | N125: 0.4164620252 | O125: 0.6263035868
B126: 6 | C126: =IF($B$24=6, H98*$I$24+Y98*(1-$I$24),"") ->  | D126: =IF($B$24=6, H99*$I$24+Y99*(1-$I$24),"") ->  | E126: =IF($B$24=6, H100*$I$24+Y100*(1-$I$24),"") ->  | F126: =IF($B$24=6, H101*$I$24+Y101*(1-$I$24),"") ->  | N126: 0.5423117995 | O126: 0.8155649365
B127: 7 | C127: =IF($B$24=7, I98*$I$24+Z98*(1-$I$24),"") -> 0 | D127: =IF($B$24=7, I99*$I$24+Z99*(1-$I$24),"") -> 0.01241709826 | E127: =IF($B$24=7, I100*$I$24+Z100*(1-$I$24),"") -> 0 | F127: =IF($B$24=7, I101*$I$24+Z101*(1-$I$24),"") -> 0.01867366699 | N127: 0.6657799743 | O127: 1.001244677
B128: 8 | C128: =IF($B$24=8, J98*$I$24+AA98*(1-$I$24),"") ->  | D128: =IF($B$24=8, J99*$I$24+AA99*(1-$I$24),"") ->  | E128: =IF($B$24=8, J100*$I$24+AA100*(1-$I$24),"") ->  | F128: =IF($B$24=8, J101*$I$24+AA101*(1-$I$24),"") ->  | N128: 1.004253931 | O128: 1.510264563
B129: 9 | C129: =IF($B$24=9, K98*$I$24+AB98*(1-$I$24),"") ->  | D129: =IF($B$24=9, K99*$I$24+AB99*(1-$I$24),"") ->  | E129: =IF($B$24=9, K100*$I$24+AB100*(1-$I$24),"") ->  | F129: =IF($B$24=9, K101*$I$24+AB101*(1-$I$24),"") -> 
B130: 10 | C130: =IF($B$24=10,L98*$I$24+AC98*(1-$I$24),"") ->  | D130: =IF($B$24=10,L99*$I$24+AC99*(1-$I$24),"") ->  | E130: =IF($B$24=10,L100*$I$24+AC100*(1-$I$24),"") ->  | F130: =IF($B$24=10,L101*$I$24+AC101*(1-$I$24),"") -> 
B131: 11 | C131: =IF($B$24=11,M98*$I$24+AD98*(1-$I$24),"") ->  | D131: =IF($B$24=11,M99*$I$24+AD99*(1-$I$24),"") ->  | E131: =IF($B$24=11,M100*$I$24+AD100*(1-$I$24),"") ->  | F131: =IF($B$24=11,M101*$I$24+AD101*(1-$I$24),"") -> 
B132: 12 | C132: =IF($B$24=12,N98*$I$24+AE98*(1-$I$24),"") ->  | D132: =IF($B$24=12,N99*$I$24+AE99*(1-$I$24),"") ->  | E132: =IF($B$24=12,N100*$I$24+AE100*(1-$I$24),"") ->  | F132: =IF($B$24=12,N101*$I$24+AE101*(1-$I$24),"") -> 
B133: 13 | C133: =IF($B$24=13,O98*$I$24+AF98*(1-$I$24),"") ->  | D133: =IF($B$24=13,O99*$I$24+AF99*(1-$I$24),"") ->  | E133: =IF($B$24=13,O100*$I$24+AF100*(1-$I$24),"") ->  | F133: =IF($B$24=13,O101*$I$24+AF101*(1-$I$24),"") -> 
B134: 14 | C134: =IF($B$24=14,P98*$I$24+AG98*(1-$I$24),"") ->  | D134: =IF($B$24=14,P99*$I$24+AG99*(1-$I$24),"") ->  | E134: =IF($B$24=14,P100*$I$24+AG100*(1-$I$24),"") ->  | F134: =IF($B$24=14,P101*$I$24+AG101*(1-$I$24),"") -> 
B135: 15 | C135: =IF($B$24=15,Q98*$I$24+AH98*(1-$I$24),"") ->  | D135: =IF($B$24=15,Q99*$I$24+AH99*(1-$I$24),"") ->  | E135: =IF($B$24=15,Q100*$I$24+AH100*(1-$I$24),"") ->  | F135: =IF($B$24=15,Q101*$I$24+AH101*(1-$I$24),"") -> 
B136: 16 | C136: =IF($B$24=16,R98*$I$24+AI98*(1-$I$24),"") ->  | D136: =IF($B$24=16,R99*$I$24+AI99*(1-$I$24),"") ->  | E136: =IF($B$24=16,R100*$I$24+AI100*(1-$I$24),"") ->  | F136: =IF($B$24=16,R101*$I$24+AI101*(1-$I$24),"") -> 
B137: RETURN | C137: =SUM(C122:C136) -> 0 | D137: =SUM(D122:D136) -> 0.01241709826 | E137: 0 | F137: 0.01867366699 | N137: Fitted_lin(X) | O137: Fitted_lin(Obs)
A140: Mult model: Smooth with prior weights
A142: Prior weights | G142: Total
A143: =IF(IndrctAdj!$O$30=0,0.2,MAX(IndrctAdj!J30,0)) -> 0.1 | B143: =IF(IndrctAdj!$O$30=0,0.2,MAX(IndrctAdj!K30,0)) -> 0.2 | C143: =IF(IndrctAdj!$O$30=0,0.2,MAX(IndrctAdj!L30,0)) -> 0.4 | D143: =IF(IndrctAdj!$O$30=0,0.2,MAX(IndrctAdj!M30,0)) -> 0.2 | E143: =IF(IndrctAdj!$O$30=0,0.2,MAX(IndrctAdj!N30,0)) -> 0.1 | G143: =SUM(A143:E143) -> 1
A145: RR_X(i) | B145: RR_Obs | D145: Smooth(X) | E145: Smooth(Obs)
A146: 1 | B146: 1
A147: 1 | B147: 1
A148: =IndrctAdj!E32 -> 1 | B148: =IndrctAdj!C32 -> 1 | D148: =(A146*$A$143+A147*$B$143+A148*$C$143+A149*$D$143 +A150*$E$143)/$G$143 -> 1.09796746 | E148: =(B146*$A$143+B147*$B$143+B148*$C$143+B149*$D$143 +B150*$E$143)/$G$143 -> 1.111
A149: =IF(IndrctAdj!E33="",A148,IndrctAdj!E33) -> 1.248788393 | B149: =IF(IndrctAdj!C33="",B148,IndrctAdj!C33) -> 1.26 | D149: =(A147*$A$143+A148*$B$143+A149*$C$143+A150*$D$143 +A151*$E$143)/$G$143 -> 1.253279621 | E149: =(B147*$A$143+B148*$B$143+B149*$C$143+B150*$D$143 +B151*$E$143)/$G$143 -> 1.289
A150: =IF(IndrctAdj!E34="",A149,IndrctAdj!E34) -> 1.482097815 | B150: =IF(IndrctAdj!C34="",B149,IndrctAdj!C34) -> 1.59 | D150: 1.440194008 | E150: 1.52
A151: =IF(IndrctAdj!E35="",A150,IndrctAdj!E35) -> 1.573447008 | B151: =IF(IndrctAdj!C35="",B150,IndrctAdj!C35) -> 1.67 | D151: 1.619053491 | E151: 1.726
A152: =IF(IndrctAdj!E36="",A151,IndrctAdj!E36) -> 1.829078012 | B152: =IF(IndrctAdj!C36="",B151,IndrctAdj!C36) -> 1.98 | D152: 1.808316303 | E152: 1.947
A153: =IF(IndrctAdj!E37="",A152,IndrctAdj!E37) -> 2.025606833 | B153: =IF(IndrctAdj!C37="",B152,IndrctAdj!C37) -> 2.18 | D153: 1.959396681 | E153: 2.113
A154: =IF(IndrctAdj!E38="",A153,IndrctAdj!E38) -> 2.08664548 | B154: =IF(IndrctAdj!C38="",B153,IndrctAdj!C38) -> 2.26 | D154: 2.048681004 | E154: 2.216
A155: =IF(IndrctAdj!E39="",A154,IndrctAdj!E39) -> 2.08664548 | B155: =IF(IndrctAdj!C39="",B154,IndrctAdj!C39) -> 2.26 | D155: 2.080541615 | E155: 2.252
A156: =IF(IndrctAdj!E40="",A155,IndrctAdj!E40) -> 2.08664548 | B156: =IF(IndrctAdj!C40="",B155,IndrctAdj!C40) -> 2.26 | D156: =(A154*$A$143+A155*$B$143+A156*$C$143+A157*$D$143 +A158*$E$143)/$G$143 -> 2.08664548 | E156: =(B154*$A$143+B155*$B$143+B156*$C$143+B157*$D$143 +B158*$E$143)/$G$143 -> 2.26
A157: =IF(IndrctAdj!E41="",A156,IndrctAdj!E41) -> 2.08664548 | B157: =IF(IndrctAdj!C41="",B156,IndrctAdj!C41) -> 2.26 | D157: 2.08664548 | E157: 2.26
A158: =IF(IndrctAdj!E42="",A157,IndrctAdj!E42) -> 2.08664548 | B158: =IF(IndrctAdj!C42="",B157,IndrctAdj!C42) -> 2.26 | D158: 2.08664548 | E158: 2.26
A159: =IF(IndrctAdj!E43="",A158,IndrctAdj!E43) -> 2.08664548 | B159: =IF(IndrctAdj!C43="",B158,IndrctAdj!C43) -> 2.26 | D159: 2.08664548 | E159: =(B157*$A$143+B158*$B$143+B159*$C$143+B160*$D$143 +B161*$E$143)/$G$143 -> 2.26
A160: =IF(IndrctAdj!E44="",A159,IndrctAdj!E44) -> 2.08664548 | B160: =IF(IndrctAdj!C44="",B159,IndrctAdj!C44) -> 2.26 | D160: =(A158*$A$143+A159*$B$143+A160*$C$143+A161*$D$143 +A162*$E$143)/$G$143 -> 2.08664548 | E160: =(B158*$A$143+B159*$B$143+B160*$C$143+B161*$D$143 +B162*$E$143)/$G$143 -> 2.26
A161: =IF(IndrctAdj!E45="",A160,IndrctAdj!E45) -> 2.08664548 | B161: =IF(IndrctAdj!C45="",B160,IndrctAdj!C45) -> 2.26 | D161: =(A159*$A$143+A160*$B$143+A161*$C$143+A162*$D$143 +A163*$E$143)/$G$143 -> 2.08664548 | E161: =(B159*$A$143+B160*$B$143+B161*$C$143+B162*$D$143 +B163*$E$143)/$G$143 -> 2.26
A162: =IF(IndrctAdj!E46="",A161,IndrctAdj!E46) -> 2.08664548 | B162: =IF(IndrctAdj!C46="",B161,IndrctAdj!C46) -> 2.26 | D162: =(A160*$A$143+A161*$B$143+A162*$C$143+A163*$D$143 +A164*$E$143)/$G$143 -> 2.08664548 | E162: =(B160*$A$143+B161*$B$143+B162*$C$143+B163*$D$143 +B164*$E$143)/$G$143 -> 2.26
A163: =IF(IndrctAdj!E47="",A162,IndrctAdj!E47) -> 2.08664548 | B163: =IF(IndrctAdj!C47="",B162,IndrctAdj!C47) -> 2.26 | D163: =(A161*$A$143+A162*$B$143+A163*$C$143+A164*$D$143 +A165*$E$143)/$G$143 -> 2.08664548 | E163: =(B161*$A$143+B162*$B$143+B163*$C$143+B164*$D$143 +B165*$E$143)/$G$143 -> 2.26
A164: =A163 -> 2.08664548 | B164: =B163 -> 2.26 | D164: =(A162*$A$143+A163*$B$143+A164*$C$143+A165*$D$143 +A165*$E$143)/$G$143 -> 2.08664548 | E164: =(B162*$A$143+B163*$B$143+B164*$C$143+B165*$D$143 +B165*$E$143)/$G$143 -> 2.26
A165: =A164 -> 2.08664548 | B165: =B164 -> 2.26 | D165: =(A163*$A$143+A164*$B$143+A165*$C$143+A165*$D$143 +A165*$E$143)/$G$143 -> 2.08664548 | E165: =(B163*$A$143+B164*$B$143+B165*$C$143+B165*$D$143 +B165*$E$143)/$G$143 -> 2.26
A169: Additive model: Smooth with prior weights
A171: Prior weights | G171: Total
A172: =IF(IndrctAdj!$O$77=0,0.2,IndrctAdj!J77) -> 0.1 | B172: =IF(IndrctAdj!$O$77=0,0.2,IndrctAdj!K77) -> 0.2 | C172: =IF(IndrctAdj!$O$77=0,0.2,IndrctAdj!L77) -> 0.4 | D172: =IF(IndrctAdj!$O$77=0,0.2,IndrctAdj!M77) -> 0.2 | E172: =IF(IndrctAdj!$O$77=0,0.2,IndrctAdj!N77) -> 0.1 | G172: =SUM(A172:E172) -> 1
A174: ERR_X(i) | B174: ERR_Obs | D174: Smooth(X) | E174: Smooth(Obs)
A175: 0 | B175: 0
A176: 0 | B176: 0
A177: 0 | B177: 0 | D177: =(A175*$A$172+A176*$B$172+A177*$C$172+A178*$D$172 +A179*$E$172)/$G$172 -> 0.07336179252 | E177: =(B175*$A$172+B176*$B$172+B177*$C$172+B178*$D$172 +B179*$E$172)/$G$172 -> 0.111
A178: =IF(IndrctAdj!E80="",A177,IndrctAdj!E80) -> 0.1806779432 | B178: =IF(IndrctAdj!C80="",B177,IndrctAdj!C80) -> 0.26 | D178: =(A176*$A$172+A177*$B$172+A178*$C$172+A179*$D$172 +A180*$E$172)/$G$172 -> 0.1905313375 | E178: 0.289
A179: =IF(IndrctAdj!E81="",A178,IndrctAdj!E81) -> 0.3722620388 | B179: =IF(IndrctAdj!C81="",B178,IndrctAdj!C81) -> 0.59 | D179: 0.3372542984 | E179: 0.52
A180: =IF(IndrctAdj!E82="",A179,IndrctAdj!E82) -> 0.4380775244 | B180: =IF(IndrctAdj!C82="",B179,IndrctAdj!C82) -> 0.67 | D180: 0.4763946383 | E180: 0.726
A181: =IF(IndrctAdj!E83="",A180,IndrctAdj!E83) -> 0.6459838936 | B181: =IF(IndrctAdj!C83="",B180,IndrctAdj!C83) -> 0.98 | D181: 0.62683979 | E181: 0.947
A182: =IF(IndrctAdj!E84="",A181,IndrctAdj!E84) -> 0.7944664776 | B182: =IF(IndrctAdj!C84="",B181,IndrctAdj!C84) -> 1.18 | D182: =(A180*$A$172+A181*$B$172+A182*$C$172+A183*$D$172 +A184*$E$172)/$G$172 -> 0.7449248072 | E182: 1.113
A183: =IF(IndrctAdj!E85="",A182,IndrctAdj!E85) -> 0.8471122832 | B183: =IF(IndrctAdj!C85="",B182,IndrctAdj!C85) -> 1.26 | D183: =(A181*$A$172+A182*$B$172+A183*$C$172+A184*$D$172 +A185*$E$172)/$G$172 -> 0.8164702831 | E183: =(B181*$A$172+B182*$B$172+B183*$C$172+B184*$D$172 +B185*$E$172)/$G$172 -> 1.216
A184: =IF(IndrctAdj!E86="",A183,IndrctAdj!E86) -> 0.8471122832 | B184: =IF(IndrctAdj!C86="",B183,IndrctAdj!C86) -> 1.26 | D184: =(A182*$A$172+A183*$B$172+A184*$C$172+A185*$D$172 +A186*$E$172)/$G$172 -> 0.8418477026 | E184: 1.252
A185: =IF(IndrctAdj!E87="",A184,IndrctAdj!E87) -> 0.8471122832 | B185: =IF(IndrctAdj!C87="",B184,IndrctAdj!C87) -> 1.26 | D185: =(A183*$A$172+A184*$B$172+A185*$C$172+A186*$D$172 +A187*$E$172)/$G$172 -> 0.8471122832 | E185: 1.26
A186: =IF(IndrctAdj!E88="",A185,IndrctAdj!E88) -> 0.8471122832 | B186: =IF(IndrctAdj!C88="",B185,IndrctAdj!C88) -> 1.26 | D186: 0.8471122832 | E186: 1.26
A187: =IF(IndrctAdj!E89="",A186,IndrctAdj!E89) -> 0.8471122832 | B187: =IF(IndrctAdj!C89="",B186,IndrctAdj!C89) -> 1.26 | D187: 0.8471122832 | E187: 1.26
A188: =IF(IndrctAdj!E90="",A187,IndrctAdj!E90) -> 0.8471122832 | B188: =IF(IndrctAdj!C90="",B187,IndrctAdj!C90) -> 1.26 | D188: 0.8471122832 | E188: 1.26
A189: =IF(IndrctAdj!E91="",A188,IndrctAdj!E91) -> 0.8471122832 | B189: =IF(IndrctAdj!C91="",B188,IndrctAdj!C91) -> 1.26 | D189: 0.8471122832 | E189: 1.26
A190: =IF(IndrctAdj!E92="",A189,IndrctAdj!E92) -> 0.8471122832 | B190: =IF(IndrctAdj!C92="",B189,IndrctAdj!C92) -> 1.26 | D190: 0.8471122832 | E190: 1.26
A191: =IF(IndrctAdj!E93="",A190,IndrctAdj!E93) -> 0.8471122832 | B191: =IF(IndrctAdj!C93="",B190,IndrctAdj!C93) -> 1.26 | D191: 0.8471122832 | E191: 1.26
A192: =IF(IndrctAdj!E94="",A191,IndrctAdj!E94) -> 0.8471122832 | B192: =IF(IndrctAdj!C94="",B191,IndrctAdj!C94) -> 1.26 | D192: 0.8471122832 | E192: =(B190*$A$172+B191*$B$172+B192*$C$172+B193*$D$172 +B194*$E$172)/$G$172 -> 1.26
A193: =A192 -> 0.8471122832 | B193: =B192 -> 1.26 | D193: =(A191*$A$172+A192*$B$172+A193*$C$172+A194*$D$172 +A194*$E$172)/$G$172 -> 0.8471122832 | E193: =(B191*$A$172+B192*$B$172+B193*$C$172+B194*$D$172 +B194*$E$172)/$G$172 -> 1.26
A194: =A193 -> 0.8471122832 | B194: 1.26 | D194: =(A192*$A$172+A193*$B$172+A194*$C$172+A194*$D$172 +A194*$E$172)/$G$172 -> 0.8471122832 | E194: =(B192*$A$172+B193*$B$172+B194*$C$172+B194*$D$172 +B194*$E$172)/$G$172 -> 1.26

Sheet ExampleData
A2: Data from examples in Lubin, Hauptmann and Blair (Ann Epidemiol 2018:28(11);801-807)
A4: (a) Leukemia following pediatric CT scanning and confounding by cancer susceptibility syndromes (CSS)
G5: Down syndrome | J5: All CSS
A6: Dose (Gy) | B6: RR_Obs | C6: Wgt | D6: P(X) | E6: Mean | G6: P(C=0|X=i) | H6: P(C=1|X=i) | J6: P(C=0|X=i) | K6: P(C=1|X=i)
A7: <5 | B7: 1 | C7: 7.5 | D7: 0.341926678 | E7: 2.32 | G7: 0.9984 | H7: 0.0016 | J7: =1-K7 -> 0.99718 | K7: 0.00282
A8: 5-9 | B8: 1.44 | C8: 7.289031216 | D8: 0.2549868302 | E8: 7.08 | G8: 0.99712 | H8: 0.00288 | J8: =1-K8 -> 0.994924 | K8: 0.005076
A9: 10-14 | B9: 2.03 | C9: 5.787410459 | D9: 0.1239344026 | E9: 12.34 | G9: 0.99584 | H9: 0.00416 | J9: 0.992668 | K9: 0.007332
A10: 15-19 | B10: 1.53 | C10: 5.074344679 | D10: 0.1422698539 | E10: 16.54 | G10: 0.99456 | H10: 0.00544 | J10: 0.990412 | K10: 0.009588
A11: 20-29 | B11: 2.02 | C11: 2.799552031 | D11: 0.0409783246 | E11: 24.69 | G11: 0.99328 | H11: 0.00672 | J11: 0.988156 | K11: 0.011844
A12: 30+ | B12: 3.18 | C12: 6.323462286 | D12: 0.09590391073 | E12: 51.13 | G12: 0.992 | H12: 0.008 | J12: 0.9859 | K12: 0.0141
F14: RR_C = | H14: 20 | K14: 16
A16: (b1) Coronary heart disease and cigarette smoking in the Agricultural Heath Study - Uses "IndrctAdj"
G17: P(C|X) - NHANES ages 50-80
G18: HDL (mmol/L)
A19: Pack-years | B19: RR_Obs | C19: Wgt | D19: ERR_Obs | E19: P(X) | F19: Mean | G19: <1.00 | H19: 1.00-1.29 | I19: 1.30-1.59 | J19: ≥1.60
A20: 0 | B20: 1 | C20: 250 | D20: 0 | E20: 0.621 | F20: 0 | G20: 0.143136 | H20: 0.320522 | I20: 0.245149 | J20: 0.291193
A21: 1-19 | B21: 1.26 | C21: 678.5925385 | D21: 0.26 | E21: 0.218 | F21: 6.65243 | G21: 0.162325 | H21: 0.316925 | I21: 0.233215 | J21: 0.287535
A22: 20-29 | B22: 1.59 | C22: 269.8590076 | D22: 0.59 | E22: 0.053 | F22: 23.5316 | G22: 0.226816 | H22: 0.354887 | I22: 0.238135 | J22: 0.180162
A23: 30-29 | B23: 1.67 | C23: 204.8442346 | D23: 0.67 | E23: 0.039 | F23: 33.5394 | G23: 0.215222 | H23: 0.366784 | I23: 0.197623 | J23: 0.220371
A24: 40-49 | B24: 1.98 | C24: 174.8918512 | D24: 0.98 | E24: 0.025 | F24: 43.6746 | G24: 0.255994 | H24: 0.35099 | I24: 0.198911 | J24: 0.194105
A25: 50-59 | B25: 2.18 | C25: 80.34298061 | D25: 1.18 | E25: 0.015 | F25: 53.618 | G25: 0.260412 | H25: 0.337192 | I25: 0.186121 | J25: 0.216275
A26: ≥60 | B26: 2.26 | C26: 192.4550623 | D26: 1.26 | E26: 0.029 | F26: 80.8767 | G26: 0.266887 | H26: 0.333104 | I26: 0.205422 | J26: 0.194587
F28: Confounder score = | G28: 0.86 | H28: 1.15 | I28: 1.44 | J28: 1.95
F29: RR_C = | G29: 1 | H29: 0.84 | I29: 0.66 | J29: 0.5
A32: (b2) Coronary heart disease and cigarette smoking in the Agricultural Heath Study - Uses "Solve_RRC"
G33: P(C|X) - NHANES ages 50-80
G34: HDL (mmol/L)
A35: Pack-years | B35: Mean | C35: RR_Obs | D35: RR_X | E35: ERR_Obs | F35: ERR_X | G35: <1.00 | H35: 1.00-1.29 | I35: 1.30-1.59 | J35: 1.60-179 | K35: 1.80-2.19 | L35: ≥2.20
A36: 0 | B36: 0 | C36: 1 | D36: 1 | E36: 0 | F36: 0 | G36: 0.156 | H36: 0.333 | I36: 0.259 | J36: 0.115 | K36: 0.098 | L36: 0.039
A37: 1-19 | B37: 6.65243 | C37: 1.26 | D37: 1.218852273 | E37: 0.26 | F37: 0.1617756 | G37: 0.203 | H37: 0.34 | I37: 0.235 | J37: 0.103 | K37: 0.083 | L37: 0.036
A38: 20-29 | B38: 23.5316 | C38: 1.59 | D38: 1.471583484 | E38: 0.59 | F38: 0.3643454 | G38: 0.256 | H38: 0.367 | I38: 0.202 | J38: 0.079 | K38: 0.067 | L38: 0.029
A39: 30-29 | B39: 33.5394 | C39: 1.67 | D39: 1.575978198 | E39: 0.67 | F39: 0.4364302 | G39: 0.24 | H39: 0.354 | I39: 0.201 | J39: 0.088 | K39: 0.086 | L39: 0.031
A40: 40-49 | B40: 43.6746 | C40: 1.98 | D40: 1.848086151 | E40: 0.98 | F40: 0.6497188 | G40: 0.254 | H40: 0.35 | I40: 0.21 | J40: 0.087 | K40: 0.063 | L40: 0.036
A41: ≥50 | B41: 62 | C41: 2.2 | D41: 2.0719765 | E41: 1.2 | F41: 0.8064908 | G41: 0.238 | H41: 0.357 | I41: 0.191 | J41: 0.077 | K41: 0.088 | L41: 0.049
F43: Confounder score = | G43: 0.86 | H43: 1.15 | I43: 1.44 | J43: 1.69 | K43: 1.96 | L43: 2.47
F44: RR_C = | G44: 1 | H44: 0.84 | I44: 0.66 | J44: 0.5 | K44: 0.4 | L44: 0.3
A46: (c) Pooled analysis of studies of nuclear industry workers and mortality from all cancers except leukemia (INWORKS) - Uses "Solve P(C|X) (binary)"
A48: Dose (mGy) | B48: P(X) | C48: RR_Obs | D48: RR_X | E48: Wgt | F48: ERR_Obs | G48: Mean | I48: RR_C | J48: P(C=1|X=0)
A49: <5 | B49: 0.5472618548 | C49: 1 | D49: 1 | E49: 0.001713417638 | F49: 0 | G49: 0.6 | I49: 2 | J49: 0.5
A50: 5-<20 | B50: 0.2145929501 | C50: 1.004738192 | D50: 1 | E50: 0.003588596491 | F50: 0.004738191903 | G50: 10.75 | I50: 2 | J50: 0.7
A51: 20-<50 | B51: 0.1115190936 | C51: 1.014853189 | D51: 1 | E51: 0.003988742964 | F51: 0.01485318895 | G51: 31.7 | I51: 4 | J51: 0.5
A52: 50-<100 | B52: 0.06121485522 | C52: 1.033031595 | D52: 1 | E52: 0.004540856031 | F52: 0.03303159535 | G52: 70.1 | I52: 4 | J52: 0.7
A53: 100-<200 | B53: 0.04170163659 | C53: 1.062710335 | D53: 1 | E53: 0.005638297872 | F53: 0.06271033463 | G53: 146.9
A54: 200-<300 | B54: 0.0126416282 | C54: 1.137276965 | D54: 1 | E54: 0.006179487179 | F54: 0.137276965 | G54: 240.6
A55: 300-<400 | B55: 0.006399496433 | C55: 1.160198423 | D55: 1 | E55: 0.008714285714 | F55: 0.1601984226 | G55: 341.4
A56: 400-<500 | B56: 0.002570289551 | C56: 1.227434541 | D56: 1 | E56: 0.0098 | F56: 0.2274345405 | G56: 442.3
A57: ≥500 | B57: 0.002098195552 | C57: 1.323817764 | D57: 1 | E57: 0.01 | F57: 0.3238177637 | G57: 630.8
A59: (d) Body mass index and all causes mortality - Uses "Solve P(C|X) (binary)"
A61: BMI | B61: RR_Obs | C61: RR_X | E61: RR_C | F61: P(C=1|X=0)
A62: 18.5-24.9 | B62: 1 | C62: 1 | D62: ** | E62: 10 | F62: 5
A63: 25-29.9 | B63: 0.99 | C63: 1.11 | E63: 10 | F63: 0.01
A64: 30-34.9 | B64: 1.25 | C64: 1.44 | E64: 20 | F64: 0.01
A65: ≥35 | B65: 1.62 | C65: 1.92 | E65: 5 | F65: 0.05
E66: 10 | F66: 0.05
A67: <18.5 | B67: 1.68 | C67: 1.47 | E67: 5 | F67: 0.1
E68: 10 | F68: 0.1 | K68: `
E69: 2 | F69: 0.3
E70: 5 | F70: 0.3
A72: ** Note: referent category must be lowest level

Sheet TestData (hidden)
A1: IndrctAdj | D1: P(X|C) start/end | E1: 0.04 | F1: 0.6 | G1: =(F1-E1)/15 -> 0.03733333333 | H1: =(F1-E1)/20 -> 0.028 | I1: 0.1
C2: Score C | D2: 0 | E2: 1 | F2: 2 | G2: 0 | H2: 0 | I2: 0 | J2: 0 | K2: 0 | L2: 0 | M2: 0
C3: RR_C = | D3: 1 | E3: =EXP($I$1*E2) -> 1.105170918 | F3: =EXP($I$1*F2) -> 1.221402758 | G3: 1 | H3: 1 | I3: 1 | J3: 1 | K3: 1 | L3: 1 | M3: 1 | P3: ERR= | Q3: 0.2
D4: P(X|C)
A5: Level (X) | B5: P(X) | C5: X | D5: 0 | E5: 1 | F5: 2 | G5: 3 | H5: 4 | I5: 5 | J5: 6 | K5: 7 | L5: 8 | M5: 9 | N5: Sum | P5: Level (X) | Q5: RR_Obs | R5: Wgt | T5: ERR_Obs | U5: Wgt
A6: 0 | B6: 0.045 | C6: =A6 -> 0 | D6: 0.1 | E6: 0.2 | F6: 0.7 | N6: =SUM(D6:M6) -> 1 | P6: 0 | Q6: =1+$Q$3*P6 -> 1 | R6: 0.5 | T6: =$Q$3*P6 -> 0 | U6: 0.5
A7: 1 | B7: =B6*(1+$G$1) -> 0.04668 | C7: =A7 -> 1 | D7: 0.1033333333 | E7: 0.2066666667 | F7: 0.69 | N7: =SUM(D7:M7) -> 1 | P7: 1 | Q7: =1+$Q$3*P7 -> 1.2 | R7: 0.5 | T7: =$Q$3*P7 -> 0.2 | U7: 0.5
A8: 2 | B8: =B7*(1+$G$1) -> 0.04842272 | C8: 2 | D8: 0.1067777778 | E8: 0.2135555556 | F8: 0.6796666667 | N8: 1 | P8: 2 | Q8: 1.4 | R8: 0.5 | T8: 0.4 | U8: 0.5
A9: 3 | B9: 0.05023050155 | C9: 3 | D9: 0.110337037 | E9: 0.2206740741 | F9: 0.6689888889 | N9: 1 | P9: 3 | Q9: 1.6 | R9: 0.5 | T9: 0.6 | U9: 0.5
A10: 4 | B10: 0.0521057736 | C10: 4 | D10: 0.1140149383 | E10: 0.2280298765 | F10: 0.6579551852 | N10: 1 | P10: 4 | Q10: 1.8 | R10: 0.5 | T10: 0.8 | U10: 0.5
A11: 5 | B11: 0.05405105582 | C11: 5 | D11: 0.1178154362 | E11: 0.2356308724 | F11: 0.6465536914 | N11: 1 | P11: 5 | Q11: 2 | R11: 0.5 | T11: 1 | U11: 0.5
A12: 6 | B12: 0.0560689619 | C12: 6 | D12: 0.1217426174 | E12: 0.2434852348 | F12: 0.6347721477 | N12: 1 | P12: 6 | Q12: 2.2 | R12: 0.5 | T12: 1.2 | U12: 0.5
A13: 7 | B13: 0.05816220315 | C13: 7 | D13: 0.1258007047 | E13: 0.2516014093 | F13: 0.622597886 | N13: 1 | P13: 7 | Q13: 2.4 | R13: 0.5 | T13: 1.4 | U13: 0.5
A14: 8 | B14: 0.06033359206 | C14: 8 | D14: 0.1299940615 | E14: 0.259988123 | F14: 0.6100178155 | N14: 1 | P14: 8 | Q14: 2.6 | R14: 0.5 | T14: 1.6 | U14: 0.5
A15: 9 | B15: 0.06258604617 | C15: 9 | D15: 0.1343271969 | E15: 0.2686543937 | F15: 0.5970184094 | N15: 1 | P15: 9 | Q15: 2.8 | R15: 0.5 | T15: 1.8 | U15: 0.5
A16: 10 | B16: 0.06492259189 | C16: 10 | D16: 0.1388047701 | E16: 0.2776095402 | F16: 0.5835856897 | N16: 1 | P16: 10 | Q16: 3 | R16: 0.5 | T16: 2 | U16: 0.5
A17: 11 | B17: 0.06734636866 | C17: 11 | D17: 0.1434315958 | E17: 0.2868631915 | F17: 0.5697052127 | N17: 1 | P17: 11 | Q17: 3.2 | R17: 0.5 | T17: 2.2 | U17: 0.5
A18: 12 | B18: 0.06986063309 | C18: 12 | D18: 0.148212649 | E18: 0.2964252979 | F18: 0.5553620531 | N18: 1 | P18: 12 | Q18: 3.4 | R18: 0.5 | T18: 2.4 | U18: 0.5
A19: 13 | B19: 0.07246876339 | C19: 13 | D19: 0.1531530706 | E19: 0.3063061412 | F19: 0.5405407882 | N19: 1 | P19: 13 | Q19: 3.6 | R19: 0.5 | T19: 2.6 | U19: 0.5
A20: 14 | B20: 0.07517426389 | C20: 14 | D20: 0.158258173 | E20: 0.3165163459 | F20: 0.5252254811 | N20: 1 | P20: 14 | Q20: 3.8 | R20: 0.5 | T20: 2.8 | U20: 0.5
A21: 15 | B21: =1-SUM(B6:B20) -> 0.1165865248 | C21: 15 | D21: 0.1635334454 | E21: 0.3270668908 | F21: 0.5093996639 | N21: 1 | P21: 15 | Q21: 4 | R21: 0.5 | T21: 3 | U21: 0.5
B22: =SUM(B6:B21) -> 1
C23: RR_C = | D23: 1 | E23: 10
C24: X | D24: 0 | E24: 1 | F24: 2 | G24: 3 | H24: 4 | I24: 5 | J24: 6 | K24: 7 | L24: 8 | M24: 9
C25: 0 | D25: 0.1 | E25: 0.2 | F25: 0.7
C26: 1 | D26: 0.1033333333 | E26: 0.2066666667 | F26: 0.69
C27: 2 | D27: 0.1067777778 | E27: 0.2135555556 | F27: 0.6796666667
C28: 3 | D28: 0.110337037 | E28: 0.2206740741 | F28: 0.6689888889
C29: 4 | D29: 0.1140149383 | E29: 0.2280298765 | F29: 0.6579551852
C30: 5 | D30: 0.1178154362 | E30: 0.2356308724 | F30: 0.6465536914
C31: 6 | D31: 0.1217426174 | E31: 0.2434852348 | F31: 0.6347721477
C32: 7 | D32: 0.1258007047 | E32: 0.2516014093 | F32: 0.622597886
C33: 8 | D33: 0.1299940615 | E33: 0.259988123 | F33: 0.6100178155
C34: 9 | D34: 0.1343271969 | E34: 0.2686543937 | F34: 0.5970184094
C35: 10 | D35: 0.1388047701 | E35: 0.2776095402 | F35: 0.5835856897
C36: 11 | D36: 0.1434315958 | E36: 0.2868631915 | F36: 0.5697052127
C37: 12 | D37: 0.148212649 | E37: 0.2964252979 | F37: 0.5553620531
C38: 13 | D38: 0.1531530706 | E38: 0.3063061412 | F38: 0.5405407882
C39: 14 | D39: 0.158258173 | E39: 0.3165163459 | F39: 0.5252254811
C40: 15 | D40: 0.1635334454 | E40: 0.3270668908 | F40: 0.5093996639
C42: Score C | D42: 0 | E42: 1 | F42: 2 | G42: 3 | H42: 4 | I42: 5 | J42: 6 | K42: 7 | L42: 8 | M42: 9
C43: RR_C = | D43: 1 | E43: 1.028395684 | F43: 1.057597684 | G43: 1.087628894 | H43: 1.118512861 | I43: 1.150273799 | J43: 1.182936611 | K43: 1.216526905 | L43: 1.251071019 | M43: 1.286596037
D44: P(X|C)
C45: X | D45: 0 | E45: 1 | F45: 2 | G45: 3 | H45: 4 | I45: 5 | J45: 6 | K45: 7 | L45: 8 | M45: 9
C46: 0 | D46: 0.04 | E46: 0.04112 | F46: 0.04227136 | G46: 0.04345495808 | H46: 0.04467169691 | I46: 0.04592250442 | J46: 0.04720833454 | K46: 0.04853016791 | L46: 0.04988901261 | M46: 0.5969319655
C47: 1 | D47: 0.04149333333 | E47: 0.04265514667 | F47: 0.04384949077 | G47: 0.04507727651 | H47: 0.04633944026 | I47: 0.04763694458 | J47: 0.04897077903 | K47: 0.05034196085 | L47: 0.05175153575 | M47: 0.5818840922
C48: 2 | D48: 0.04304241778 | E48: 0.04424760548 | F48: 0.04548653843 | G48: 0.0467601615 | H48: 0.04806944603 | I48: 0.04941539052 | J48: 0.05079902145 | K48: 0.05222139405 | L48: 0.05368359308 | M48: 0.5662744317
C49: 3 | D49: 0.04464933471 | E49: 0.04589951608 | F49: 0.04718470253 | G49: 0.0485058742 | H49: 0.04986403868 | I49: 0.05126023176 | J49: 0.05269551825 | K49: 0.05417099276 | L49: 0.05568778056 | M49: 0.5500820105
C50: 4 | D50: 0.0463162432 | E50: 0.04761309801 | F50: 0.04894626476 | G50: 0.05031676017 | H50: 0.05172562946 | I50: 0.05317394708 | J50: 0.0546628176 | K50: 0.05619337649 | L50: 0.05776679103 | M50: 0.5332850722
C51: 5 | D51: 0.04804538295 | E51: 0.04939065367 | F51: 0.05077359198 | G51: 0.05219525255 | H51: 0.05365671962 | I51: 0.05515910777 | J51: 0.05670356279 | K51: 0.05829126255 | L51: 0.0599234179 | M51: 0.5158610482
C52: 6 | D52: 0.04983907725 | E52: 0.05123457141 | F52: 0.05266913941 | G52: 0.05414387531 | H52: 0.05565990382 | I52: 0.05721838113 | J52: 0.0588204958 | K52: 0.06046746968 | L52: 0.06216055883 | M52: 0.4977865274
C53: 7 | D53: 0.05169973613 | E53: 0.05314732874 | F53: 0.05463545395 | G53: 0.05616524666 | H53: 0.05773787356 | I53: 0.05935453402 | J53: 0.06101646098 | K53: 0.06272492188 | L53: 0.0644812197 | M53: 0.4790372244
C54: 8 | D54: 0.05362985961 | E54: 0.05513149568 | F54: 0.05667517756 | G54: 0.05826208253 | H54: 0.05989342084 | I54: 0.06157043663 | J54: 0.06329440885 | K54: 0.0650666523 | L54: 0.06688851857 | M54: 0.4595879474
C55: 9 | D55: 0.05563204104 | E55: 0.05718973819 | F55: 0.05879105086 | G55: 0.06043720028 | H55: 0.06212944189 | I55: 0.06386906626 | J55: 0.06565740012 | K55: 0.06749580732 | L55: 0.06938568993 | M55: 0.4394125641
C56: 10 | D56: 0.05770897057 | E56: 0.05932482175 | F56: 0.06098591676 | G56: 0.06269352242 | H56: 0.06444894105 | I56: 0.0662535114 | J56: 0.06810860972 | K56: 0.07001565079 | L56: 0.07197608902 | M56: 0.4184839665
C57: 11 | D57: 0.05986343881 | E57: 0.06153961509 | F57: 0.06326272431 | G57: 0.0650340806 | H57: 0.06685503485 | I57: 0.06872697583 | J57: 0.07065133115 | K57: 0.07262956842 | L57: 0.07466319634 | M57: 0.3967740346
C58: 12 | D58: 0.06209834052 | E58: 0.06383709406 | F58: 0.06562453269 | G58: 0.0674620196 | H58: 0.06935095615 | I58: 0.07129278293 | J58: 0.07328898085 | K58: 0.07534107231 | L58: 0.07745062234 | M58: 0.3742535986
C59: 13 | D59: 0.06441667857 | E59: 0.06622034557 | F59: 0.06807451524 | G59: 0.06998060167 | H59: 0.07194005852 | I59: 0.07395438015 | J59: 0.0760251028 | K59: 0.07815380568 | L59: 0.08034211224 | M59: 0.3508923996
C60: 14 | D60: 0.0668215679 | E60: 0.0686925718 | F60: 0.07061596381 | G60: 0.0725932108 | H60: 0.0746258207 | I60: 0.07671534368 | J60: 0.0788633733 | K60: 0.08107154776 | L60: 0.08334155109 | M60: 0.3266590492
C61: 15 | D61: 0.06931623977 | E61: 0.07125709448 | F61: 0.07325229313 | G61: 0.07530335733 | H61: 0.07741185134 | I61: 0.07957938318 | J61: 0.08180760591 | K61: 0.08409821887 | L61: 0.086452969 | M61: 0.301520987
A63: Solve_P(C|X)_BinC | D63: ln(RR_Obs) | E63: 0.1
B64: Level | C64: P(X) | D64: RR_Obs | E64: RR_X | G64: ERR_Obs
B65: 0 | C65: 0.045 | D65: =EXP(B65*$E$63) -> 1 | E65: 1 | G65: =EXP(B65*$E$63)-1 -> 0
B66: 1 | C66: 0.04668 | D66: =EXP(B66*$E$63) -> 1.105170918 | E66: 1 | G66: =EXP(B66*$E$63)-1 -> 0.1051709181
B67: 2 | C67: 0.04842272 | D67: 1.221402758 | E67: 1 | G67: 0.2214027582
B68: 3 | C68: 0.05023050155 | D68: 1.349858808 | E68: 1 | G68: 0.3498588076
B69: 4 | C69: 0.0521057736 | D69: 1.491824698 | E69: 1 | G69: 0.4918246976
B70: 5 | C70: 0.05405105582 | D70: 1.648721271 | E70: 1 | G70: 0.6487212707
B71: 6 | C71: 0.0560689619 | D71: 1.8221188 | E71: 1 | G71: 0.8221188004
B72: 7 | C72: 0.05816220315 | D72: 2.013752707 | E72: 1 | G72: 1.013752707
B73: 8 | C73: 0.06033359206 | D73: 2.225540928 | E73: 1 | G73: 1.225540928
B74: 9 | C74: 0.06258604617 | D74: 2.459603111 | E74: 1 | G74: 1.459603111
B75: 10 | C75: 0.06492259189 | D75: 2.718281828 | E75: 1 | G75: 1.718281828
B76: 11 | C76: 0.06734636866 | D76: 3.004166024 | E76: 1 | G76: 2.004166024
B77: 12 | C77: 0.06986063309 | D77: 3.320116923 | E77: 1 | G77: 2.320116923
B78: 13 | C78: 0.07246876339 | D78: 3.669296668 | E78: 1 | G78: 2.669296668
B79: 14 | C79: 0.07517426389 | D79: 4.055199967 | E79: 1 | G79: 3.055199967
B80: 15 | C80: 0.1165865248 | D80: 4.48168907 | E80: 1 | G80: 3.48168907
A83: Solve_RRC
C84: Score C | D84: 0 | E84: 1 | F84: 2 | G84: 3 | H84: 4 | I84: 5 | J84: 6 | K84: 7 | L84: 8 | M84: 9
C85: RR_C = | D85: 1 | E85: 1.028395684 | F85: 1.057597684 | G85: 1.087628894 | H85: 1.118512861 | I85: 1.150273799 | J85: 1.182936611 | K85: 1.216526905 | L85: 1.251071019 | M85: 1.286596037
D86: P(X|C) | O86: duplicate: | P86: 1 | Q86: 0
B87: P(X) | C87: X | D87: 0 | E87: 1 | F87: 2 | G87: 3 | H87: 4 | I87: 5 | J87: 6 | K87: 7 | L87: 8 | M87: 9 | O87: 0 | P87: 1 | Q87: 2 | R87: 3 | S87: 4 | T87: 5 | U87: 6 | V87: 7 | W87: 8 | X87: 9
B88: 0.08432637727 | C88: 0 | D88: 0.04 | E88: 0.04112 | F88: 0.04227136 | G88: 0.04345495808 | H88: 0.04467169691 | I88: 0.04592250442 | J88: 0.04720833454 | K88: 0.04853016791 | L88: 0.04988901261 | M88: 0.5969319655 | O88: =D88 -> 0.04 | P88: =IF(P$86=1,E88,1-O88) -> 0.04112 | Q88: =IF(Q$86=1,F88,IF(Q$86="","",1-SUM($D88:E88))) -> 0.91888 | R88: =IF(R$86=1,G88,IF(R$86="","",1-SUM($D88:F88))) ->  | S88: =IF(S$86=1,H88,IF(S$86="","",1-SUM($D88:G88))) ->  | T88: =IF(T$86=1,I88,IF(T$86="","",1-SUM($D88:H88))) ->  | U88: =IF(U$86=1,J88,IF(U$86="","",1-SUM($D88:I88))) ->  | V88: =IF(V$86=1,K88,IF(V$86="","",1-SUM($D88:J88))) ->  | W88: =IF(W$86=1,L88,IF(W$86="","",1-SUM($D88:K88))) ->  | X88: =IF(X$86=1,M88,IF(X$86="","",1-SUM($D88:L88))) -> 
B89: 0.08747456202 | C89: 1 | D89: 0.04149333333 | E89: 0.04265514667 | F89: 0.04384949077 | G89: 0.04507727651 | H89: 0.04633944026 | I89: 0.04763694458 | J89: 0.04897077903 | K89: 0.05034196085 | L89: 0.05175153575 | M89: 0.5818840922 | O89: =D89 -> 0.04149333333 | P89: =IF(P$86=1,E89,1-O89) -> 0.04265514667 | Q89: =IF(Q$86=1,F89,IF(Q$86="","",1-SUM($D89:E89))) -> 0.91585152 | R89: =IF(R$86=1,G89,IF(R$86="","",1-SUM($D89:F89))) ->  | S89: =IF(S$86=1,H89,IF(S$86="","",1-SUM($D89:G89))) ->  | T89: =IF(T$86=1,I89,IF(T$86="","",1-SUM($D89:H89))) ->  | U89: =IF(U$86=1,J89,IF(U$86="","",1-SUM($D89:I89))) ->  | V89: =IF(V$86=1,K89,IF(V$86="","",1-SUM($D89:J89))) ->  | W89: =IF(W$86=1,L89,IF(W$86="","",1-SUM($D89:K89))) ->  | X89: =IF(X$86=1,M89,IF(X$86="","",1-SUM($D89:L89))) -> 
B90: 0.090740279 | C90: 2 | D90: 0.04304241778 | E90: 0.04424760548 | F90: 0.04548653843 | G90: 0.0467601615 | H90: 0.04806944603 | I90: 0.04941539052 | J90: 0.05079902145 | K90: 0.05222139405 | L90: 0.05368359308 | M90: 0.5662744317 | O90: 0.04304241778 | P90: =IF(P$86=1,E90,1-O90) -> 0.04424760548 | Q90: =IF(Q$86=1,F90,IF(Q$86="","",1-SUM($D90:E90))) -> 0.9127099767 | R90: =IF(R$86=1,G90,IF(R$86="","",1-SUM($D90:F90))) ->  | S90: =IF(S$86=1,H90,IF(S$86="","",1-SUM($D90:G90))) ->  | T90: =IF(T$86=1,I90,IF(T$86="","",1-SUM($D90:H90))) ->  | U90: =IF(U$86=1,J90,IF(U$86="","",1-SUM($D90:I90))) ->  | V90: =IF(V$86=1,K90,IF(V$86="","",1-SUM($D90:J90))) ->  | W90: =IF(W$86=1,L90,IF(W$86="","",1-SUM($D90:K90))) ->  | X90: =IF(X$86=1,M90,IF(X$86="","",1-SUM($D90:L90))) -> 
B91: 0.09412791608 | C91: 3 | D91: 0.04464933471 | E91: 0.04589951608 | F91: 0.04718470253 | G91: 0.0485058742 | H91: 0.04986403868 | I91: 0.05126023176 | J91: 0.05269551825 | K91: 0.05417099276 | L91: 0.05568778056 | M91: 0.5500820105 | O91: 0.04464933471 | P91: 0.04589951608 | Q91: =IF(Q$86=1,F91,IF(Q$86="","",1-SUM($D91:E91))) -> 0.9094511492 | R91: =IF(R$86=1,G91,IF(R$86="","",1-SUM($D91:F91))) ->  | S91: =IF(S$86=1,H91,IF(S$86="","",1-SUM($D91:G91))) ->  | T91: =IF(T$86=1,I91,IF(T$86="","",1-SUM($D91:H91))) ->  | U91: =IF(U$86=1,J91,IF(U$86="","",1-SUM($D91:I91))) ->  | V91: =IF(V$86=1,K91,IF(V$86="","",1-SUM($D91:J91))) ->  | W91: =IF(W$86=1,L91,IF(W$86="","",1-SUM($D91:K91))) ->  | X91: =IF(X$86=1,M91,IF(X$86="","",1-SUM($D91:L91))) -> 
B92: 0.09764202495 | C92: 4 | D92: 0.0463162432 | E92: 0.04761309801 | F92: 0.04894626476 | G92: 0.05031676017 | H92: 0.05172562946 | I92: 0.05317394708 | J92: 0.0546628176 | K92: 0.05619337649 | L92: 0.05776679103 | M92: 0.5332850722 | O92: 0.0463162432 | P92: 0.04761309801 | Q92: =IF(Q$86=1,F92,IF(Q$86="","",1-SUM($D92:E92))) -> 0.9060706588 | R92: =IF(R$86=1,G92,IF(R$86="","",1-SUM($D92:F92))) ->  | S92: =IF(S$86=1,H92,IF(S$86="","",1-SUM($D92:G92))) ->  | T92: =IF(T$86=1,I92,IF(T$86="","",1-SUM($D92:H92))) ->  | U92: =IF(U$86=1,J92,IF(U$86="","",1-SUM($D92:I92))) ->  | V92: =IF(V$86=1,K92,IF(V$86="","",1-SUM($D92:J92))) ->  | W92: =IF(W$86=1,L92,IF(W$86="","",1-SUM($D92:K92))) ->  | X92: =IF(X$86=1,M92,IF(X$86="","",1-SUM($D92:L92))) -> 
B93: 0.1012873272 | C93: 5 | D93: 0.04804538295 | E93: 0.04939065367 | F93: 0.05077359198 | G93: 0.05219525255 | H93: 0.05365671962 | I93: 0.05515910777 | J93: 0.05670356279 | K93: 0.05829126255 | L93: 0.0599234179 | M93: 0.5158610482 | O93: 0.04804538295 | P93: 0.04939065367 | Q93: =IF(Q$86=1,F93,IF(Q$86="","",1-SUM($D93:E93))) -> 0.9025639634 | R93: =IF(R$86=1,G93,IF(R$86="","",1-SUM($D93:F93))) ->  | S93: =IF(S$86=1,H93,IF(S$86="","",1-SUM($D93:G93))) ->  | T93: =IF(T$86=1,I93,IF(T$86="","",1-SUM($D93:H93))) ->  | U93: =IF(U$86=1,J93,IF(U$86="","",1-SUM($D93:I93))) ->  | V93: =IF(V$86=1,K93,IF(V$86="","",1-SUM($D93:J93))) ->  | W93: =IF(W$86=1,L93,IF(W$86="","",1-SUM($D93:K93))) ->  | X93: =IF(X$86=1,M93,IF(X$86="","",1-SUM($D93:L93))) -> 
B94: 0.1050687208 | C94: 6 | D94: 0.04983907725 | E94: 0.05123457141 | F94: 0.05266913941 | G94: 0.05414387531 | H94: 0.05565990382 | I94: 0.05721838113 | J94: 0.0588204958 | K94: 0.06046746968 | L94: 0.06216055883 | M94: 0.4977865274 | O94: 0.04983907725 | P94: 0.05123457141 | Q94: =IF(Q$86=1,F94,IF(Q$86="","",1-SUM($D94:E94))) -> 0.8989263513 | R94: =IF(R$86=1,G94,IF(R$86="","",1-SUM($D94:F94))) ->  | S94: =IF(S$86=1,H94,IF(S$86="","",1-SUM($D94:G94))) ->  | T94: =IF(T$86=1,I94,IF(T$86="","",1-SUM($D94:H94))) ->  | U94: =IF(U$86=1,J94,IF(U$86="","",1-SUM($D94:I94))) ->  | V94: =IF(V$86=1,K94,IF(V$86="","",1-SUM($D94:J94))) ->  | W94: =IF(W$86=1,L94,IF(W$86="","",1-SUM($D94:K94))) ->  | X94: =IF(X$86=1,M94,IF(X$86="","",1-SUM($D94:L94))) -> 
B95: 0.1089912863 | C95: 7 | D95: 0.05169973613 | E95: 0.05314732874 | F95: 0.05463545395 | G95: 0.05616524666 | H95: 0.05773787356 | I95: 0.05935453402 | J95: 0.06101646098 | K95: 0.06272492188 | L95: 0.0644812197 | M95: 0.4790372244 | O95: 0.05169973613 | P95: 0.05314732874 | Q95: =IF(Q$86=1,F95,IF(Q$86="","",1-SUM($D95:E95))) -> 0.8951529351 | R95: =IF(R$86=1,G95,IF(R$86="","",1-SUM($D95:F95))) ->  | S95: =IF(S$86=1,H95,IF(S$86="","",1-SUM($D95:G95))) ->  | T95: =IF(T$86=1,I95,IF(T$86="","",1-SUM($D95:H95))) ->  | U95: =IF(U$86=1,J95,IF(U$86="","",1-SUM($D95:I95))) ->  | V95: =IF(V$86=1,K95,IF(V$86="","",1-SUM($D95:J95))) ->  | W95: =IF(W$86=1,L95,IF(W$86="","",1-SUM($D95:K95))) ->  | X95: =IF(X$86=1,M95,IF(X$86="","",1-SUM($D95:L95))) -> 
B96: 0.1130602944 | C96: 8 | D96: 0.05362985961 | E96: 0.05513149568 | F96: 0.05667517756 | G96: 0.05826208253 | H96: 0.05989342084 | I96: 0.06157043663 | J96: 0.06329440885 | K96: 0.0650666523 | L96: 0.06688851857 | M96: 0.4595879474 | O96: 0.05362985961 | P96: 0.05513149568 | Q96: =IF(Q$86=1,F96,IF(Q$86="","",1-SUM($D96:E96))) -> 0.8912386447 | R96: =IF(R$86=1,G96,IF(R$86="","",1-SUM($D96:F96))) ->  | S96: =IF(S$86=1,H96,IF(S$86="","",1-SUM($D96:G96))) ->  | T96: =IF(T$86=1,I96,IF(T$86="","",1-SUM($D96:H96))) ->  | U96: =IF(U$86=1,J96,IF(U$86="","",1-SUM($D96:I96))) ->  | V96: =IF(V$86=1,K96,IF(V$86="","",1-SUM($D96:J96))) ->  | W96: =IF(W$86=1,L96,IF(W$86="","",1-SUM($D96:K96))) ->  | X96: =IF(X$86=1,M96,IF(X$86="","",1-SUM($D96:L96))) -> 
B97: 0.117281212 | C97: 9 | D97: 0.05563204104 | E97: 0.05718973819 | F97: 0.05879105086 | G97: 0.06043720028 | H97: 0.06212944189 | I97: 0.06386906626 | J97: 0.06565740012 | K97: 0.06749580732 | L97: 0.06938568993 | M97: 0.4394125641 | O97: 0.05563204104 | P97: 0.05718973819 | Q97: =IF(Q$86=1,F97,IF(Q$86="","",1-SUM($D97:E97))) -> 0.8871782208 | R97: =IF(R$86=1,G97,IF(R$86="","",1-SUM($D97:F97))) ->  | S97: =IF(S$86=1,H97,IF(S$86="","",1-SUM($D97:G97))) ->  | T97: =IF(T$86=1,I97,IF(T$86="","",1-SUM($D97:H97))) ->  | U97: =IF(U$86=1,J97,IF(U$86="","",1-SUM($D97:I97))) ->  | V97: =IF(V$86=1,K97,IF(V$86="","",1-SUM($D97:J97))) ->  | W97: =IF(W$86=1,L97,IF(W$86="","",1-SUM($D97:K97))) ->  | X97: =IF(X$86=1,M97,IF(X$86="","",1-SUM($D97:L97))) -> 
B99: RR_Obs | C99: RR_X(i) | E99: ERR_Obs | F99: ERR_X
B100: 1 | C100: =1+F100 -> 1 | E100: 0 | F100: 0 | I100: 38 | J100: =1+I100 -> 39 | K100: =I101+1 -> -35 | L100: =I102+1 -> 1.087628894
B101: 1.2 | C101: =1+F101 -> 1.209586175 | E101: 0.2 | F101: 0.2095861754 | I101: -36
B102: 1.4 | C102: 1.41918524 | E102: 0.4 | F102: 0.4191852398 | I102: 0.08762889381
B103: 1.6 | C103: 1.628797623 | E103: 0.6 | F103: 0.628797623
B104: 1.8 | C104: 1.838423769 | E104: 0.8 | F104: 0.8384237688
B105: 2 | C105: 2.048064136 | E105: 1 | F105: 1.048064136
B106: 2.2 | C106: 2.257719199 | E106: 1.2 | F106: 1.257719199
B107: 2.4 | C107: 2.467389447 | E107: 1.4 | F107: 1.467389447
B108: 2.6 | C108: 2.677075386 | E108: 1.6 | F108: 1.677075386
B109: 2.8 | C109: 2.88677754 | E109: 1.8 | F109: 1.88677754
H112: P(C|X) - NHANES ages 50-80
H113: HDL (mmol/L)
A114: Pack-years | B114: RR_Obs | C114: Wgt | D114: ERR_Obs | E114: P(X) | F114: Mean | H114: <1.00 | I114: 1.00-1.29 | J114: 1.30-1.59 | K114: ≥1.60
A115: 0 | B115: 1 | C115: 250 | D115: 0 | E115: 0.621 | F115: 0 | H115: 0.143136 | I115: 0.320522 | J115: 0.245149 | K115: 0.291193 | M115: 1 | N115: 1 | P115: =M115-1 -> 0 | Q115: =N115-1 -> 0
A116: 1-19 | B116: 1.26 | C116: 678.5925385 | D116: 0.26 | E116: 0.218 | F116: 6.65243 | H116: 0.162325 | I116: 0.316925 | J116: 0.233215 | K116: 0.287535 | M116: 1.26 | N116: 1.248788393 | P116: =M116-1 -> 0.26 | Q116: 0.2487883933
A117: 20-29 | B117: 1.59 | C117: 269.8590076 | D117: 0.59 | E117: 0.053 | F117: 23.5316 | H117: 0.226816 | I117: 0.354887 | J117: 0.238135 | K117: 0.180162 | M117: 1.59 | N117: 1.482097815 | P117: 0.59 | Q117: 0.4820978152
A118: 30-29 | B118: 1.67 | C118: 204.8442346 | D118: 0.67 | E118: 0.039 | F118: 33.5394 | H118: 0.215222 | I118: 0.366784 | J118: 0.197623 | K118: 0.220371 | M118: 1.67 | N118: 1.573447008 | P118: 0.67 | Q118: 0.5734470078
A119: 40-49 | B119: 1.98 | C119: 174.8918512 | D119: 0.98 | E119: 0.025 | F119: 43.6746 | H119: 0.255994 | I119: 0.35099 | J119: 0.198911 | K119: 0.194105 | M119: 1.98 | N119: 1.829078012 | P119: 0.98 | Q119: 0.8290780125
A120: 50-59 | B120: 2.18 | C120: 80.34298061 | D120: 1.18 | E120: 0.015 | F120: 53.618 | H120: 0.260412 | I120: 0.337192 | J120: 0.186121 | K120: 0.216275 | M120: 2.18 | N120: 2.025606833 | P120: 1.18 | Q120: 1.025606833
A121: ≥60 | B121: 2.26 | C121: 192.4550623 | D121: 1.26 | E121: 0.029 | F121: 80.8767 | H121: 0.266887 | I121: 0.333104 | J121: 0.205422 | K121: 0.194587 | M121: 2.26 | N121: 2.08664548 | P121: 1.26 | Q121: 1.08664548
H122: =H121+0.005 -> 0.271887 | I122: =I121+0.003 -> 0.336104 | J122: =J121-0.003 -> 0.202422 | K122: =K121-0.005 -> 0.189587 | M122: 2.4 | N122: 2.207299112 | P122: 1.4 | Q122: 1.207299112
H123: =H122+0.004 -> 0.275887 | I123: =I122+0.003 -> 0.339104 | J123: =J122-0.003 -> 0.199422 | K123: =K122-0.004 -> 0.185587 | M123: 3 | N123: 2.750197944 | P123: 2 | Q123: 1.750197944
H124: =H123+0.004 -> 0.279887 | I124: =I123+0.003 -> 0.342104 | J124: =J123-0.003 -> 0.196422 | K124: =K123-0.004 -> 0.181587 | M124: 3.5 | N124: 3.198217824 | P124: 2.5 | Q124: 2.198217824
G128: RR_C = | H128: 1 | I128: 0.84 | J128: 0.66 | K128: 0.5
G129: ERR_C = | H129: 0 | I129: -0.16 | J129: -0.34 | K129: -0.5
A132: (b) Coronary heart disease and cigarette smoking in the Agricultural Heath Study
H133: P(C|X) - NHANES ages 50-80
H134: HDL (mmol/L) | R134: duplicate: | S134: 1 | T134: 1 | U134: 0
A135: Pack-years | B135: RR_Obs | C135: Wgt | D135: ERR_Obs | E135: P(X) | F135: Mean | H135: <1.00 | I135: 1.00-1.29 | J135: 1.30-1.59 | K135: ≥1.60 | R135: 0 | S135: 1 | T135: 2 | U135: 3 | V135: 4 | W135: 5 | X135: 6 | Y135: 7 | Z135: 8 | AA135: 9
A136: 0 | B136: 1 | C136: 250 | D136: 0 | E136: 0.621 | F136: 0 | H136: 0.071568 | I136: 0.160261 | J136: 0.1225745 | K136: 0.1455965 | L136: 0.071568 | M136: 0.160261 | N136: 0.1225745 | O136: 0.1455965 | R136: =H136 -> 0.071568 | S136: =IF(P$86=1,I136,1-R136) -> 0.160261 | T136: =IF(T$134=1,J136,IF(T$134="","",1-SUM($R136:S136))) -> 0.1225745 | U136: =IF(U$134=1,K136,IF(U$134="","",1-SUM($R136:T136))) -> 0.6455965 | V136: =IF(V$134=1,L136,IF(V$134="","",1-SUM($R136:U136))) ->  | W136: =IF(W$134=1,M136,IF(W$134="","",1-SUM($R136:V136))) ->  | X136: =IF(X$134=1,N136,IF(X$134="","",1-SUM($R136:W136))) ->  | Y136: =IF(Y$134=1,O136,IF(Y$134="","",1-SUM($R136:X136))) ->  | Z136: =IF(Z$134=1,P136,IF(Z$134="","",1-SUM($R136:Y136))) ->  | AA136: =IF(AA$134=1,Q136,IF(AA$134="","",1-SUM($R136:Z136))) -> 
A137: 1-19 | B137: 1.26 | C137: 678.5925385 | D137: 0.26 | E137: 0.218 | F137: 6.65243 | H137: 0.0811625 | I137: 0.1584625 | J137: 0.1166075 | K137: 0.1437675 | L137: 0.0811625 | M137: 0.1584625 | N137: 0.1166075 | O137: 0.1437675 | R137: 0.0811625 | S137: 0.1584625 | T137: =IF(T$134=1,J137,IF(T$134="","",1-SUM($R137:S137))) -> 0.1166075 | U137: =IF(U$134=1,K137,IF(U$134="","",1-SUM($R137:T137))) -> 0.6437675 | V137: =IF(V$134=1,L137,IF(V$134="","",1-SUM($R137:U137))) ->  | W137: =IF(W$134=1,M137,IF(W$134="","",1-SUM($R137:V137))) ->  | X137: =IF(X$134=1,N137,IF(X$134="","",1-SUM($R137:W137))) ->  | Y137: =IF(Y$134=1,O137,IF(Y$134="","",1-SUM($R137:X137))) ->  | Z137: =IF(Z$134=1,P137,IF(Z$134="","",1-SUM($R137:Y137))) ->  | AA137: =IF(AA$134=1,Q137,IF(AA$134="","",1-SUM($R137:Z137))) -> 
A138: 20-29 | B138: 1.59 | C138: 269.8590076 | D138: 0.59 | E138: 0.053 | F138: 23.5316 | H138: 0.113408 | I138: 0.1774435 | J138: 0.1190675 | K138: 0.090081 | L138: 0.113408 | M138: 0.1774435 | N138: 0.1190675 | O138: 0.090081 | R138: 0.113408 | S138: 0.1774435 | T138: =IF(T$134=1,J138,IF(T$134="","",1-SUM($R138:S138))) -> 0.1190675 | U138: =IF(U$134=1,K138,IF(U$134="","",1-SUM($R138:T138))) -> 0.590081 | V138: =IF(V$134=1,L138,IF(V$134="","",1-SUM($R138:U138))) ->  | W138: =IF(W$134=1,M138,IF(W$134="","",1-SUM($R138:V138))) ->  | X138: =IF(X$134=1,N138,IF(X$134="","",1-SUM($R138:W138))) ->  | Y138: =IF(Y$134=1,O138,IF(Y$134="","",1-SUM($R138:X138))) ->  | Z138: =IF(Z$134=1,P138,IF(Z$134="","",1-SUM($R138:Y138))) ->  | AA138: =IF(AA$134=1,Q138,IF(AA$134="","",1-SUM($R138:Z138))) -> 
A139: 30-29 | B139: 1.67 | C139: 204.8442346 | D139: 0.67 | E139: 0.039 | F139: 33.5394 | H139: 0.107611 | I139: 0.183392 | J139: 0.0988115 | K139: 0.1101855 | L139: 0.107611 | M139: 0.183392 | N139: 0.0988115 | O139: 0.1101855 | R139: 0.107611 | S139: 0.183392 | T139: =IF(T$134=1,J139,IF(T$134="","",1-SUM($R139:S139))) -> 0.0988115 | U139: =IF(U$134=1,K139,IF(U$134="","",1-SUM($R139:T139))) -> 0.6101855 | V139: =IF(V$134=1,L139,IF(V$134="","",1-SUM($R139:U139))) ->  | W139: =IF(W$134=1,M139,IF(W$134="","",1-SUM($R139:V139))) ->  | X139: =IF(X$134=1,N139,IF(X$134="","",1-SUM($R139:W139))) ->  | Y139: =IF(Y$134=1,O139,IF(Y$134="","",1-SUM($R139:X139))) ->  | Z139: =IF(Z$134=1,P139,IF(Z$134="","",1-SUM($R139:Y139))) ->  | AA139: =IF(AA$134=1,Q139,IF(AA$134="","",1-SUM($R139:Z139))) -> 
A140: 40-49 | B140: 1.98 | C140: 174.8918512 | D140: 0.98 | E140: 0.025 | F140: 43.6746 | H140: 0.127997 | I140: 0.175495 | J140: 0.0994555 | K140: 0.0970525 | L140: 0.127997 | M140: 0.175495 | N140: 0.0994555 | O140: 0.0970525 | R140: 0.127997 | S140: 0.175495 | T140: =IF(T$134=1,J140,IF(T$134="","",1-SUM($R140:S140))) -> 0.0994555 | U140: =IF(U$134=1,K140,IF(U$134="","",1-SUM($R140:T140))) -> 0.5970525 | V140: =IF(V$134=1,L140,IF(V$134="","",1-SUM($R140:U140))) ->  | W140: =IF(W$134=1,M140,IF(W$134="","",1-SUM($R140:V140))) ->  | X140: =IF(X$134=1,N140,IF(X$134="","",1-SUM($R140:W140))) ->  | Y140: =IF(Y$134=1,O140,IF(Y$134="","",1-SUM($R140:X140))) ->  | Z140: =IF(Z$134=1,P140,IF(Z$134="","",1-SUM($R140:Y140))) ->  | AA140: =IF(AA$134=1,Q140,IF(AA$134="","",1-SUM($R140:Z140))) -> 
A141: 50-59 | B141: 2.18 | C141: 80.34298061 | D141: 1.18 | E141: 0.015 | F141: 53.618 | H141: 0.130206 | I141: 0.168596 | J141: 0.0930605 | K141: 0.1081375 | L141: 0.130206 | M141: 0.168596 | N141: 0.0930605 | O141: 0.1081375 | R141: 0.130206 | S141: 0.168596 | T141: =IF(T$134=1,J141,IF(T$134="","",1-SUM($R141:S141))) -> 0.0930605 | U141: =IF(U$134=1,K141,IF(U$134="","",1-SUM($R141:T141))) -> 0.6081375 | V141: =IF(V$134=1,L141,IF(V$134="","",1-SUM($R141:U141))) ->  | W141: =IF(W$134=1,M141,IF(W$134="","",1-SUM($R141:V141))) ->  | X141: =IF(X$134=1,N141,IF(X$134="","",1-SUM($R141:W141))) ->  | Y141: =IF(Y$134=1,O141,IF(Y$134="","",1-SUM($R141:X141))) ->  | Z141: =IF(Z$134=1,P141,IF(Z$134="","",1-SUM($R141:Y141))) ->  | AA141: =IF(AA$134=1,Q141,IF(AA$134="","",1-SUM($R141:Z141))) -> 
A142: ≥60 | B142: 2.26 | C142: 192.4550623 | D142: 1.26 | E142: 0.029 | F142: 80.8767 | H142: 0.1334435 | I142: 0.166552 | J142: 0.102711 | K142: 0.0972935 | L142: 0.1334435 | M142: 0.166552 | N142: 0.102711 | O142: 0.0972935 | R142: =H142 -> 0.1334435 | S142: 0.166552 | T142: =IF(T$134=1,J142,IF(T$134="","",1-SUM($R142:S142))) -> 0.102711 | U142: =IF(U$134=1,K142,IF(U$134="","",1-SUM($R142:T142))) -> 0.5972935 | V142: =IF(V$134=1,L142,IF(V$134="","",1-SUM($R142:U142))) ->  | W142: =IF(W$134=1,M142,IF(W$134="","",1-SUM($R142:V142))) ->  | X142: =IF(X$134=1,N142,IF(X$134="","",1-SUM($R142:W142))) ->  | Y142: =IF(Y$134=1,O142,IF(Y$134="","",1-SUM($R142:X142))) ->  | Z142: =IF(Z$134=1,P142,IF(Z$134="","",1-SUM($R142:Y142))) ->  | AA142: =IF(AA$134=1,Q142,IF(AA$134="","",1-SUM($R142:Z142))) -> 
H143: 0.1334435 | I143: 0.166552 | J143: 0.102711 | K143: 0.0972935 | L143: 0.1334435 | M143: 0.166552 | N143: 0.102711 | O143: 0.0972935 | R143: 0.1334435 | S143: 0.166552 | T143: =IF(T$134=1,J143,IF(T$134="","",1-SUM($R143:S143))) -> 0.102711 | U143: =IF(U$134=1,K143,IF(U$134="","",1-SUM($R143:T143))) -> 0.5972935 | V143: =IF(V$134=1,L143,IF(V$134="","",1-SUM($R143:U143))) ->  | W143: =IF(W$134=1,M143,IF(W$134="","",1-SUM($R143:V143))) ->  | X143: =IF(X$134=1,N143,IF(X$134="","",1-SUM($R143:W143))) ->  | Y143: =IF(Y$134=1,O143,IF(Y$134="","",1-SUM($R143:X143))) ->  | Z143: =IF(Z$134=1,P143,IF(Z$134="","",1-SUM($R143:Y143))) ->  | AA143: =IF(AA$134=1,Q143,IF(AA$134="","",1-SUM($R143:Z143))) -> 
H144: 0.1334435 | I144: 0.166552 | J144: 0.102711 | K144: 0.0972935 | L144: 0.1334435 | M144: 0.166552 | N144: 0.102711 | O144: 0.0972935 | R144: 0.1334435 | S144: 0.166552 | T144: =IF(T$134=1,J144,IF(T$134="","",1-SUM($R144:S144))) -> 0.102711 | U144: =IF(U$134=1,K144,IF(U$134="","",1-SUM($R144:T144))) -> 0.5972935 | V144: =IF(V$134=1,L144,IF(V$134="","",1-SUM($R144:U144))) ->  | W144: =IF(W$134=1,M144,IF(W$134="","",1-SUM($R144:V144))) ->  | X144: =IF(X$134=1,N144,IF(X$134="","",1-SUM($R144:W144))) ->  | Y144: =IF(Y$134=1,O144,IF(Y$134="","",1-SUM($R144:X144))) ->  | Z144: =IF(Z$134=1,P144,IF(Z$134="","",1-SUM($R144:Y144))) ->  | AA144: =IF(AA$134=1,Q144,IF(AA$134="","",1-SUM($R144:Z144))) -> 
H145: 0.1334435 | I145: 0.166552 | J145: 0.102711 | K145: 0.0972935 | L145: 0.1334435 | M145: 0.166552 | N145: 0.102711 | O145: 0.0972935 | R145: =H145 -> 0.1334435 | S145: 0.166552 | T145: =IF(T$134=1,J145,IF(T$134="","",1-SUM($R145:S145))) -> 0.102711 | U145: =IF(U$134=1,K145,IF(U$134="","",1-SUM($R145:T145))) -> 0.5972935 | V145: =IF(V$134=1,L145,IF(V$134="","",1-SUM($R145:U145))) ->  | W145: =IF(W$134=1,M145,IF(W$134="","",1-SUM($R145:V145))) ->  | X145: =IF(X$134=1,N145,IF(X$134="","",1-SUM($R145:W145))) ->  | Y145: =IF(Y$134=1,O145,IF(Y$134="","",1-SUM($R145:X145))) ->  | Z145: =IF(Z$134=1,P145,IF(Z$134="","",1-SUM($R145:Y145))) ->  | AA145: =IF(AA$134=1,Q145,IF(AA$134="","",1-SUM($R145:Z145))) -> 
G147: RR_C = | H147: 1 | I147: 0.84 | J147: 0.66 | K147: 0.5
G148: ERR_C = | H148: 0 | I148: -0.16 | J148: -0.34 | K148: -0.5
H151: <1.00 | I151: 1.00-1.29 | J151: 1.30-1.59 | K151: ≥1.60
H152: 0.143136 | I152: 0.320522 | J152: 0.245149 | K152: 0.291193
H153: 0.162325 | I153: 0.316925 | J153: 0.233215 | K153: 0.287535
H154: 0.226816 | I154: 0.354887 | J154: 0.238135 | K154: 0.180162
H155: 0.215222 | I155: 0.366784 | J155: 0.197623 | K155: 0.220371
H156: 0.255994 | I156: 0.35099 | J156: 0.198911 | K156: 0.194105
H157: 0.260412 | I157: 0.337192 | J157: 0.186121 | K157: 0.216275
H158: 0.266887 | I158: 0.333104 | J158: 0.205422 | K158: 0.194587

Sheet Tolerance
A1: Set tolerance values
A3: Tolerance for sum of probabilities | B3: 1e-06
A4: Rounding decimal digits | B4: 8
